Workbook

Sheet Calculations (hidden)
A1: Cost of Living | B1: Full-Time | C1: Part-Time
A2: Yearly Increase (%) | B2: 3 | C2: 3
A3: Fringe rates
A4: BRP Eligible
A5: End Date Package | B5: 1995-08-31 | C5: =B5 -> 1995-08-31
A6: Faculty and Staff
A7: ORP (%) | B7: =AVERAGE(21.52,23.42)-1 -> 21.47 | C7: =B7 -> 21.47
A8: TRS (%) | B8: =21.7-1 -> 20.7 | C8: =B8 -> 20.7
A9: Students
A10: Graduate (%) | B10: 6.85 | C10: 6.85
A11: Undergraduate (%) | B11: 6.85 | C11: 6.85
A12: Others
A13: Hourly (%) | B13: 14.5 | C13: 14.5
A14: Non-BRP Eligible
A15: End Date Package | B15: 2099-08-31 | C15: =B15 -> 2099-08-31
A16: Faculty and Staff
A17: ORP (%) | B17: =AVERAGE(15.25,17.15)-1 -> 15.2 | C17: =B17 -> 15.2 | E17: TUCA of 1% removed October 2018
A18: TRS (%) | B18: 15.15 | C18: =B18 -> 15.15
A19: Students
A20: Graduate (%) | B20: 7.65 | C20: =B20 -> 7.65
A21: Undergraduate (%) | B21: 7.65 | C21: 7.65
A22: Others
A23: Hourly (%) | B23: 7.65 | C23: 7.65
A24: Insurance
A25: Employee ($) | B25: 624.82 | C25: 312.41
A26: Spouse ($) | B26: 982.82 | C26: 491.41
A27: Children ($) | B27: 864.52 | C27: 432.26
A28: Family ($) | B28: 1222.52 | C28: 611.26
A29: None ($) | B29: 60 | C29: 30
A30: Longevity
A31: Amount Per Month ($) | B31: 20 | C31: =B31 -> 20
A32: For Every ? (Years) | B32: 2 | C32: 2
A33: Subcontracts
A34: Upper Limit ($) | B34: 25000 | C34: =B34 -> 25000
A35: IDC Rates
A36: Research | B36: 48.5
A37: On-Campus Other | B37: 31.5
A38: Instruction | B38: 48
A39: Off-Campus | B39: 26
A41: Hire date | B41: 2007-09-01

Sheet Instructions
A1: Budget Builder
A2: Version: FY20
A4: Attention Microsoft Office 2007 User:
B5: To use Budget Builder in Microsoft Office 2007:
B6: Enable your macros by clicking on the "Options" box next to the "Security Warning" shield.
B7: Select the radio button "Enable this Content."
A9: The Budget Builder is an interactive spreadsheet designed to assist investigators to develop actual budgets that are both detailed and concise. The development of this tool has led to many versions of the Budget Builder; therefore, it is recommended that investigators always download the newest version from the Office of Grants & Contracts Administration website. This version updates FY20 F&A, Fringe and insurance rates and identifies the Base for F&A and Sponsor Direct costs.
A18: BB Notes
A19: * | B19: Remember to enable macros when opening the file; also, when downloading from our website, first save the file locally and then open in Excel (otherwise the file will attempt to open in the browser and the macros will not function).Do not try to save in any other format than .xls because the macros will not work.
A20: * | B20: Enter data only in the Yellow fields and complete the entire line.
A21: * | B21: A red corner in the upper right denotes a comment attached giving additional information for that cell or column.
A22: * | B22: Gray buttons beneath each section are used to insert new lines in that section.
A23: * | B23: It is very important that the header portion of Year 1 is completely filled out. The "date drafted" is absolutely necessary because several formulas depend on that information.
B24: Please click on this Pdf file for Budget Builder Guidelines
A25: * | B25: If you have any questions, please contact proposals@unt.edu
B27: University of North Texas, Office of Grants & Contracts Administration

Sheet Year 1
A1: File Number: | B1: 20-0611 | C1: BB version: | E1: FY 2020 | F1: This Budget is prepared for: | I1: Gates Foundation | J1: Year 1
A2: Project Title: | B2: Genome-wide Knockdown Screens of Oocyte Maturation
A3: Budget Prepared by: | C3: Pudur Jagadeeswaran | E3: Phone Number: | G3: E-mail:
A4: Project Budget | F4: This Budget was drafted on: | J4: =Calculations!B41 -> 2007-09-01
A5: Personnel | B5: (EMPL IDs ARE REQUIRED FOR ALL UNT EMPLOYEES) | H5: Number of Months (Academic) | I5: Number of Months (Summer) | M5: Personnel | R5: Fringe
A6: Last Name | B6: First Name | C6: EMPL ID# | D6: Employee Type | E6: Responsibility | F6: Monthly Rate | G6: Percent Effort (%) | J6: Project Salary | K6: Rounded Number of Months | M6: Year 1 | R6: Year 1
E8: PI
E9: Co-PI
E10: Senior Personnel
E11: Research Assistant
E12: Teaching Assistant
C13: =FALSE() -> FALSE | E13: Investigator
C14: =TRUE() -> TRUE | D14: PT Staff | E14: Coordinator
D15: PT Faculty | E15: Technician
D16: Hourly | E16: Post Doc
D17: Faculty | E17: Clerical
D18: Staff | E18: Programmer
A19: Jagadeeswaran | B19: Pudur | C19: 10523515 | D19: Faculty | E19: PI | F19: 18926 | G19: 95 | H19: 0 | I19: 3 | J19: =F19*((G19*H19)/100+(G19*I19)/100) -> 53939.1 | K19: =ROUNDUP(H19+I19,0) -> 3 | M19: =J19 -> 53939.1 | R19: =J35 -> 11682.9252
A20: Iyer | B20: Neha | C20: 0 | D20: Staff | E20: Post Doc | F20: 4110 | G20: 100 | H20: 9 | I20: 3 | J20: 49320 | K20: 12 | M20: 49320 | R20: =J35 -> 11682.9252
A21: Raman | B21: Revathi | C21: 0 | D21: Staff | E21: Post Doc | F21: 4110 | G21: 100 | H21: 9 | I21: 3 | J21: 49320 | K21: 12 | M21: 49320 | R21: =J36 -> 14969.82
A22: Sun | B22: Kelsey | C22: 0 | D22: Staff | E22: Research Technician | F22: 3250 | G22: 100 | H22: 9 | I22: 3 | J22: 39000 | K22: 12 | M22: 39000 | R22: =J37 -> 14969.82
A23: 0 | B23: 0 | C23: 0 | D23: 0 | E23: 0 | F23: 0 | G23: 0 | H23: 0 | I23: 0 | J23: 0 | K23: 0 | M23: 0 | R23: =J38 -> 13406.34
A24: 0 | B24: 0 | C24: 0 | D24: 0 | E24: 0 | F24: 0 | G24: 0 | H24: 0 | I24: 0 | J24: 0 | K24: 0 | M24: 0 | R24: =J39 -> 0
A25: 0 | B25: 0 | C25: 0 | D25: 0 | E25: 0 | F25: 0 | G25: 0 | H25: 0 | I25: 0 | J25: 0 | K25: 0 | M25: 0 | R25: =J41 -> 0
G26: Sum of Personnel | J26: =SUM(J19:J25) -> 191579.1
A27: Fringe Benefits for Personnel
A28: Last Name | B28: First Name | C28: EMPL ID# | D28: Retirement | E28: Insurance Type | F28: Other Support | G28: Hire Date | H28: Fringe Rate | J28: Fringe Benefit Totals | K28: Fringe Rates before 9-1-95 | O28: Fringe Rates after 9-1-95 | S28: Insurance and Longevity Calculations
E30: None
E31: Employee
D32: Hourly | E32: Spouse
D33: ORP | E33: Children | F33: Yes
D34: TRS | E34: Family | F34: No | K34: Hourly | L34: ORP | M34: TRS | N34: F1 Sum | O34: Hourly | P34: ORP | Q34: TRS | R34: F2 Sum | S34: % I applied | T34: Employee | U34: Spouse | V34: Children | W34: Family | X34: Ins Sum
A35: =A19 -> Jagadeeswaran | B35: Pudur | C35: 10523515 | D35: ORP | E35: Family | F35: Yes | G35: =$J$4 -> 2007-09-01 | H35: =IF(G35>Fringe1End,R35,N35) -> 15.2 | J35: =(J19*H35/100)+X35 -> 11682.9252 | K35: =IF(D35=$D$32,F1.Hourly,0) -> 0 | L35: =IF(D35=$D$33,F1.FS.ORP,0) -> 21.47 | M35: =IF(D35=$D$34,F1.FS.TRS,0) -> 0 | N35: =SUM(K35:M35) -> 21.47 | O35: =IF(D35=$D$32,F2.Hourly,0) -> 0 | P35: =IF(D35=$D$33,F2.FS.ORP,0) -> 15.2 | Q35: =IF(D35=$D$34,F2.FS.TRS,0) -> 0 | R35: =SUM(O35:Q35) -> 15.2 | S35: =IF(F35=$F$33,G19,100) -> 95 | T35: =IF($E35=$E$31,IF($D19=$D$14,Ins.PT.E*$K19*S35/100,IF($D19=$D$15,Ins.PT.E*$K19*S35/100,Ins.E*$K19*S35/100)),0) -> 0 | U35: =IF($E35=$E$32,IF($D19=$D$14,Ins.PT.S*$K19*S35/100,IF($D19=$D$15,Ins.PT.S*$K19*S35/100,Ins.S*$K19*S35/100)),0) -> 0 | V35: =IF($E35=$E$33,IF($D19=$D$14,Ins.PT.C*$K19*S35/100,IF($D19=$D$15,Ins.PT.C*$K19*S35/100,Ins.C*$K19*S35/100)),0) -> 0 | W35: =IF($E35=$E$34,IF($D19=$D$14,Ins.PT.F*$K19*S35/100,IF($D19=$D$15,Ins.PT.F*$K19*S35/100,Ins.F*$K19*S35/100)),0) -> 3484.182 | X35: =IF(D19=$D$18,ROUNDDOWN(DAYS360(G35,$J$4)/(360*Long.Per),0)*20*K19*G19/100,0)+SUM(T35:W35) -> 3484.182 | Z35: =J35/J19 -> 0.2165947374
A36: Iyer | B36: Neha | C36: 0 | D36: =IF($D20=$D$16,$D$32,$D$34) -> TRS | E36: =IF($D20=$D$16,$E$30,$E$31) -> Employee | F36: Yes | G36: 2007-09-01 | H36: 15.15 | J36: 14969.82 | K36: 0 | L36: 0 | M36: 20.7 | N36: 20.7 | O36: 0 | P36: 0 | Q36: 15.15 | R36: 15.15 | S36: 100 | T36: 7497.84 | U36: 0 | V36: 0 | W36: 0 | X36: 7497.84 | Z36: =J36/J20 -> 0.3035243309
A37: =A21 -> Raman | B37: Revathi | C37: 0 | D37: TRS | E37: Employee | F37: Yes | G37: 2007-09-01 | H37: 15.15 | J37: 14969.82 | K37: 0 | L37: 0 | M37: 20.7 | N37: 20.7 | O37: 0 | P37: 0 | Q37: 15.15 | R37: 15.15 | S37: 100 | T37: 7497.84 | U37: 0 | V37: 0 | W37: 0 | X37: 7497.84 | Z37: 0.3035243309
A38: Sun | B38: Kelsey | C38: 0 | D38: TRS | E38: Employee | F38: Yes | G38: 2007-09-01 | H38: 15.15 | J38: 13406.34 | K38: 0 | L38: 0 | M38: 20.7 | N38: 20.7 | O38: 0 | P38: 0 | Q38: 15.15 | R38: 15.15 | S38: 100 | T38: 7497.84 | U38: 0 | V38: 0 | W38: 0 | X38: 7497.84 | Z38: 0.3437523077
A39: 0 | B39: 0 | C39: 0 | D39: TRS | E39: Employee | F39: Yes | G39: 2007-09-01 | H39: 15.15 | J39: 0 | K39: 0 | L39: 0 | M39: 20.7 | N39: 20.7 | O39: 0 | P39: 0 | Q39: 15.15 | R39: 15.15 | S39: 0 | T39: 0 | U39: 0 | V39: 0 | W39: 0 | X39: 0
A40: =A24 -> 0 | B40: 0 | C40: 0 | D40: TRS | E40: Employee | F40: Yes | G40: 2007-09-01 | H40: 15.15 | J40: 0 | K40: 0 | L40: 0 | M40: 20.7 | N40: 20.7 | O40: 0 | P40: 0 | Q40: 15.15 | R40: 15.15 | S40: 0 | T40: 0 | U40: 0 | V40: 0 | W40: 0 | X40: 0
A41: 0 | B41: 0 | C41: 0 | D41: TRS | E41: Employee | F41: No | G41: 2007-09-01 | H41: 15.15 | J41: 0 | K41: 0 | L41: 0 | M41: 20.7 | N41: 20.7 | O41: 0 | P41: 0 | Q41: 15.15 | R41: 15.15 | S41: 100 | T41: 0 | U41: 0 | V41: 0 | W41: 0 | X41: 0
F42: Sum of Fringe Benefits for Personnel | J42: =SUM(J35:J41) -> 55028.9052 | K42: Hourly | L42: ORP | M42: TRS | N42: F1 Sum | O42: Hourly | P42: ORP | Q42: TRS | R42: F2 Sum | S42: % I applied | T42: Employee | U42: Spouse | V42: Children | W42: Family | X42: Ins Sum
F43: Sum of Personnel and Fringe Benefits | J43: =J26+J42 -> 246608.0052
A44: Students | H44: Number of Months (Academic) | I44: Number of Months (Summer) | M44: Students | R44: Fringe
A45: Last Name | B45: First Name | C45: EMPL ID# | D45: Student Type | E45: Responsibility | F45: Monthly Rate | G45: Percent Effort (%) | J45: Project Salary | K45: Rounded Number of Months | M45: Year 1 | R45: Year 1
D48: =FALSE() -> FALSE
D49: =TRUE() -> TRUE
E50: Clerical
D51: Graduate | E51: Programmer
D52: Undergrad | E52: Research Assistant
A53: 0 | B53: 0 | C53: 0 | D53: Graduate | E53: 0 | F53: 0 | G53: 0 | H53: 0 | I53: 0 | J53: =F53*((G53*H53)/100+(G53*I53)/100) -> 0 | K53: =ROUNDUP(H53+I53,0) -> 0 | M53: =J53 -> 0 | R53: =J66 -> 0
A54: 0 | B54: 0 | C54: 0 | D54: Graduate | E54: 0 | F54: 0 | G54: 0 | H54: 0 | I54: 0 | J54: =F54*((G54*H54)/100+(G54*I54)/100) -> 0 | K54: =ROUNDUP(H54+I54,0) -> 0 | M54: =J54 -> 0 | R54: =J66 -> 0
A55: 0 | B55: 0 | C55: 0 | D55: Graduate | E55: 0 | F55: 0 | G55: 0 | H55: 0 | I55: 0 | J55: =F55*((G55*H55)/100+(G55*I55)/100) -> 0 | K55: =ROUNDUP(H55+I55,0) -> 0 | M55: =J55 -> 0 | R55: =J67 -> 0
A56: 0 | B56: 0 | C56: 0 | D56: Graduate | E56: 0 | F56: 0 | G56: 0 | H56: 0 | I56: 0 | J56: =F56*((G56*H56)/100+(G56*I56)/100) -> 0 | K56: =ROUNDUP(H56+I56,0) -> 0 | M56: =J56 -> 0 | R56: =J69 -> 0
G57: Sum of Students | J57: =SUM(J53:J56) -> 0
A58: Fringe Benefits for Students
A59: Last Name | B59: First Name | C59: EMPL ID# | D59: Student Type | E59: Insurance Type | F59: Other Support | G59: Hire Date | H59: Fringe Rate | J59: Fringe Benefit Totals | K59: Fringe Rates before 9-1-95 | N59: Fringe Rates after 9-1-95 | Q59: Insurance and Longevity Calculations
E61: None
E62: Employee
D63: None | E63: Spouse
D64: ORP | E64: Children | F64: Yes
D65: TRS | E65: Family | F65: No | K65: Grad | L65: Under | M65: F1 Sum | N65: Grad | O65: Under | P65: F2 Sum | Q65: % I applied | R65: Employee | S65: Spouse | T65: Children | U65: Family | V65: Ins Sum
A66: =A53 -> 0 | B66: 0 | C66: 0 | D66: Graduate | E66: =IF($D53=$D$51,$E$62,$E$61) -> Employee | F66: No | G66: =$J$4 -> 2007-09-01 | H66: =IF(G66>Fringe1End,P66,M66) -> 7.65 | J66: =(J53*H66/100)+V66 -> 0 | K66: =IF(D53=$D$51,F1.Grad,0) -> 6.85 | L66: =IF(D53=$D$52,F1.Under,0) -> 0 | M66: =SUM(K66:L66) -> 6.85 | N66: =IF(D53=$D$51,F2.Grad,0) -> 7.65 | O66: =IF(D53=$D$52,F2.Under,0) -> 0 | P66: =SUM(N66:O66) -> 7.65 | Q66: =IF(F66=$F$64,G53,100) -> 100 | R66: =IF($E66=$E$62,Ins.PT.E*$K53*Q66/100,0) -> 0 | S66: =IF($E66=$E$63,Ins.PT.S*$K53*Q66/100,0) -> 0 | T66: =IF($E66=$E$64,Ins.PT.C*$K53*Q66/100,0) -> 0 | U66: =IF($E66=$E$65,Ins.PT.F*$K53*Q66/100,0) -> 0 | V66: =SUM(R66:U66) -> 0
A67: 0 | B67: 0 | C67: 0 | D67: Graduate | E67: Employee | F67: No | G67: =$J$4 -> 2007-09-01 | H67: =IF(G67>Fringe1End,P67,M67) -> 7.65 | J67: =(J54*H67/100)+V67 -> 0 | K67: =IF(D54=$D$51,F1.Grad,0) -> 6.85 | L67: =IF(D54=$D$52,F1.Under,0) -> 0 | M67: =SUM(K67:L67) -> 6.85 | N67: =IF(D54=$D$51,F2.Grad,0) -> 7.65 | O67: =IF(D54=$D$52,F2.Under,0) -> 0 | P67: =SUM(N67:O67) -> 7.65 | Q67: =IF(F67=$F$64,G54,100) -> 100 | R67: =IF($E67=$E$62,Ins.PT.E*$K54*Q67/100,0) -> 0 | S67: =IF($E67=$E$63,Ins.PT.S*$K54*Q67/100,0) -> 0 | T67: =IF($E67=$E$64,Ins.PT.C*$K54*Q67/100,0) -> 0 | U67: =IF($E67=$E$65,Ins.PT.F*$K54*Q67/100,0) -> 0 | V67: =SUM(R67:U67) -> 0
A68: =A55 -> 0 | B68: 0 | C68: 0 | D68: Graduate | E68: =IF($D55=$D$51,$E$62,$E$61) -> Employee | F68: No | G68: =$J$4 -> 2007-09-01 | H68: =IF(G68>Fringe1End,P68,M68) -> 7.65 | J68: =(J55*H68/100)+V68 -> 0 | K68: =IF(D55=$D$51,F1.Grad,0) -> 6.85 | L68: =IF(D55=$D$52,F1.Under,0) -> 0 | M68: =SUM(K68:L68) -> 6.85 | N68: =IF(D55=$D$51,F2.Grad,0) -> 7.65 | O68: =IF(D55=$D$52,F2.Under,0) -> 0 | P68: =SUM(N68:O68) -> 7.65 | Q68: =IF(F68=$F$64,G55,100) -> 100 | R68: =IF($E68=$E$62,Ins.PT.E*$K55*Q68/100,0) -> 0 | S68: =IF($E68=$E$63,Ins.PT.S*$K55*Q68/100,0) -> 0 | T68: =IF($E68=$E$64,Ins.PT.C*$K55*Q68/100,0) -> 0 | U68: =IF($E68=$E$65,Ins.PT.F*$K55*Q68/100,0) -> 0 | V68: =SUM(R68:U68) -> 0
A69: 0 | B69: 0 | C69: 0 | D69: Graduate | E69: =IF($D56=$D$51,$E$62,$E$61) -> Employee | F69: No | G69: =$J$4 -> 2007-09-01 | H69: =IF(G69>Fringe1End,P69,M69) -> 7.65 | J69: =(J56*H69/100)+V69 -> 0 | K69: =IF(D56=$D$51,F1.Grad,0) -> 6.85 | L69: =IF(D56=$D$52,F1.Under,0) -> 0 | M69: =SUM(K69:L69) -> 6.85 | N69: =IF(D56=$D$51,F2.Grad,0) -> 7.65 | O69: =IF(D56=$D$52,F2.Under,0) -> 0 | P69: =SUM(N69:O69) -> 7.65 | Q69: =IF(F69=$F$64,G56,100) -> 100 | R69: =IF($E69=$E$62,Ins.PT.E*$K56*Q69/100,0) -> 0 | S69: =IF($E69=$E$63,Ins.PT.S*$K56*Q69/100,0) -> 0 | T69: =IF($E69=$E$64,Ins.PT.C*$K56*Q69/100,0) -> 0 | U69: =IF($E69=$E$65,Ins.PT.F*$K56*Q69/100,0) -> 0 | V69: =SUM(R69:U69) -> 0
F70: Sum of Fringe Benefits for Students | J70: =SUM(J66:J69) -> 0 | K70: Grad | L70: Under | M70: F1 Sum | N70: Grad | O70: Under | P70: F2 Sum | Q70: % I applied | R70: Employee | S70: Spouse | T70: Children | U70: Family | V70: Ins Sum
F71: Sum of Students and Fringe Benefits | J71: =J57+J70 -> 0
F72: Sum of Salary | J72: =J26+J57 -> 191579.1
F73: Sum of Fringe Benefits | J73: =J42+J70 -> 55028.9052
F74: Sum of Personnel and Students | J74: =SUM(J72:J73) -> 246608.0052
A75: Travel
A76: Component | B76: Description | F76: Location | G76: Date | H76: Destination | J76: Cost
A78: Transportation | F78: In-State
A79: Meals | F79: Out-of-State
A80: Lodging | F80: Foreign
A81: Travel | B81: Attending national meeting one per year for PI and postdocs | F81: Domestic | J81: 3000
J82: 0
G83: Sum of Travel | J83: =SUM(J81:J82) -> 3000
A84: Capital Expenditures/Equipment D | E84: These items individually are OVER $5,000. Please obtain a vendor quote
A85: Item | C85: Description | G85: Amount | H85: Quantity | J85: Cost
G86: 0 | H86: 0 | J86: =G86*H86 -> 0
G87: 0 | H87: 0 | J87: =G87*H87 -> 0
G88: Sum of Equipment | J88: =SUM(J86:J87) -> 0
A89: Supplies | B89: These items individually are UNDER $5,000.
A90: Item | C90: Description | G90: Amount | H90: Quantity | J90: Cost
A91: reagents | G91: 40 | H91: 1250 | J91: =G91*H91 -> 50000
A92: reagents | G92: 15 | H92: 750 | J92: 11250
A93: Fish | G93: 0.5 | H93: 12000 | J93: 6000
A94: Needles, syringes, gloves, etc. | G94: 1000 | H94: 2 | J94: 2000
G95: 0 | H95: 0 | J95: 0
G96: Sum of Supplies | J96: =SUM(J91:J95) -> 69250
A97: Publication Charges | D97: For the typical activities included in this category, hold mouse over the cell to the left.
A98: Item | C98: Description | G98: Amount | H98: Quantity | J98: Cost
G99: 0 | H99: 0 | J99: =G99*H99 -> 0
G100: 0 | H100: 0 | J100: =G100*H100 -> 0
F101: Sum of Publication/Printing Charges | J101: =SUM(J99:J100) -> 0 | K101: This is the amount that can be charge IDC
A102: Sub-Contracts DÑ | C102: UNT employees can not be recipients of UNT sub-contracts and must be paid in personnel category.
A103: Item | C103: Description | J103: Amount | O103: Year 1
J104: 0 | K104: =IF(J104>25000,25000,J104) -> 0 | L104: 1 | M104: 0 | N104: =SUM(M104,J104) -> 0 | O104: =J104 -> 0
J105: 0 | K105: =IF(J105>25000,25000,J105) -> 0 | L105: 1 | M105: 0 | N105: =SUM(M105,J105) -> 0 | O105: =J105 -> 0
F106: Sum of Sub-Contracts | J106: =SUM(J104:J105) -> 0 | K106: =SUM(K104:K105) -> 0 | L106: Year | M106: Previous | N106: Current
A107: Participant Support Costs D
A108: Item | C108: Description | G108: Amount | H108: Quantity | J108: Cost
A110: Scholarship
A111: Fellowship
A112: Travel
A113: Subsistence
A114: Other
G115: 0 | H115: 0 | J115: =G115*H115 -> 0
G116: 0 | H116: 0 | J116: =G116*H116 -> 0
H117: Sum of Participant Support Costs | J117: =SUM(J115:J116) -> 0
A118: Other-Graduate Student Tuition | E118: Calculate Grad Tuition in this Budget Category. IDC is not assessed on tuition.
A119: Item | C119: Description | G119: Amount | H119: Quantity | J119: Cost
G125: 0 | H125: 0 | J125: =G125*H125 -> 0
G126: 0 | H126: 0 | J126: =G126*H126 -> 0
H127: Sum of Other-Graduate Student Tuition | J127: =SUM(J125:J126) -> 0
A128: Other-All Other Costs except Graduate Tuition DÑ
A129: Item | C129: Description | G129: Amount | H129: Quantity | J129: Cost
A131: Patient Care Charges | K131: This is the amount that can be charge IDC
A132: Off-site Facility Rental
A133: (User Defined)
G134: 0 | H134: 0 | J134: =G134*H134 -> 0 | K134: =IF(OR(A134=$A$131,A134=$A$132),0,J134) -> 0
G135: 0 | H135: 0 | J135: =G135*H135 -> 0 | K135: =IF(OR(A135=$A$131,A135=$A$132),0,J135) -> 0
H136: Sum of Other | J136: =SUM(J134:J135) -> 0 | K136: =SUM(K134:K135) -> 0
A137: Indirect Costs
A138: IDC Type | C138: IDC rate | D138: Documentation Location | F138: Modified Total Direct Costs (Base for F&A) | J138: =(J74+K136+J83+J96+J101+K106) -> 318858.0052
A140: Research | C140: =IF($A$145=A140,IDC.R,0) -> 0
A141: On-Campus Other | C141: =IF($A$145=A141,IDC.On,0) -> 0
A142: Instruction | C142: =IF($A$145=A142,IDC.I,0) -> 0 | D142: =FALSE() -> FALSE
A143: Off-Campus | C143: =IF($A$145=A143,IDC.Off,0) -> 0 | D143: =TRUE() -> TRUE
A144: Agency Restricted | C144: =SUM(C140:C143) -> 0 | D144: =IF(A145=A144,"?",C144) -> ?
A145: Agency Restricted | C145: 10 | D145: https://docs.gatesfoundation.org/documents/indirect_cost_policy.pdf | G145: IDC Amount on TDC | J145: =J146*C145/100 -> 31885.80052
F146: Total Direct Costs (Sponsor Direct) | J146: =SUM(J136,J117,J101,J106,J96,J88,J83,J74,J127) -> 318858.0052
E147: ="Total Amount Requested for "&J1&" Budget" -> Total Amount Requested for Year 1 Budget | J147: =SUM(J145:J146) -> 350743.8057
A149: University of North Texas, Office of Grants & Contracts Administration

Sheet Year 2
A1: File Number: | B1: ='Year 1'!B1 -> 20-0611 | C1: BB version: | E1: ='Year 1'!E1 -> FY 2020 | F1: This Budget is prepared for: | I1: ='Year 1'!I1 -> Gates Foundation | J1: Year 2
A2: Project Title: | B2: ='Year 1'!B2:J2 -> Genome-wide Knockdown Screens of Oocyte Maturation
A3: Budget Prepared by: | C3: ='Year 1'!C3:D3 -> Pudur Jagadeeswaran | E3: Phone Number: | F3: ='Year 1'!F3 -> 0 | G3: E-mail: | H3: ='Year 1'!H3:J3 -> 0
A4: Project Budget | F4: This Budget was drafted on: | I4: ='Year 1'!I4 -> 00:00:00 | J4: ='Year 1'!J4 -> 2007-09-01
A5: Personnel | H5: Number of Months (Academic) | I5: Number of Months (Summer) | M5: Personnel | R5: Fringe
A6: Last Name | B6: First Name | C6: EMPL ID# | D6: Employee Type | E6: Responsibility | F6: Monthly Rate | G6: Percent Effort (%) | J6: Project Salary | K6: Rounded Number of Months | M6: Year 1 | N6: Year 2 | R6: Year 1 | S6: Year 2
E8: PI
E9: Co-PI
E10: Senior Personnel
E11: Research Assistant
E12: Teaching Assistant
C13: =FALSE() -> FALSE | E13: Investigator
C14: =TRUE() -> TRUE | D14: PT Staff | E14: Coordinator
D15: PT Faculty | E15: Technician
D16: Hourly | E16: Post Doc
D17: Faculty | E17: Clerical
D18: Staff | E18: Programmer
A19: ='Year 1'!A19 -> Jagadeeswaran | B19: ='Year 1'!B19 -> Pudur | C19: ='Year 1'!C19 -> 10523515 | D19: ='Year 1'!D19 -> Faculty | E19: ='Year 1'!E19 -> PI | F19: ='Year 1'!F19*(100+Living)/100 -> 19493.78 | G19: 95 | H19: 0 | I19: 3 | J19: =F19*((G19*H19)/100+(G19*I19)/100) -> 55557.273 | K19: =ROUNDUP(H19+I19,0) -> 3 | M19: ='Year 1'!M19 -> 53939.1 | N19: =J19 -> 55557.273 | R19: ='Year 1'!R19 -> 11682.9252 | S19: =J39 -> 11928.8875
A20: ='Year 1'!A20 -> Iyer | B20: ='Year 1'!B20 -> Neha | C20: ='Year 1'!C20 -> 0 | D20: ='Year 1'!D20 -> Staff | E20: ='Year 1'!E20 -> Post Doc | F20: ='Year 1'!F20*(100+Living)/100 -> 4233.3 | G20: 100 | H20: 9 | I20: 3 | J20: =F20*((G20*H20)/100+(G20*I20)/100) -> 50799.6 | K20: 12 | M20: ='Year 1'!M20 -> 49320 | N20: 50799.6 | R20: ='Year 1'!R20 -> 11682.9252 | S20: =J39 -> 11928.8875
A21: ='Year 1'!A21 -> Raman | B21: ='Year 1'!B21 -> Revathi | C21: ='Year 1'!C21 -> 0 | D21: ='Year 1'!D21 -> Staff | E21: ='Year 1'!E21 -> Post Doc | F21: ='Year 1'!F21*(100+Living)/100 -> 4233.3 | G21: 100 | H21: 9 | I21: 3 | J21: 50799.6 | K21: 12 | M21: ='Year 1'!M21 -> 49320 | N21: 50799.6 | R21: ='Year 1'!R21 -> 14969.82 | S21: =J40 -> 15193.9794
A22: ='Year 1'!A22 -> Sun | B22: ='Year 1'!B22 -> Kelsey | C22: ='Year 1'!C22 -> 0 | D22: ='Year 1'!D22 -> Staff | E22: ='Year 1'!E22 -> Research Technician | F22: ='Year 1'!F22*(100+Living)/100 -> 3347.5 | G22: 100 | H22: 9 | I22: 3 | J22: 40170 | K22: 12 | M22: ='Year 1'!M22 -> 39000 | N22: 40170 | R22: ='Year 1'!R22 -> 14969.82 | S22: =J41 -> 15193.9794
A23: ='Year 1'!A23 -> 0 | B23: ='Year 1'!B23 -> 0 | C23: ='Year 1'!C23 -> 0 | D23: ='Year 1'!D23 -> 0 | E23: ='Year 1'!E23 -> 0 | F23: ='Year 1'!F23*(100+Living)/100 -> 0 | G23: 0 | H23: 0 | I23: 0 | J23: =F23*((G23*H23)/100+(G23*I23)/100) -> 0 | K23: =ROUNDUP(H23+I23,0) -> 0 | M23: ='Year 1'!M23 -> 0 | N23: =J23 -> 0 | R23: ='Year 1'!R23 -> 13406.34 | S23: =J42 -> 13583.595
A24: ='Year 1'!A24 -> 0 | B24: ='Year 1'!B24 -> 0 | C24: ='Year 1'!C24 -> 0 | D24: ='Year 1'!D24 -> 0 | E24: ='Year 1'!E24 -> 0 | F24: ='Year 1'!F24*(100+Living)/100 -> 0 | G24: 0 | H24: 0 | I24: 0 | J24: =F24*((G24*H24)/100+(G24*I24)/100) -> 0 | K24: =ROUNDUP(H24+I24,0) -> 0 | M24: ='Year 1'!M24 -> 0 | N24: =J24 -> 0 | R24: ='Year 1'!R24 -> 0 | S24: =J43 -> 0
A25: ='Year 1'!A25 -> 0 | B25: ='Year 1'!B25 -> 0 | C25: ='Year 1'!C25 -> 0 | D25: ='Year 1'!D25 -> 0 | E25: ='Year 1'!E25 -> 0 | F25: ='Year 1'!F25*(100+Living)/100 -> 0 | G25: 0 | H25: 0 | I25: 0 | J25: 0 | K25: 0 | M25: ='Year 1'!M25 -> 0 | N25: 0 | R25: ='Year 1'!R25 -> 0 | S25: =J45 -> 0
A26: 0 | B26: 0 | C26: 0 | D26: 0 | E26: 0 | F26: 0 | G26: 0 | H26: 0 | I26: 0 | J26: =F26*((G26*H26)/100+(G26*I26)/100) -> 0 | K26: =ROUNDUP(H26+I26,0) -> 0 | M26: ='Year 1'!M25 -> 0 | N26: =J26 -> 0 | R26: ='Year 1'!R25 -> 0 | S26: =J45 -> 0
A27: 0 | B27: 0 | C27: 0 | D27: 0 | E27: 0 | F27: 0 | G27: 0 | H27: 0 | I27: 0 | J27: =F27*((G27*H27)/100+(G27*I27)/100) -> 0 | K27: =ROUNDUP(H27+I27,0) -> 0 | M27: ='Year 1'!M25 -> 0 | N27: =J27 -> 0 | R27: ='Year 1'!R25 -> 0 | S27: =J46 -> 0
A28: 0 | B28: 0 | C28: 0 | D28: 0 | E28: 0 | F28: 0 | G28: 0 | H28: 0 | I28: 0 | J28: =F28*((G28*H28)/100+(G28*I28)/100) -> 0 | K28: =ROUNDUP(H28+I28,0) -> 0 | M28: ='Year 1'!M25 -> 0 | N28: =J28 -> 0 | R28: ='Year 1'!R25 -> 0 | S28: =J47 -> 0
A29: 0 | B29: 0 | C29: 0 | D29: 0 | E29: 0 | F29: 0 | G29: 0 | H29: 0 | I29: 0 | J29: =F29*((G29*H29)/100+(G29*I29)/100) -> 0 | K29: 0 | M29: ='Year 1'!M26 -> 0 | N29: 0 | R29: ='Year 1'!R26 -> 0 | S29: =J49 -> 0
G30: Sum of Personnel | J30: =SUM(J19:J29) -> 197326.473
A31: Fringe Benefits for Personnel
A32: Last Name | B32: First Name | C32: EMPL ID# | D32: Retirement | E32: Insurance Type | F32: Other Support | G32: Hire Date | H32: Fringe Rate | J32: Fringe Benefit Totals | K32: Fringe Rates before 9-1-95 | O32: Fringe Rates after 9-1-95 | S32: Insurance and Longevity Calculations
E34: None
E35: Employee
D36: Hourly | E36: Spouse
D37: ORP | E37: Children | F37: Yes
D38: TRS | E38: Family | F38: No | K38: Hourly | L38: ORP | M38: TRS | N38: F1 Sum | O38: Hourly | P38: ORP | Q38: TRS | R38: F2 Sum | S38: % I applied | T38: Employee | U38: Spouse | V38: Children | W38: Family | X38: Ins Sum
A39: ='Year 1'!A35 -> Jagadeeswaran | B39: ='Year 1'!B35 -> Pudur | C39: ='Year 1'!C35 -> 10523515 | D39: ='Year 1'!D35 -> ORP | E39: ='Year 1'!E35 -> Family | F39: ='Year 1'!F35 -> Yes | G39: ='Year 1'!G35 -> 2007-09-01 | H39: =IF(G39>Fringe1End,R39,N39) -> 15.2 | J39: =(J19*H39/100)+X39 -> 11928.8875 | K39: =IF(D39=$D$36,F1.Hourly,0) -> 0 | L39: =IF(D39=$D$37,F1.FS.ORP,0) -> 21.47 | M39: =IF(D39=$D$38,F1.FS.TRS,0) -> 0 | N39: =SUM(K39:M39) -> 21.47 | O39: =IF(D39=$D$36,F2.Hourly,0) -> 0 | P39: =IF(D39=$D$37,F2.FS.ORP,0) -> 15.2 | Q39: =IF(D39=$D$38,F2.FS.TRS,0) -> 0 | R39: =SUM(O39:Q39) -> 15.2 | S39: =IF(F39=$F$37,G19,100) -> 95 | T39: =IF($E39=$E$35,IF($D19=$D$14,Ins.PT.E*$K19*S39/100,IF($D19=$D$15,Ins.PT.E*$K19*S39/100,Ins.E*$K19*S39/100)),0) -> 0 | U39: =IF($E39=$E$36,IF($D19=$D$14,Ins.PT.S*$K19*S39/100,IF($D19=$D$15,Ins.PT.S*$K19*S39/100,Ins.S*$K19*S39/100)),0) -> 0 | V39: =IF($E39=$E$37,IF($D19=$D$14,Ins.PT.C*$K19*S39/100,IF($D19=$D$15,Ins.PT.C*$K19*S39/100,Ins.C*$K19*S39/100)),0) -> 0 | W39: =IF($E39=$E$38,IF($D19=$D$14,Ins.PT.F*$K19*S39/100,IF($D19=$D$15,Ins.PT.F*$K19*S39/100,Ins.F*$K19*S39/100)),0) -> 3484.182 | X39: =IF(D19=$D$18,ROUNDDOWN(DAYS360(G39,$J$4)/(360*Long.Per),0)*20*K19*G19/100,0)+SUM(T39:W39) -> 3484.182 | Z39: =J39/J19 -> 0.2147133373
A40: ='Year 1'!A36 -> Iyer | B40: ='Year 1'!B36 -> Neha | C40: ='Year 1'!C36 -> 0 | D40: ='Year 1'!D36 -> TRS | E40: ='Year 1'!E36 -> Employee | F40: ='Year 1'!F36 -> Yes | G40: ='Year 1'!G36 -> 2007-09-01 | H40: 15.15 | J40: 15193.9794 | K40: 0 | L40: 0 | M40: 20.7 | N40: 20.7 | O40: 0 | P40: 0 | Q40: 15.15 | R40: 15.15 | S40: 100 | T40: 7497.84 | U40: 0 | V40: 0 | W40: 0 | X40: 7497.84 | Z40: =J40/J20 -> 0.2990964378
A41: ='Year 1'!A37 -> Raman | B41: ='Year 1'!B37 -> Revathi | C41: ='Year 1'!C37 -> 0 | D41: ='Year 1'!D37 -> TRS | E41: ='Year 1'!E37 -> Employee | F41: ='Year 1'!F37 -> Yes | G41: ='Year 1'!G37 -> 2007-09-01 | H41: 15.15 | J41: 15193.9794 | K41: 0 | L41: 0 | M41: 20.7 | N41: 20.7 | O41: 0 | P41: 0 | Q41: 15.15 | R41: 15.15 | S41: 100 | T41: 7497.84 | U41: 0 | V41: 0 | W41: 0 | X41: 7497.84 | Z41: 0.2990964378
A42: ='Year 1'!A38 -> Sun | B42: ='Year 1'!B38 -> Kelsey | C42: ='Year 1'!C38 -> 0 | D42: ='Year 1'!D38 -> TRS | E42: ='Year 1'!E38 -> Employee | F42: ='Year 1'!F38 -> Yes | G42: ='Year 1'!G38 -> 2007-09-01 | H42: 15.15 | J42: 13583.595 | K42: 0 | L42: 0 | M42: 20.7 | N42: 20.7 | O42: 0 | P42: 0 | Q42: 15.15 | R42: 15.15 | S42: 100 | T42: 7497.84 | U42: 0 | V42: 0 | W42: 0 | X42: 7497.84 | Z42: 0.3381527259
A43: ='Year 1'!A39 -> 0 | B43: ='Year 1'!B39 -> 0 | C43: ='Year 1'!C39 -> 0 | D43: ='Year 1'!D39 -> TRS | E43: ='Year 1'!E39 -> Employee | F43: ='Year 1'!F39 -> Yes | G43: ='Year 1'!G39 -> 2007-09-01 | H43: =IF(G43>Fringe1End,R43,N43) -> 15.15 | J43: 0 | K43: =IF(D43=$D$36,F1.Hourly,0) -> 0 | L43: =IF(D43=$D$37,F1.FS.ORP,0) -> 0 | M43: =IF(D43=$D$38,F1.FS.TRS,0) -> 20.7 | N43: =SUM(K43:M43) -> 20.7 | O43: =IF(D43=$D$36,F2.Hourly,0) -> 0 | P43: =IF(D43=$D$37,F2.FS.ORP,0) -> 0 | Q43: =IF(D43=$D$38,F2.FS.TRS,0) -> 15.15 | R43: =SUM(O43:Q43) -> 15.15 | S43: 0 | T43: 0 | U43: 0 | V43: 0 | W43: 0 | X43: 0
A44: ='Year 1'!A40 -> 0 | B44: ='Year 1'!B40 -> 0 | C44: ='Year 1'!C40 -> 0 | D44: ='Year 1'!D40 -> TRS | E44: ='Year 1'!E40 -> Employee | F44: ='Year 1'!F40 -> Yes | G44: ='Year 1'!G40 -> 2007-09-01 | H44: =IF(G44>Fringe1End,R44,N44) -> 15.15 | J44: 0 | K44: =IF(D44=$D$36,F1.Hourly,0) -> 0 | L44: =IF(D44=$D$37,F1.FS.ORP,0) -> 0 | M44: =IF(D44=$D$38,F1.FS.TRS,0) -> 20.7 | N44: =SUM(K44:M44) -> 20.7 | O44: =IF(D44=$D$36,F2.Hourly,0) -> 0 | P44: =IF(D44=$D$37,F2.FS.ORP,0) -> 0 | Q44: =IF(D44=$D$38,F2.FS.TRS,0) -> 15.15 | R44: =SUM(O44:Q44) -> 15.15 | S44: 0 | T44: 0 | U44: 0 | V44: 0 | W44: 0 | X44: 0
A45: ='Year 1'!A41 -> 0 | B45: ='Year 1'!B41 -> 0 | C45: ='Year 1'!C41 -> 0 | D45: ='Year 1'!D41 -> TRS | E45: ='Year 1'!E41 -> Employee | F45: ='Year 1'!F41 -> No | G45: ='Year 1'!G41 -> 2007-09-01 | H45: 15.15 | J45: 0 | K45: 0 | L45: 0 | M45: 20.7 | N45: 20.7 | O45: 0 | P45: 0 | Q45: 15.15 | R45: 15.15 | S45: 100 | T45: 0 | U45: 0 | V45: 0 | W45: 0 | X45: 0
A46: =A26 -> 0 | B46: 0 | C46: 0 | D46: =IF($D26=$D$16,$D$36,$D$38) -> TRS | E46: =IF($D26=$D$16,$E$34,$E$35) -> Employee | F46: No | G46: =$J$4 -> 2007-09-01 | H46: =IF(G46>Fringe1End,R46,N46) -> 15.15 | J46: 0 | K46: =IF(D46=$D$36,F1.Hourly,0) -> 0 | L46: =IF(D46=$D$37,F1.FS.ORP,0) -> 0 | M46: =IF(D46=$D$38,F1.FS.TRS,0) -> 20.7 | N46: =SUM(K46:M46) -> 20.7 | O46: =IF(D46=$D$36,F2.Hourly,0) -> 0 | P46: =IF(D46=$D$37,F2.FS.ORP,0) -> 0 | Q46: =IF(D46=$D$38,F2.FS.TRS,0) -> 15.15 | R46: =SUM(O46:Q46) -> 15.15 | S46: 100 | T46: 0 | U46: 0 | V46: 0 | W46: 0 | X46: 0
A47: 0 | B47: 0 | C47: 0 | D47: =IF($D27=$D$16,$D$36,$D$38) -> TRS | E47: =IF($D27=$D$16,$E$34,$E$35) -> Employee | F47: No | G47: =$J$4 -> 2007-09-01 | H47: =IF(G47>Fringe1End,R47,N47) -> 15.15 | J47: 0 | K47: =IF(D47=$D$36,F1.Hourly,0) -> 0 | L47: =IF(D47=$D$37,F1.FS.ORP,0) -> 0 | M47: =IF(D47=$D$38,F1.FS.TRS,0) -> 20.7 | N47: =SUM(K47:M47) -> 20.7 | O47: =IF(D47=$D$36,F2.Hourly,0) -> 0 | P47: =IF(D47=$D$37,F2.FS.ORP,0) -> 0 | Q47: =IF(D47=$D$38,F2.FS.TRS,0) -> 15.15 | R47: =SUM(O47:Q47) -> 15.15 | S47: 100 | T47: 0 | U47: 0 | V47: 0 | W47: 0 | X47: 0
A48: =A28 -> 0 | B48: 0 | C48: 0 | D48: =IF($D28=$D$16,$D$36,$D$38) -> TRS | E48: =IF($D28=$D$16,$E$34,$E$35) -> Employee | F48: No | G48: =$J$4 -> 2007-09-01 | H48: =IF(G48>Fringe1End,R48,N48) -> 15.15 | J48: 0 | K48: =IF(D48=$D$36,F1.Hourly,0) -> 0 | L48: =IF(D48=$D$37,F1.FS.ORP,0) -> 0 | M48: =IF(D48=$D$38,F1.FS.TRS,0) -> 20.7 | N48: =SUM(K48:M48) -> 20.7 | O48: =IF(D48=$D$36,F2.Hourly,0) -> 0 | P48: =IF(D48=$D$37,F2.FS.ORP,0) -> 0 | Q48: =IF(D48=$D$38,F2.FS.TRS,0) -> 15.15 | R48: =SUM(O48:Q48) -> 15.15 | S48: 100 | T48: 0 | U48: 0 | V48: 0 | W48: 0 | X48: 0
A49: 0 | B49: 0 | C49: 0 | D49: =IF($D29=$D$16,$D$36,$D$38) -> TRS | E49: =IF($D29=$D$16,$E$34,$E$35) -> Employee | F49: No | G49: =$J$4 -> 2007-09-01 | H49: 15.15 | J49: 0 | K49: 0 | L49: 0 | M49: 20.7 | N49: 20.7 | O49: 0 | P49: 0 | Q49: 15.15 | R49: 15.15 | S49: 100 | T49: 0 | U49: 0 | V49: 0 | W49: 0 | X49: 0
F50: Sum of Fringe Benefits for Personnel | J50: =SUM(J39:J49) -> 55900.4413 | K50: Hourly | L50: ORP | M50: TRS | N50: F1 Sum | O50: Hourly | P50: ORP | Q50: TRS | R50: F2 Sum | S50: % I applied | T50: Employee | U50: Spouse | V50: Children | W50: Family | X50: Ins Sum
F51: Sum of Personnel and Fringe Benefits | J51: =J30+J50 -> 253226.9143
A52: Students | H52: Number of Months (Academic) | I52: Number of Months (Summer) | M52: Students | R52: Fringe
A53: Last Name | B53: First Name | C53: EMPL ID# | D53: Student Type | E53: Responsibility | F53: Monthly Rate | G53: Percent Effort (%) | J53: Project Salary | K53: Rounded Number of Months | M53: Year 1 | N53: Year 2 | R53: Year 1 | S53: Year 2
D56: =FALSE() -> FALSE
D57: =TRUE() -> TRUE
E58: Clerical
D59: Graduate | E59: Programmer
D60: Undergrad | E60: Research Assistant
A61: ='Year 1'!A53 -> 0 | B61: ='Year 1'!B53 -> 0 | C61: ='Year 1'!C53 -> 0 | D61: ='Year 1'!D53 -> Graduate | E61: ='Year 1'!E53 -> 0 | F61: ='Year 1'!F53*(100+Living)/100 -> 0 | G61: 0 | H61: 0 | I61: 0 | J61: =F61*((G61*H61)/100+(G61*I61)/100) -> 0 | K61: =ROUNDUP(H61+I61,0) -> 0 | M61: ='Year 1'!M53 -> 0 | N61: =J61 -> 0 | R61: ='Year 1'!R53 -> 0 | S61: =J76 -> 0
A62: ='Year 1'!A54 -> 0 | B62: ='Year 1'!B54 -> 0 | C62: ='Year 1'!C54 -> 0 | D62: ='Year 1'!D54 -> Graduate | E62: ='Year 1'!E54 -> 0 | F62: ='Year 1'!F54*(100+Living)/100 -> 0 | G62: 0 | H62: 0 | I62: 0 | J62: 0 | K62: 0 | M62: ='Year 1'!M54 -> 0 | N62: 0 | R62: ='Year 1'!R54 -> 0 | S62: =J76 -> 0
A63: ='Year 1'!A55 -> 0 | B63: ='Year 1'!B55 -> 0 | C63: ='Year 1'!C55 -> 0 | D63: ='Year 1'!D55 -> Graduate | E63: ='Year 1'!E55 -> 0 | F63: ='Year 1'!F55*(100+Living)/100 -> 0 | G63: 0 | H63: 0 | I63: 0 | J63: 0 | K63: 0 | M63: ='Year 1'!M55 -> 0 | N63: 0 | R63: ='Year 1'!R55 -> 0 | S63: =J77 -> 0
A64: ='Year 1'!A56 -> 0 | B64: ='Year 1'!B56 -> 0 | C64: ='Year 1'!C56 -> 0 | D64: ='Year 1'!D56 -> Graduate | E64: ='Year 1'!E56 -> 0 | F64: ='Year 1'!F56*(100+Living)/100 -> 0 | G64: 0 | H64: 0 | I64: 0 | J64: 0 | K64: 0 | M64: ='Year 1'!M56 -> 0 | N64: 0 | R64: ='Year 1'!R56 -> 0 | S64: =J79 -> 0
A65: 0 | B65: 0 | C65: 0 | D65: Graduate | E65: 0 | F65: 0 | G65: 0 | H65: 0 | I65: 0 | J65: 0 | K65: 0 | M65: 0 | N65: 0 | R65: 0 | S65: =J79 -> 0
A66: 0 | B66: 0 | C66: 0 | D66: Graduate | E66: 0 | F66: 0 | G66: 0 | H66: 0 | I66: 0 | J66: 0 | K66: 0 | M66: 0 | N66: 0 | R66: 0 | S66: =J81 -> 0
G67: Sum of Students | J67: =SUM(J61:J66) -> 0
A68: Fringe Benefits for Students
A69: Last Name | B69: First Name | C69: EMPL ID# | D69: Student Type | E69: Insurance Type | F69: Other Support | G69: Hire Date | H69: Fringe Rate | J69: Fringe Benefit Totals | K69: Fringe Rates before 9-1-95 | N69: Fringe Rates after 9-1-95 | Q69: Insurance and Longevity Calculations
E71: None
E72: Employee
D73: None | E73: Spouse
D74: ORP | E74: Children | F74: Yes
D75: TRS | E75: Family | F75: No | K75: Grad | L75: Under | M75: F1 Sum | N75: Grad | O75: Under | P75: F2 Sum | Q75: % I applied | R75: Employee | S75: Spouse | T75: Children | U75: Family | V75: Ins Sum
A76: ='Year 1'!A66 -> 0 | B76: ='Year 1'!B66 -> 0 | C76: ='Year 1'!C66 -> 0 | D76: ='Year 1'!D66 -> Graduate | E76: ='Year 1'!E66 -> Employee | F76: ='Year 1'!F66 -> No | G76: ='Year 1'!G66 -> 2007-09-01 | H76: =IF(G76>Fringe1End,P76,M76) -> 7.65 | J76: =(J61*H76/100)+V76 -> 0 | K76: =IF(D61=$D$59,F1.Grad,0) -> 6.85 | L76: =IF(D61=$D$60,F1.Under,0) -> 0 | M76: =SUM(K76:L76) -> 6.85 | N76: =IF(D61=$D$59,F2.Grad,0) -> 7.65 | O76: =IF(D61=$D$60,F2.Under,0) -> 0 | P76: =SUM(N76:O76) -> 7.65 | Q76: =IF(F76=$F$74,G61,100) -> 100 | R76: =IF($E76=$E$72,Ins.PT.E*$K61*Q76/100,0) -> 0 | S76: =IF($E76=$E$73,Ins.PT.S*$K61*Q76/100,0) -> 0 | T76: =IF($E76=$E$74,Ins.PT.C*$K61*Q76/100,0) -> 0 | U76: =IF($E76=$E$75,Ins.PT.F*$K61*Q76/100,0) -> 0 | V76: =SUM(R76:U76) -> 0
A77: ='Year 1'!A67 -> 0 | B77: ='Year 1'!B67 -> 0 | C77: ='Year 1'!C67 -> 0 | D77: ='Year 1'!D67 -> Graduate | E77: ='Year 1'!E67 -> Employee | F77: ='Year 1'!F67 -> No | G77: ='Year 1'!G67 -> 2007-09-01 | H77: 7.65 | J77: 0 | K77: 6.85 | L77: 0 | M77: 6.85 | N77: 7.65 | O77: 0 | P77: 7.65 | Q77: 100 | R77: 0 | S77: 0 | T77: 0 | U77: 0 | V77: 0
A78: ='Year 1'!A68 -> 0 | B78: ='Year 1'!B68 -> 0 | C78: ='Year 1'!C68 -> 0 | D78: ='Year 1'!D68 -> Graduate | E78: ='Year 1'!E68 -> Employee | F78: ='Year 1'!F68 -> No | G78: ='Year 1'!G68 -> 2007-09-01 | H78: 7.65 | J78: 0 | K78: 6.85 | L78: 0 | M78: 6.85 | N78: 7.65 | O78: 0 | P78: 7.65 | Q78: 100 | R78: 0 | S78: 0 | T78: 0 | U78: 0 | V78: 0
A79: ='Year 1'!A69 -> 0 | B79: ='Year 1'!B69 -> 0 | C79: ='Year 1'!C69 -> 0 | D79: ='Year 1'!D69 -> Graduate | E79: ='Year 1'!E69 -> Employee | F79: ='Year 1'!F69 -> No | G79: ='Year 1'!G69 -> 2007-09-01 | H79: 7.65 | J79: 0 | K79: 6.85 | L79: 0 | M79: 6.85 | N79: 7.65 | O79: 0 | P79: 7.65 | Q79: 100 | R79: 0 | S79: 0 | T79: 0 | U79: 0 | V79: 0
A80: =A65 -> 0 | B80: 0 | C80: 0 | D80: Graduate | E80: =IF($D65=$D$59,$E$72,$E$71) -> Employee | F80: No | G80: =$J$4 -> 2007-09-01 | H80: 7.65 | J80: 0 | K80: 6.85 | L80: 0 | M80: 6.85 | N80: 7.65 | O80: 0 | P80: 7.65 | Q80: 100 | R80: 0 | S80: 0 | T80: 0 | U80: 0 | V80: 0
A81: 0 | B81: 0 | C81: 0 | D81: Graduate | E81: =IF($D66=$D$59,$E$72,$E$71) -> Employee | F81: No | G81: =$J$4 -> 2007-09-01 | H81: 7.65 | J81: 0 | K81: 6.85 | L81: 0 | M81: 6.85 | N81: 7.65 | O81: 0 | P81: 7.65 | Q81: 100 | R81: 0 | S81: 0 | T81: 0 | U81: 0 | V81: 0
F82: Sum of Fringe Benefits for Students | J82: =SUM(J76:J81) -> 0 | K82: Grad | L82: Under | M82: F1 Sum | N82: Grad | O82: Under | P82: F2 Sum | Q82: % I applied | R82: Employee | S82: Spouse | T82: Children | U82: Family | V82: Ins Sum
F83: Sum of Students and Fringe Benefits | J83: =J67+J82 -> 0
F84: Sum of Salary | J84: =J30+J67 -> 197326.473
F85: Sum of Fringe Benefits | J85: =J50+J82 -> 55900.4413
F86: Sum of Personnel and Students | J86: =SUM(J84:J85) -> 253226.9143
A87: Travel
A88: Component | B88: Description | F88: Location | G88: Date | H88: Destination | J88: Cost
A90: Transportation | F90: In-State
A91: Meals | F91: Out-of-State
A92: Lodging | F92: Foreign
A93: Travel | B93: Attending national meeting one per year for PI and postdocs | F93: Domestic | J93: 3000
J94: 0
G95: Sum of Travel | J95: =SUM(J93:J94) -> 3000
A96: Capital Expenditures/Equipment D | E96: These items individually are OVER $5,000.
A97: Item | C97: Description | G97: Amount | H97: Quantity | J97: Cost
G98: 0 | H98: 0 | J98: =G98*H98 -> 0
G99: 0 | H99: 0 | J99: =G99*H99 -> 0
G100: Sum of Equipment | J100: =SUM(J98:J99) -> 0
A101: Supplies | B101: These items individually are UNDER $5,000.
A102: Item | C102: Description | G102: Amount | H102: Quantity | J102: Cost
A103: reagents | G103: 40 | H103: 1250 | J103: =G103*H103 -> 50000
A104: reagents | G104: 15 | H104: 750 | J104: 11250
A105: Fish | G105: 0.5 | H105: 12000 | J105: 6000
A106: Needles, syringes, gloves, etc. | G106: 1000 | H106: 2 | J106: 2000
G107: 0 | H107: 0 | J107: 0
G108: 0 | H108: 0 | J108: 0
G109: Sum of Supplies | J109: =SUM(J103:J108) -> 69250
A110: Publication Charges | D110: For the typical activities included in this category, hold mouse over the cell to the left.
A111: Item | C111: Description | G111: Price | H111: Quantity | J111: Cost
G112: 0 | H112: 0 | J112: =G112*H112 -> 0
G113: 0 | H113: 0 | J113: =G113*H113 -> 0
F114: Sum of Publication/Printing Charges | J114: =SUM(J112:J113) -> 0 | K114: This is the amount that can be charge IDC
A115: Sub-Contracts DÑ | C115: UNT employees can not be recipients of UNT sub-contracts and must be paid in personnel category.
A116: Item | C116: Description | J116: Amount | O116: Year 1 | P116: Year 2
A117: ='Year 1'!A104:B104 -> 0 | C117: ='Year 1'!C104:H104 -> 0 | J117: 0 | K117: =IF(M117+J117>25000,IF(M117>=25000,0,25000-M117),J117) -> 0 | L117: 1 | M117: ='Year 1'!N104 -> 0 | N117: =SUM(M117,J117) -> 0 | O117: ='Year 1'!O104 -> 0 | P117: =J117 -> 0
A118: ='Year 1'!A105:B105 -> 0 | C118: ='Year 1'!C105:H105 -> 0 | J118: 0 | K118: =IF(M118+J118>25000,IF(M118>=25000,0,25000-M118),J118) -> 0 | L118: 1 | M118: ='Year 1'!N105 -> 0 | N118: =SUM(M118,J118) -> 0 | O118: ='Year 1'!O105 -> 0 | P118: =J118 -> 0
A119: 0 | J119: 0 | K119: =IF(M119+J119>25000,IF(M119>=25000,0,25000-M119),J119) -> 0 | L119: 2 | M119: 0 | N119: =SUM(M119,J119) -> 0 | O119: 0 | P119: =J119 -> 0
F120: Sum of Sub-Contracts | J120: =SUM(J117:J119) -> 0 | K120: =SUM(K117:K119) -> 0 | L120: Year | M120: Previous | N120: Current
A121: Participant Support Costs D
A122: Item | C122: Description | G122: Amount | H122: Quantity | J122: Cost
A124: Scholarship
A125: Fellowship
A126: Travel
A127: Subsistence
A128: Other
G129: 0 | H129: 0 | J129: =G129*H129 -> 0
G130: 0 | H130: 0 | J130: =G130*H130 -> 0
H131: Sum of Participant Support Costs | J131: =SUM(J129:J130) -> 0
A132: Other-Graduate Student Tuition D | E132: Calculate Grad Tuition in this Budget Category. IDC is not assessed on tuition.
A133: Item | C133: Description | G133: Amount | H133: Quantity | J133: Cost
G142: 0 | H142: 0 | J142: =G142*H142 -> 0
G143: 0 | H143: 0 | J143: =G143*H143 -> 0
H144: Sum of Other-Graduate Student Tuition | J144: =SUM(J142:J143) -> 0
A145: Other-All Other Costs except Graduate Tuition DÑ
A146: Item | C146: Description | G146: Price | H146: Quantity | J146: Cost
A148: Patient Care Charges | K148: This is the amount that can be charge IDC
A149: Off-site Facility Rental
A150: (User Defined)
G151: 0 | H151: 0 | J151: =G151*H151 -> 0 | K151: =IF(OR(A151=$A$148,A151=$A$149),0,J151) -> 0
G152: 0 | H152: 0 | J152: =G152*H152 -> 0 | K152: =IF(OR(A152=$A$148,A152=$A$149),0,J152) -> 0
H153: Sum of Other | J153: =SUM(J151:J152) -> 0 | K153: =SUM(K151:K152) -> 0
A154: Indirect Costs
A155: IDC Type | C155: IDC rate | D155: Documentation Location | F155: Modified Total Direct Costs (Base for F&A) | J155: =(J86+J95+J109+J114+K120+K153) -> 325476.9143
A156: ='Year 1'!A145:B145 -> Agency Restricted | C156: ='Year 1'!C145 -> 10 | D156: ='Year 1'!D145:F145 -> https://docs.gatesfoundation.org/documents/indirect_cost_policy.pdf | G156: IDC Amount on TDC | J156: =J157*C156/100 -> 32547.69143
F157: Total Direct Costs (Sponsor Direct) | J157: =SUM(J120,J153,J131,J114,J109,J100,J95,J86,J144) -> 325476.9143
E158: ="Total Amount Requested for "&J1&" Budget" -> Total Amount Requested for Year 2 Budget | J158: =SUM(J156:J157) -> 358024.6057
A160: University of North Texas, Office of Grants & Contracts Administration

Sheet Year 3
A1: File Number: | B1: ='Year 1'!B1 -> 20-0611 | C1: BB version: | E1: ='Year 1'!E1 -> FY 2020 | F1: This Budget is prepared for: | I1: ='Year 1'!I1 -> Gates Foundation | J1: Year 3
A2: Project Title: | B2: ='Year 1'!B2:J2 -> Genome-wide Knockdown Screens of Oocyte Maturation
A3: Budget Prepared by: | C3: ='Year 1'!C3:D3 -> Pudur Jagadeeswaran | E3: Phone Number: | F3: ='Year 1'!F3 -> 0 | G3: E-mail: | H3: ='Year 1'!H3:J3 -> 0
A4: Project Budget | F4: This Budget was drafted on: | I4: ='Year 1'!I4 -> 00:00:00 | J4: ='Year 1'!J4 -> 2007-09-01
A5: Personnel | H5: Number of Months (Academic) | I5: Number of Months (Summer) | M5: Personnel | R5: Fringe
A6: Last Name | B6: First Name | C6: EMPL ID# | D6: Employee Type | E6: Responsibility | F6: Monthly Rate | G6: Percent Effort (%) | J6: Project Salary | K6: Rounded Number of Months | M6: Year 1 | N6: Year 2 | O6: Year 3 | R6: Year 1 | S6: Year 2 | T6: Year 3
E8: PI
E9: Co-PI
E10: Senior Personnel
E11: Research Assistant
E12: Teaching Assistant
C13: =FALSE() -> FALSE | E13: Investigator
C14: =TRUE() -> TRUE | D14: PT Staff | E14: Coordinator
D15: PT Faculty | E15: Technician
D16: Hourly | E16: Post Doc
D17: Faculty | E17: Clerical
D18: Staff | E18: Programmer
A19: ='Year 2'!A19 -> Jagadeeswaran | B19: ='Year 2'!B19 -> Pudur | C19: ='Year 2'!C19 -> 10523515 | D19: ='Year 2'!D19 -> Faculty | E19: ='Year 2'!E19 -> PI | F19: ='Year 2'!F19*(100+Living)/100 -> 20078.5934 | G19: 95 | H19: 0 | I19: 3 | J19: =F19*((G19*H19)/100+(G19*I19)/100) -> 57223.99119 | K19: =ROUNDUP(H19+I19,0) -> 3 | M19: ='Year 2'!M19 -> 53939.1 | N19: ='Year 2'!N19 -> 55557.273 | O19: =J19 -> 57223.99119 | R19: ='Year 2'!R19 -> 11682.9252 | S19: ='Year 2'!J39 -> 11928.8875 | T19: =J42 -> 12182.22866
A20: ='Year 2'!A20 -> Iyer | B20: ='Year 2'!B20 -> Neha | C20: ='Year 2'!C20 -> 0 | D20: ='Year 2'!D20 -> Staff | E20: ='Year 2'!E20 -> Post Doc | F20: ='Year 2'!F20*(100+Living)/100 -> 4360.299 | G20: 100 | H20: 9 | I20: 3 | J20: 52323.588 | K20: =ROUNDUP(H20+I20,0) -> 12 | M20: ='Year 2'!M20 -> 49320 | N20: ='Year 2'!N20 -> 50799.6 | O20: 52323.588 | R20: ='Year 2'!R20 -> 11682.9252 | S20: ='Year 2'!J40 -> 15193.9794 | T20: =J42 -> 12182.22866
A21: ='Year 2'!A21 -> Raman | B21: ='Year 2'!B21 -> Revathi | C21: ='Year 2'!C21 -> 0 | D21: ='Year 2'!D21 -> Staff | E21: ='Year 2'!E21 -> Post Doc | F21: ='Year 2'!F21*(100+Living)/100 -> 4360.299 | G21: 100 | H21: 9 | I21: 3 | J21: 52323.588 | K21: 12 | M21: ='Year 2'!M21 -> 49320 | N21: ='Year 2'!N21 -> 50799.6 | O21: 52323.588 | R21: ='Year 2'!R21 -> 14969.82 | S21: ='Year 2'!J41 -> 15193.9794 | T21: =J43 -> 15424.86358
A22: ='Year 2'!A22 -> Sun | B22: ='Year 2'!B22 -> Kelsey | C22: ='Year 2'!C22 -> 0 | D22: ='Year 2'!D22 -> Staff | E22: ='Year 2'!E22 -> Research Technician | F22: ='Year 2'!F22*(100+Living)/100 -> 3447.925 | G22: 100 | H22: 9 | I22: 3 | J22: 41375.1 | K22: 12 | M22: ='Year 2'!M22 -> 39000 | N22: ='Year 2'!N22 -> 40170 | O22: 41375.1 | R22: ='Year 2'!R22 -> 14969.82 | S22: ='Year 2'!J42 -> 13583.595 | T22: =J44 -> 15424.86358
A23: ='Year 2'!A23 -> 0 | B23: ='Year 2'!B23 -> 0 | C23: ='Year 2'!C23 -> 0 | D23: ='Year 2'!D23 -> 0 | E23: ='Year 2'!E23 -> 0 | F23: ='Year 2'!F23*(100+Living)/100 -> 0 | G23: 0 | H23: 0 | I23: 0 | J23: 0 | K23: =ROUNDUP(H23+I23,0) -> 0 | M23: ='Year 2'!M23 -> 0 | N23: ='Year 2'!N23 -> 0 | O23: 0 | R23: ='Year 2'!R23 -> 13406.34 | S23: ='Year 2'!J43 -> 0 | T23: =J45 -> 13766.16765
A24: ='Year 2'!A24 -> 0 | B24: ='Year 2'!B24 -> 0 | C24: ='Year 2'!C24 -> 0 | D24: ='Year 2'!D24 -> 0 | E24: ='Year 2'!E24 -> 0 | F24: ='Year 2'!F24*(100+Living)/100 -> 0 | G24: 0 | H24: 0 | I24: 0 | J24: 0 | K24: =ROUNDUP(H24+I24,0) -> 0 | M24: ='Year 2'!M24 -> 0 | N24: ='Year 2'!N24 -> 0 | O24: 0 | R24: ='Year 2'!R24 -> 0 | S24: ='Year 2'!J44 -> 0 | T24: =J46 -> 0
A25: ='Year 2'!A25 -> 0 | B25: ='Year 2'!B25 -> 0 | C25: ='Year 2'!C25 -> 0 | D25: ='Year 2'!D25 -> 0 | E25: ='Year 2'!E25 -> 0 | F25: ='Year 2'!F25*(100+Living)/100 -> 0 | G25: 0 | H25: 0 | I25: 0 | J25: 0 | K25: 0 | M25: ='Year 2'!M25 -> 0 | N25: ='Year 2'!N25 -> 0 | O25: 0 | R25: ='Year 2'!R25 -> 0 | S25: ='Year 2'!J45 -> 0 | T25: =J48 -> 0
A26: ='Year 2'!A26 -> 0 | B26: ='Year 2'!B26 -> 0 | C26: ='Year 2'!C26 -> 0 | D26: ='Year 2'!D26 -> 0 | E26: ='Year 2'!E26 -> 0 | F26: ='Year 2'!F26*(100+Living)/100 -> 0 | G26: 0 | H26: 0 | I26: 0 | J26: 0 | K26: =ROUNDUP(H26+I26,0) -> 0 | M26: ='Year 2'!M26 -> 0 | N26: ='Year 2'!N26 -> 0 | O26: 0 | R26: ='Year 2'!R26 -> 0 | S26: ='Year 2'!J46 -> 0 | T26: =J48 -> 0
A27: ='Year 2'!A27 -> 0 | B27: ='Year 2'!B27 -> 0 | C27: ='Year 2'!C27 -> 0 | D27: ='Year 2'!D27 -> 0 | E27: ='Year 2'!E27 -> 0 | F27: ='Year 2'!F27*(100+Living)/100 -> 0 | G27: 0 | H27: 0 | I27: 0 | J27: 0 | K27: =ROUNDUP(H27+I27,0) -> 0 | M27: ='Year 2'!M27 -> 0 | N27: ='Year 2'!N27 -> 0 | O27: 0 | R27: ='Year 2'!R27 -> 0 | S27: ='Year 2'!J47 -> 0 | T27: =J49 -> 0
A28: ='Year 2'!A28 -> 0 | B28: ='Year 2'!B28 -> 0 | C28: ='Year 2'!C28 -> 0 | D28: ='Year 2'!D28 -> 0 | E28: ='Year 2'!E28 -> 0 | F28: ='Year 2'!F28*(100+Living)/100 -> 0 | G28: 0 | H28: 0 | I28: 0 | J28: 0 | K28: =ROUNDUP(H28+I28,0) -> 0 | M28: ='Year 2'!M28 -> 0 | N28: ='Year 2'!N28 -> 0 | O28: 0 | R28: ='Year 2'!R28 -> 0 | S28: ='Year 2'!J48 -> 0 | T28: =J50 -> 0
A29: ='Year 2'!A29 -> 0 | B29: ='Year 2'!B29 -> 0 | C29: ='Year 2'!C29 -> 0 | D29: ='Year 2'!D29 -> 0 | E29: ='Year 2'!E29 -> 0 | F29: ='Year 2'!F29*(100+Living)/100 -> 0 | G29: 0 | H29: 0 | I29: 0 | J29: 0 | K29: 0 | M29: ='Year 2'!M29 -> 0 | N29: ='Year 2'!N29 -> 0 | O29: 0 | R29: ='Year 2'!R29 -> 0 | S29: ='Year 2'!J49 -> 0 | T29: =J52 -> 0
A30: 0 | B30: 0 | C30: 0 | D30: 0 | E30: 0 | F30: 0 | G30: 0 | H30: 0 | I30: 0 | J30: 0 | K30: =ROUNDUP(H30+I30,0) -> 0 | M30: 0 | N30: 0 | O30: 0 | R30: 0 | S30: 0 | T30: =J52 -> 0
A31: 0 | B31: 0 | C31: 0 | D31: 0 | E31: 0 | F31: 0 | G31: 0 | H31: 0 | I31: 0 | J31: 0 | K31: =ROUNDUP(H31+I31,0) -> 0 | M31: 0 | N31: 0 | O31: 0 | R31: 0 | S31: 0 | T31: =J53 -> 0
A32: 0 | B32: 0 | C32: 0 | D32: 0 | E32: 0 | F32: 0 | G32: 0 | H32: 0 | I32: 0 | J32: 0 | K32: 0 | M32: 0 | N32: 0 | O32: 0 | R32: 0 | S32: 0 | T32: =J55 -> 0
G33: Sum of Personnel | J33: =SUM(J19:J32) -> 203246.2672
A34: Fringe Benefits for Personnel
A35: Last Name | B35: First Name | C35: EMPL ID# | D35: Retirement | E35: Insurance Type | F35: Other Support | G35: Hire Date | H35: Fringe Rate | J35: Fringe Benefit Totals | K35: Fringe Rates before 9-1-95 | O35: Fringe Rates after 9-1-95 | S35: Insurance and Longevity Calculations
E37: None
E38: Employee
D39: Hourly | E39: Spouse
D40: ORP | E40: Children | F40: Yes
D41: TRS | E41: Family | F41: No | K41: Hourly | L41: ORP | M41: TRS | N41: F1 Sum | O41: Hourly | P41: ORP | Q41: TRS | R41: F2 Sum | S41: % I applied | T41: Employee | U41: Spouse | V41: Children | W41: Family | X41: Ins Sum
A42: ='Year 2'!A39 -> Jagadeeswaran | B42: ='Year 2'!B39 -> Pudur | C42: ='Year 2'!C39 -> 10523515 | D42: ='Year 2'!D39 -> ORP | E42: ='Year 2'!E39 -> Family | F42: ='Year 2'!F39 -> Yes | G42: ='Year 2'!G39 -> 2007-09-01 | H42: =IF(G42>Fringe1End,R42,N42) -> 15.2 | J42: =(J19*H42/100)+X42 -> 12182.22866 | K42: =IF(D42=$D$39,F1.Hourly,0) -> 0 | L42: =IF(D42=$D$40,F1.FS.ORP,0) -> 21.47 | M42: =IF(D42=$D$41,F1.FS.TRS,0) -> 0 | N42: =SUM(K42:M42) -> 21.47 | O42: =IF(D42=$D$39,F2.Hourly,0) -> 0 | P42: =IF(D42=$D$40,F2.FS.ORP,0) -> 15.2 | Q42: =IF(D42=$D$41,F2.FS.TRS,0) -> 0 | R42: =SUM(O42:Q42) -> 15.2 | S42: =IF(F42=$F$40,G19,100) -> 95 | T42: =IF($E42=$E$38,IF($D19=$D$14,Ins.PT.E*$K19*S42/100,IF($D19=$D$15,Ins.PT.E*$K19*S42/100,Ins.E*$K19*S42/100)),0) -> 0 | U42: =IF($E42=$E$39,IF($D19=$D$14,Ins.PT.S*$K19*S42/100,IF($D19=$D$15,Ins.PT.S*$K19*S42/100,Ins.S*$K19*S42/100)),0) -> 0 | V42: =IF($E42=$E$40,IF($D19=$D$14,Ins.PT.C*$K19*S42/100,IF($D19=$D$15,Ins.PT.C*$K19*S42/100,Ins.C*$K19*S42/100)),0) -> 0 | W42: =IF($E42=$E$41,IF($D19=$D$14,Ins.PT.F*$K19*S42/100,IF($D19=$D$15,Ins.PT.F*$K19*S42/100,Ins.F*$K19*S42/100)),0) -> 3484.182 | X42: =IF(D19=$D$18,ROUNDDOWN(DAYS360(G42,$J$4)/(360*Long.Per),0)*20*K19*G19/100,0)+SUM(T42:W42) -> 3484.182 | Z42: =J42/J19 -> 0.2128867352
A43: ='Year 2'!A40 -> Iyer | B43: ='Year 2'!B40 -> Neha | C43: ='Year 2'!C40 -> 0 | D43: ='Year 2'!D40 -> TRS | E43: ='Year 2'!E40 -> Employee | F43: ='Year 2'!F40 -> Yes | G43: ='Year 2'!G40 -> 2007-09-01 | H43: 15.15 | J43: 15424.86358 | K43: 0 | L43: 0 | M43: 20.7 | N43: 20.7 | O43: 0 | P43: 0 | Q43: 15.15 | R43: 15.15 | S43: 100 | T43: 7497.84 | U43: 0 | V43: 0 | W43: 0 | X43: 7497.84 | Z43: =J43/J20 -> 0.2947975124
A44: ='Year 2'!A41 -> Raman | B44: ='Year 2'!B41 -> Revathi | C44: ='Year 2'!C41 -> 0 | D44: ='Year 2'!D41 -> TRS | E44: ='Year 2'!E41 -> Employee | F44: ='Year 2'!F41 -> Yes | G44: ='Year 2'!G41 -> 2007-09-01 | H44: 15.15 | J44: 15424.86358 | K44: 0 | L44: 0 | M44: 20.7 | N44: 20.7 | O44: 0 | P44: 0 | Q44: 15.15 | R44: 15.15 | S44: 100 | T44: 7497.84 | U44: 0 | V44: 0 | W44: 0 | X44: 7497.84 | Z44: 0.2947975124
A45: ='Year 2'!A42 -> Sun | B45: ='Year 2'!B42 -> Kelsey | C45: ='Year 2'!C42 -> 0 | D45: ='Year 2'!D42 -> TRS | E45: ='Year 2'!E42 -> Employee | F45: ='Year 2'!F42 -> Yes | G45: ='Year 2'!G42 -> 2007-09-01 | H45: 15.15 | J45: 13766.16765 | K45: 0 | L45: 0 | M45: 20.7 | N45: 20.7 | O45: 0 | P45: 0 | Q45: 15.15 | R45: 15.15 | S45: 100 | T45: 7497.84 | U45: 0 | V45: 0 | W45: 0 | X45: 7497.84 | Z45: 0.3327162388
A46: ='Year 2'!A43 -> 0 | B46: ='Year 2'!B43 -> 0 | C46: ='Year 2'!C43 -> 0 | D46: ='Year 2'!D43 -> TRS | E46: ='Year 2'!E43 -> Employee | F46: ='Year 2'!F43 -> Yes | G46: ='Year 2'!G43 -> 2007-09-01 | H46: 15.15 | J46: 0 | K46: 0 | L46: 0 | M46: 20.7 | N46: 20.7 | O46: 0 | P46: 0 | Q46: 15.15 | R46: 15.15 | S46: 0 | T46: 0 | U46: 0 | V46: 0 | W46: 0 | X46: 0
A47: ='Year 2'!A44 -> 0 | B47: ='Year 2'!B44 -> 0 | C47: ='Year 2'!C44 -> 0 | D47: ='Year 2'!D44 -> TRS | E47: ='Year 2'!E44 -> Employee | F47: ='Year 2'!F44 -> Yes | G47: ='Year 2'!G44 -> 2007-09-01 | H47: 15.15 | J47: 0 | K47: 0 | L47: 0 | M47: 20.7 | N47: 20.7 | O47: 0 | P47: 0 | Q47: 15.15 | R47: 15.15 | S47: 0 | T47: 0 | U47: 0 | V47: 0 | W47: 0 | X47: 0
A48: ='Year 2'!A45 -> 0 | B48: ='Year 2'!B45 -> 0 | C48: ='Year 2'!C45 -> 0 | D48: ='Year 2'!D45 -> TRS | E48: ='Year 2'!E45 -> Employee | F48: ='Year 2'!F45 -> No | G48: ='Year 2'!G45 -> 2007-09-01 | H48: 15.15 | J48: 0 | K48: 0 | L48: 0 | M48: 20.7 | N48: 20.7 | O48: 0 | P48: 0 | Q48: 15.15 | R48: 15.15 | S48: 100 | T48: 0 | U48: 0 | V48: 0 | W48: 0 | X48: 0
A49: ='Year 2'!A46 -> 0 | B49: ='Year 2'!B46 -> 0 | C49: ='Year 2'!C46 -> 0 | D49: ='Year 2'!D46 -> TRS | E49: ='Year 2'!E46 -> Employee | F49: ='Year 2'!F46 -> No | G49: ='Year 2'!G46 -> 2007-09-01 | H49: 15.15 | J49: 0 | K49: 0 | L49: 0 | M49: 20.7 | N49: 20.7 | O49: 0 | P49: 0 | Q49: 15.15 | R49: 15.15 | S49: 100 | T49: 0 | U49: 0 | V49: 0 | W49: 0 | X49: 0
A50: ='Year 2'!A47 -> 0 | B50: ='Year 2'!B47 -> 0 | C50: ='Year 2'!C47 -> 0 | D50: ='Year 2'!D47 -> TRS | E50: ='Year 2'!E47 -> Employee | F50: ='Year 2'!F47 -> No | G50: ='Year 2'!G47 -> 2007-09-01 | H50: 15.15 | J50: 0 | K50: 0 | L50: 0 | M50: 20.7 | N50: 20.7 | O50: 0 | P50: 0 | Q50: 15.15 | R50: 15.15 | S50: 100 | T50: 0 | U50: 0 | V50: 0 | W50: 0 | X50: 0
A51: ='Year 2'!A48 -> 0 | B51: ='Year 2'!B48 -> 0 | C51: ='Year 2'!C48 -> 0 | D51: ='Year 2'!D48 -> TRS | E51: ='Year 2'!E48 -> Employee | F51: ='Year 2'!F48 -> No | G51: ='Year 2'!G48 -> 2007-09-01 | H51: 15.15 | J51: 0 | K51: 0 | L51: 0 | M51: 20.7 | N51: 20.7 | O51: 0 | P51: 0 | Q51: 15.15 | R51: 15.15 | S51: 100 | T51: 0 | U51: 0 | V51: 0 | W51: 0 | X51: 0
A52: ='Year 2'!A49 -> 0 | B52: ='Year 2'!B49 -> 0 | C52: ='Year 2'!C49 -> 0 | D52: ='Year 2'!D49 -> TRS | E52: ='Year 2'!E49 -> Employee | F52: ='Year 2'!F49 -> No | G52: ='Year 2'!G49 -> 2007-09-01 | H52: 15.15 | J52: 0 | K52: 0 | L52: 0 | M52: 20.7 | N52: 20.7 | O52: 0 | P52: 0 | Q52: 15.15 | R52: 15.15 | S52: 100 | T52: 0 | U52: 0 | V52: 0 | W52: 0 | X52: 0
A53: =A30 -> 0 | B53: =B30 -> 0 | C53: =C30 -> 0 | D53: =IF($D30=$D$16,$D$39,$D$41) -> TRS | E53: =IF($D30=$D$16,$E$37,$E$38) -> Employee | F53: No | G53: =$J$4 -> 2007-09-01 | H53: 15.15 | J53: 0 | K53: 0 | L53: 0 | M53: 20.7 | N53: 20.7 | O53: 0 | P53: 0 | Q53: 15.15 | R53: 15.15 | S53: 100 | T53: 0 | U53: 0 | V53: 0 | W53: 0 | X53: 0
A54: =A31 -> 0 | B54: 0 | C54: 0 | D54: =IF($D31=$D$16,$D$39,$D$41) -> TRS | E54: =IF($D31=$D$16,$E$37,$E$38) -> Employee | F54: No | G54: =$J$4 -> 2007-09-01 | H54: 15.15 | J54: 0 | K54: 0 | L54: 0 | M54: 20.7 | N54: 20.7 | O54: 0 | P54: 0 | Q54: 15.15 | R54: 15.15 | S54: 100 | T54: 0 | U54: 0 | V54: 0 | W54: 0 | X54: 0
A55: 0 | B55: 0 | C55: 0 | D55: =IF($D32=$D$16,$D$39,$D$41) -> TRS | E55: =IF($D32=$D$16,$E$37,$E$38) -> Employee | F55: No | G55: =$J$4 -> 2007-09-01 | H55: 15.15 | J55: 0 | K55: 0 | L55: 0 | M55: 20.7 | N55: 20.7 | O55: 0 | P55: 0 | Q55: 15.15 | R55: 15.15 | S55: 100 | T55: 0 | U55: 0 | V55: 0 | W55: 0 | X55: 0
F56: Sum of Fringe Benefits for Personnel | J56: =SUM(J42:J55) -> 56798.12347 | K56: Hourly | L56: ORP | M56: TRS | N56: F1 Sum | O56: Hourly | P56: ORP | Q56: TRS | R56: F2 Sum | S56: % I applied | T56: Employee | U56: Spouse | V56: Children | W56: Family | X56: Ins Sum
F57: Sum of Personnel and Fringe Benefits | J57: =J33+J56 -> 260044.3907
A58: Students | H58: Number of Months (Academic) | I58: Number of Months (Summer) | M58: Students | R58: Fringe
A59: Last Name | B59: First Name | C59: EMPL ID# | D59: Student Type | E59: Responsibility | F59: Monthly Rate | G59: Percent Effort (%) | J59: Project Salary | K59: Rounded Number of Months | M59: Year 1 | N59: Year 2 | O59: Year 3 | R59: Year 1 | S59: Year 2 | T59: Year 3
D62: =FALSE() -> FALSE
D63: =TRUE() -> TRUE
E64: Clerical
D65: Graduate | E65: Programmer
D66: Undergrad | E66: Research Assistant
A67: ='Year 2'!A61 -> 0 | B67: ='Year 2'!B61 -> 0 | C67: ='Year 2'!C61 -> 0 | D67: ='Year 2'!D61 -> Graduate | E67: ='Year 2'!E61 -> 0 | F67: ='Year 2'!F61*(100+Living)/100 -> 0 | G67: 0 | H67: 0 | I67: 0 | J67: =F67*((G67*H67)/100+(G67*I67)/100) -> 0 | K67: =ROUNDUP(H67+I67,0) -> 0 | M67: ='Year 2'!M61 -> 0 | N67: ='Year 2'!N61 -> 0 | O67: =J67 -> 0 | R67: ='Year 2'!R61 -> 0 | S67: ='Year 2'!S61 -> 0 | T67: =J83 -> 0
A68: ='Year 2'!A62 -> 0 | B68: ='Year 2'!B62 -> 0 | C68: ='Year 2'!C62 -> 0 | D68: ='Year 2'!D62 -> Graduate | E68: ='Year 2'!E62 -> 0 | F68: ='Year 2'!F62*(100+Living)/100 -> 0 | G68: 0 | H68: 0 | I68: 0 | J68: 0 | K68: 0 | M68: ='Year 2'!M62 -> 0 | N68: ='Year 2'!N62 -> 0 | O68: 0 | R68: ='Year 2'!R62 -> 0 | S68: ='Year 2'!S62 -> 0 | T68: =J83 -> 0
A69: ='Year 2'!A63 -> 0 | B69: ='Year 2'!B63 -> 0 | C69: ='Year 2'!C63 -> 0 | D69: ='Year 2'!D63 -> Graduate | E69: ='Year 2'!E63 -> 0 | F69: ='Year 2'!F63*(100+Living)/100 -> 0 | G69: 0 | H69: 0 | I69: 0 | J69: =F69*((G69*H69)/100+(G69*I69)/100) -> 0 | K69: =ROUNDUP(H69+I69,0) -> 0 | M69: ='Year 2'!M63 -> 0 | N69: ='Year 2'!N63 -> 0 | O69: =J69 -> 0 | R69: ='Year 2'!R63 -> 0 | S69: ='Year 2'!S63 -> 0 | T69: =J84 -> 0
A70: ='Year 2'!A64 -> 0 | B70: ='Year 2'!B64 -> 0 | C70: ='Year 2'!C64 -> 0 | D70: ='Year 2'!D64 -> Graduate | E70: ='Year 2'!E64 -> 0 | F70: ='Year 2'!F64*(100+Living)/100 -> 0 | G70: 0 | H70: 0 | I70: 0 | J70: 0 | K70: 0 | M70: ='Year 2'!M64 -> 0 | N70: ='Year 2'!N64 -> 0 | O70: 0 | R70: ='Year 2'!R64 -> 0 | S70: ='Year 2'!S64 -> 0 | T70: =J86 -> 0
A71: ='Year 2'!A65 -> 0 | B71: ='Year 2'!B65 -> 0 | C71: ='Year 2'!C65 -> 0 | D71: ='Year 2'!D65 -> Graduate | E71: ='Year 2'!E65 -> 0 | F71: ='Year 2'!F65*(100+Living)/100 -> 0 | G71: 0 | H71: 0 | I71: 0 | J71: 0 | K71: 0 | M71: ='Year 2'!M65 -> 0 | N71: ='Year 2'!N65 -> 0 | O71: 0 | R71: ='Year 2'!R65 -> 0 | S71: ='Year 2'!S65 -> 0 | T71: =J86 -> 0
A72: ='Year 2'!A66 -> 0 | B72: ='Year 2'!B66 -> 0 | C72: ='Year 2'!C66 -> 0 | D72: ='Year 2'!D66 -> Graduate | E72: ='Year 2'!E66 -> 0 | F72: ='Year 2'!F66*(100+Living)/100 -> 0 | G72: 0 | H72: 0 | I72: 0 | J72: 0 | K72: 0 | M72: ='Year 2'!M66 -> 0 | N72: ='Year 2'!N66 -> 0 | O72: 0 | R72: ='Year 2'!R66 -> 0 | S72: ='Year 2'!S66 -> 0 | T72: =J88 -> 0
A73: 0 | B73: 0 | C73: 0 | D73: Graduate | E73: 0 | F73: 0 | G73: 0 | H73: 0 | I73: 0 | J73: 0 | K73: 0 | M73: 0 | N73: 0 | O73: 0 | R73: 0 | S73: 0 | T73: =J89 -> 0
G74: Sum of Students | J74: =SUM(J67:J73) -> 0
A75: Fringe Benefits for Students
A76: Last Name | B76: First Name | C76: EMPL ID# | D76: Student Type | E76: Insurance Type | F76: Other Support | G76: Hire Date | H76: Fringe Rate | J76: Fringe Benefit Totals | K76: Fringe Rates before 9-1-95 | N76: Fringe Rates after 9-1-95 | Q76: Insurance and Longevity Calculations
E78: None
E79: Employee
D80: None | E80: Spouse
D81: ORP | E81: Children | F81: Yes
D82: TRS | E82: Family | F82: No | K82: Grad | L82: Under | M82: F1 Sum | N82: Grad | O82: Under | P82: F2 Sum | Q82: % I applied | R82: Employee | S82: Spouse | T82: Children | U82: Family | V82: Ins Sum
A83: ='Year 2'!A76 -> 0 | B83: ='Year 2'!B76 -> 0 | C83: ='Year 2'!C76 -> 0 | D83: ='Year 2'!D76 -> Graduate | E83: ='Year 2'!E76 -> Employee | F83: ='Year 2'!F76 -> No | G83: ='Year 2'!G76 -> 2007-09-01 | H83: =IF(G83>Fringe1End,P83,M83) -> 7.65 | J83: =(J67*H83/100)+V83 -> 0 | K83: =IF(D67=$D$65,F1.Grad,0) -> 6.85 | L83: =IF(D67=$D$66,F1.Under,0) -> 0 | M83: =SUM(K83:L83) -> 6.85 | N83: =IF(D67=$D$65,F2.Grad,0) -> 7.65 | O83: =IF(D67=$D$66,F2.Under,0) -> 0 | P83: =SUM(N83:O83) -> 7.65 | Q83: =IF(F83=$F$81,G67,100) -> 100 | R83: =IF($E83=$E$79,Ins.PT.E*$K67*Q83/100,0) -> 0 | S83: =IF($E83=$E$80,Ins.PT.S*$K67*Q83/100,0) -> 0 | T83: =IF($E83=$E$81,Ins.PT.C*$K67*Q83/100,0) -> 0 | U83: =IF($E83=$E$82,Ins.PT.F*$K67*Q83/100,0) -> 0 | V83: =SUM(R83:U83) -> 0
A84: ='Year 2'!A77 -> 0 | B84: ='Year 2'!B77 -> 0 | C84: ='Year 2'!C77 -> 0 | D84: ='Year 2'!D77 -> Graduate | E84: ='Year 2'!E77 -> Employee | F84: ='Year 2'!F77 -> No | G84: ='Year 2'!G77 -> 2007-09-01 | H84: 7.65 | J84: 0 | K84: 6.85 | L84: 0 | M84: 6.85 | N84: 7.65 | O84: 0 | P84: 7.65 | Q84: 100 | R84: 0 | S84: 0 | T84: 0 | U84: 0 | V84: 0
A85: ='Year 2'!A78 -> 0 | B85: ='Year 2'!B78 -> 0 | C85: ='Year 2'!C78 -> 0 | D85: ='Year 2'!D78 -> Graduate | E85: ='Year 2'!E78 -> Employee | F85: ='Year 2'!F78 -> No | G85: ='Year 2'!G78 -> 2007-09-01 | H85: =IF(G85>Fringe1End,P85,M85) -> 7.65 | J85: 0 | K85: 6.85 | L85: 0 | M85: =SUM(K85:L85) -> 6.85 | N85: 7.65 | O85: 0 | P85: =SUM(N85:O85) -> 7.65 | Q85: 100 | R85: 0 | S85: 0 | T85: 0 | U85: 0 | V85: =SUM(R85:U85) -> 0
A86: ='Year 2'!A79 -> 0 | B86: ='Year 2'!B79 -> 0 | C86: ='Year 2'!C79 -> 0 | D86: ='Year 2'!D79 -> Graduate | E86: ='Year 2'!E79 -> Employee | F86: ='Year 2'!F79 -> No | G86: ='Year 2'!G79 -> 2007-09-01 | H86: 7.65 | J86: 0 | K86: 6.85 | L86: 0 | M86: 6.85 | N86: 7.65 | O86: 0 | P86: 7.65 | Q86: 100 | R86: 0 | S86: 0 | T86: 0 | U86: 0 | V86: 0
A87: ='Year 2'!A80 -> 0 | B87: ='Year 2'!B80 -> 0 | C87: ='Year 2'!C80 -> 0 | D87: ='Year 2'!D80 -> Graduate | E87: ='Year 2'!E80 -> Employee | F87: ='Year 2'!F80 -> No | G87: ='Year 2'!G80 -> 2007-09-01 | H87: 7.65 | J87: 0 | K87: 6.85 | L87: 0 | M87: 6.85 | N87: 7.65 | O87: 0 | P87: 7.65 | Q87: 100 | R87: 0 | S87: 0 | T87: 0 | U87: 0 | V87: 0
A88: ='Year 2'!A81 -> 0 | B88: ='Year 2'!B81 -> 0 | C88: ='Year 2'!C81 -> 0 | D88: ='Year 2'!D81 -> Graduate | E88: ='Year 2'!E81 -> Employee | F88: ='Year 2'!F81 -> No | G88: ='Year 2'!G81 -> 2007-09-01 | H88: 7.65 | J88: 0 | K88: 6.85 | L88: 0 | M88: 6.85 | N88: 7.65 | O88: 0 | P88: 7.65 | Q88: 100 | R88: 0 | S88: 0 | T88: 0 | U88: 0 | V88: 0
A89: =A73 -> 0 | B89: =B73 -> 0 | C89: =C73 -> 0 | D89: =D73 -> Graduate | E89: =IF($D73=$D$65,$E$79,$E$78) -> Employee | F89: No | G89: =$J$4 -> 2007-09-01 | H89: 7.65 | J89: 0 | K89: 6.85 | L89: 0 | M89: 6.85 | N89: 7.65 | O89: 0 | P89: 7.65 | Q89: 100 | R89: 0 | S89: 0 | T89: 0 | U89: 0 | V89: 0
F90: Sum of Fringe Benefits for Students | J90: =SUM(J83:J89) -> 0 | K90: Grad | L90: Under | M90: F1 Sum | N90: Grad | O90: Under | P90: F2 Sum | Q90: % I applied | R90: Employee | S90: Spouse | T90: Children | U90: Family | V90: Ins Sum
F91: Sum of Students and Fringe Benefits | J91: =J74+J90 -> 0
F92: Sum of Salary | J92: =J33+J74 -> 203246.2672
F93: Sum of Fringe Benefits | J93: =J56+J90 -> 56798.12347
F94: Sum of Personnel and Students | J94: =SUM(J92:J93) -> 260044.3907
A95: Travel
A96: Component | B96: Description | F96: Location | G96: Date | H96: Destination | J96: Cost
A98: Transportation | F98: In-State
A99: Meals | F99: Out-of-State
A100: Lodging | F100: Foreign
B101: Attending national meeting one per year for PI and postdocs | F101: Domestic | J101: 3000
J102: 0
G103: Sum of Travel | J103: =SUM(J101:J102) -> 3000
A104: Capital Expenditures/Equipment D | E104: These items individually are OVER $5,000.Please obtain a vendor quote
A105: Item | C105: Description | G105: Amount | H105: Quantity | J105: Cost
J106: =G106*H106 -> 0
G107: 0 | H107: 0 | J107: =G107*H107 -> 0
G108: Sum of Equipment | J108: =SUM(J106:J107) -> 0
A109: Supplies | B109: These items individually are UNDER $5,000.
A110: Item | C110: Description | G110: Amount | H110: Quantity | J110: Cost
A111: Mice per diem | C111: KO mice $1.66 per cage of 5 mice, 20 cages per line for 270 days | G111: 33.2 | H111: 270 | J111: =G111*H111 -> 8964
A112: mice breeder pair | G112: 1510 | H112: 2 | J112: 3020
A113: reagent kit | G113: 500 | H113: 10 | J113: 5000
A114: reagents | G114: 1000 | H114: 2 | J114: 2000
A115: Fish breeding supplies | G115: 5000 | H115: 2 | J115: 10000
A116: Custom knockout mice | G116: 15000 | H116: 2 | J116: =G116*H116 -> 30000
A117: Needles, gloves, chemicals | G117: 2000 | H117: 1 | J117: 2000
G118: 0 | H118: 0 | J118: 0
G119: Sum of Supplies | J119: =SUM(J111:J118) -> 60984
A120: Publication Charges | D120: For the typical activities included in this category, hold mouse over the cell to the left.
A121: Item | C121: Description | G121: Price | H121: Quantity | J121: Cost
A122: Publication Charges | C122: 3 publications | G122: 3000 | H122: 3 | J122: =G122*H122 -> 9000
G123: 0 | H123: 0 | J123: =G123*H123 -> 0
F124: Sum of Publication/Printing Charges | J124: =SUM(J122:J123) -> 9000 | K124: This is the amount that can be charge IDC
A125: Sub-Contracts DÑ | C125: UNT employees can not be recipients of UNT sub-contracts and must be paid in personnel category.
A126: Item | C126: Description | J126: Amount | O126: Year 1 | P126: Year 2 | Q126: Year 3
A127: ='Year 2'!A117:B117 -> 0 | C127: ='Year 2'!C117:H117 -> 0 | J127: 0 | K127: =IF(M127+J127>25000,IF(M127>=25000,0,25000-M127),J127) -> 0 | L127: 1 | M127: ='Year 2'!N117 -> 0 | N127: =SUM(M127,J127) -> 0 | O127: ='Year 2'!O117 -> 0 | P127: ='Year 2'!P117 -> 0 | Q127: =J127 -> 0
A128: ='Year 2'!A118:B118 -> 0 | C128: ='Year 2'!C118:H118 -> 0 | J128: 0 | K128: =IF(M128+J128>25000,IF(M128>=25000,0,25000-M128),J128) -> 0 | L128: 1 | M128: ='Year 2'!N118 -> 0 | N128: =SUM(M128,J128) -> 0 | O128: ='Year 2'!O118 -> 0 | P128: ='Year 2'!P118 -> 0 | Q128: =J128 -> 0
A129: ='Year 2'!A119:B119 -> 0 | C129: ='Year 2'!C119:H119 -> 0 | J129: 0 | K129: =IF(M129+J129>25000,IF(M129>=25000,0,25000-M129),J129) -> 0 | L129: 2 | M129: ='Year 2'!N119 -> 0 | N129: =SUM(M129,J129) -> 0 | O129: ='Year 2'!O119 -> 0 | P129: ='Year 2'!P119 -> 0 | Q129: =J129 -> 0
A130: 0 | J130: 0 | K130: =IF(M130+J130>25000,IF(M130>=25000,0,25000-M130),J130) -> 0 | L130: 3 | M130: 0 | N130: =SUM(M130,J130) -> 0 | O130: 0 | P130: 0 | Q130: =J130 -> 0
F131: Sum of Sub-Contracts | J131: =SUM(J127:J130) -> 0 | K131: =SUM(K127:K130) -> 0 | L131: Year | M131: Previous | N131: Current
A132: Participant Support Costs D
A133: Item | C133: Description | G133: Amount | H133: Quantity | J133: Cost
A135: Scholarship
A136: Fellowship
A137: Travel
A138: Subsistence
A139: Other
G140: 0 | H140: 0 | J140: =G140*H140 -> 0
G141: 0 | H141: 0 | J141: =G141*H141 -> 0
H142: Sum of Participant Support Costs | J142: =SUM(J140:J141) -> 0
A143: Other-Graduate Student Tuition | E143: Calculate Grad Tuition in this Budget Category. IDC is not assessed on tuition.
A144: Item | C144: Description | G144: Amount | H144: Quantity | J144: Cost
G151: 0 | H151: 0 | J151: =G151*H151 -> 0
G152: 0 | H152: 0 | J152: =G152*H152 -> 0
H153: Sum of Other-Graduate Student Tuition | J153: =SUM(J151:J152) -> 0
A154: Other-All Other Costs except Graduate Tuition DÑ
A155: Item | C155: Description | G155: Price | H155: Quantity | J155: Cost
A157: Patient Care Charges | K157: This is the amount that can be charge IDC
A158: Off-site Facility Rental
A159: (User Defined)
G160: 0 | H160: 0 | J160: =G160*H160 -> 0 | K160: =IF(OR(A160=$A$157,A160=$A$158),0,J160) -> 0
G161: 0 | H161: 0 | J161: =G161*H161 -> 0 | K161: =IF(OR(A161=$A$157,A161=$A$158),0,J161) -> 0
H162: Sum of Other | J162: =SUM(J160:J161) -> 0 | K162: =SUM(K160:K161) -> 0
A163: Indirect Costs
A164: IDC Type | C164: IDC rate | D164: Documentation Location | F164: Modified Total Direct Costs (Base for F&A) | J164: =(J94+J103+J119+J124+K131+K162) -> 333028.3907
A165: ='Year 1'!A145:B145 -> Agency Restricted | C165: ='Year 1'!C145 -> 10 | D165: ='Year 1'!D145:F145 -> https://docs.gatesfoundation.org/documents/indirect_cost_policy.pdf | G165: IDC Amount on TDC | J165: =J166*C165/100 -> 33302.83907
F166: Total Direct Costs (Sponsor Direct) | J166: =SUM(J131,J162,J142,J124,J119,J108,J103,J94,J153) -> 333028.3907
E167: ="Total Amount Requested for "&J1&" Budget" -> Total Amount Requested for Year 3 Budget | J167: =SUM(J165:J166) -> 366331.2297
A169: University of North Texas, Office of Grants & Contracts Administration

Sheet Year 4
A1: File Number: | B1: ='Year 1'!B1 -> 20-0611 | C1: BB version: | E1: ='Year 1'!E1 -> FY 2020 | F1: This Budget is prepared for: | I1: ='Year 1'!I1 -> Gates Foundation | J1: Year 4
A2: Project Title: | B2: ='Year 1'!B2:J2 -> Genome-wide Knockdown Screens of Oocyte Maturation
A3: Budget Prepared by: | C3: ='Year 1'!C3:D3 -> Pudur Jagadeeswaran | E3: Phone Number: | F3: ='Year 1'!F3 -> 0 | G3: E-mail: | H3: ='Year 1'!H3:J3 -> 0
A4: Project Budget | F4: This Budget was drafted on: | I4: ='Year 1'!I4 -> 00:00:00 | J4: ='Year 1'!J4 -> 2007-09-01
A5: Personnel | H5: Number of Months (Academic) | I5: Number of Months (Summer) | M5: Personnel | R5: Fringe
A6: Last Name | B6: First Name | C6: EMPL ID# | D6: Employee Type | E6: Responsibility | F6: Monthly Rate | G6: Percent Effort (%) | J6: Project Salary | K6: Rounded Number of Months | M6: Year 1 | N6: Year 2 | O6: Year 3 | P6: Year 4 | R6: Year 1 | S6: Year 2 | T6: Year 3 | U6: Year 4
E8: PI
E9: Co-PI
E10: Senior Personnel
E11: Research Assistant
E12: Teaching Assistant
C13: =FALSE() -> FALSE | E13: Investigator
C14: =TRUE() -> TRUE | D14: PT Staff | E14: Coordinator
D15: PT Faculty | E15: Technician
D16: Hourly | E16: Post Doc
D17: Faculty | E17: Clerical
D18: Staff | E18: Programmer
A19: ='Year 3'!A19 -> Jagadeeswaran | B19: ='Year 3'!B19 -> Pudur | C19: ='Year 3'!C19 -> 10523515 | D19: ='Year 3'!D19 -> Faculty | E19: ='Year 3'!E19 -> PI | F19: ='Year 3'!F19*(100+Living)/100 -> 20680.9512 | G19: 0 | H19: 0 | I19: 0 | J19: =F19*((G19*H19)/100+(G19*I19)/100) -> 0 | K19: =ROUNDUP(H19+I19,0) -> 0 | M19: ='Year 3'!M19 -> 53939.1 | N19: ='Year 3'!N19 -> 55557.273 | O19: ='Year 3'!O19 -> 57223.99119 | P19: =J19 -> 0 | R19: ='Year 3'!R19 -> 11682.9252 | S19: ='Year 3'!S19 -> 11928.8875 | T19: ='Year 3'!T19 -> 12182.22866 | U19: =J43 -> 0
A20: ='Year 3'!A20 -> Iyer | B20: ='Year 3'!B20 -> Neha | C20: ='Year 3'!C20 -> 0 | D20: ='Year 3'!D20 -> Staff | E20: ='Year 3'!E20 -> Post Doc | F20: ='Year 3'!F20*(100+Living)/100 -> 4491.10797 | G20: 0 | H20: 0 | I20: 0 | J20: 0 | K20: =ROUNDUP(H20+I20,0) -> 0 | M20: ='Year 3'!M20 -> 49320 | N20: ='Year 3'!N20 -> 50799.6 | O20: ='Year 3'!O20 -> 52323.588 | P20: 0 | R20: ='Year 3'!R20 -> 11682.9252 | S20: ='Year 3'!S20 -> 15193.9794 | T20: ='Year 3'!T20 -> 12182.22866 | U20: =J43 -> 0
A21: ='Year 3'!A21 -> Raman | B21: ='Year 3'!B21 -> Revathi | C21: ='Year 3'!C21 -> 0 | D21: ='Year 3'!D21 -> Staff | E21: ='Year 3'!E21 -> Post Doc | F21: ='Year 3'!F21*(100+Living)/100 -> 4491.10797 | G21: 0 | H21: 0 | I21: 0 | J21: 0 | K21: 0 | M21: ='Year 3'!M21 -> 49320 | N21: ='Year 3'!N21 -> 50799.6 | O21: ='Year 3'!O21 -> 52323.588 | P21: 0 | R21: ='Year 3'!R21 -> 14969.82 | S21: ='Year 3'!S21 -> 15193.9794 | T21: ='Year 3'!T21 -> 15424.86358 | U21: =J44 -> 0
A22: ='Year 3'!A22 -> Sun | B22: ='Year 3'!B22 -> Kelsey | C22: ='Year 3'!C22 -> 0 | D22: ='Year 3'!D22 -> Staff | E22: ='Year 3'!E22 -> Research Technician | F22: ='Year 3'!F22*(100+Living)/100 -> 3551.36275 | G22: 0 | H22: 0 | I22: 0 | J22: 0 | K22: 0 | M22: ='Year 3'!M22 -> 39000 | N22: ='Year 3'!N22 -> 40170 | O22: ='Year 3'!O22 -> 41375.1 | P22: 0 | R22: ='Year 3'!R22 -> 14969.82 | S22: ='Year 3'!S22 -> 13583.595 | T22: ='Year 3'!T22 -> 15424.86358 | U22: =J45 -> 0
A23: ='Year 3'!A23 -> 0 | B23: ='Year 3'!B23 -> 0 | C23: ='Year 3'!C23 -> 0 | D23: ='Year 3'!D23 -> 0 | E23: ='Year 3'!E23 -> 0 | F23: ='Year 3'!F23*(100+Living)/100 -> 0 | G23: 0 | H23: 0 | I23: 0 | J23: 0 | K23: =ROUNDUP(H23+I23,0) -> 0 | M23: ='Year 3'!M23 -> 0 | N23: ='Year 3'!N23 -> 0 | O23: ='Year 3'!O23 -> 0 | P23: 0 | R23: ='Year 3'!R23 -> 13406.34 | S23: ='Year 3'!S23 -> 0 | T23: ='Year 3'!T23 -> 13766.16765 | U23: =J46 -> 0
A24: ='Year 3'!A24 -> 0 | B24: ='Year 3'!B24 -> 0 | C24: ='Year 3'!C24 -> 0 | D24: ='Year 3'!D24 -> 0 | E24: ='Year 3'!E24 -> 0 | F24: ='Year 3'!F24*(100+Living)/100 -> 0 | G24: 0 | H24: 0 | I24: 0 | J24: 0 | K24: =ROUNDUP(H24+I24,0) -> 0 | M24: ='Year 3'!M24 -> 0 | N24: ='Year 3'!N24 -> 0 | O24: ='Year 3'!O24 -> 0 | P24: 0 | R24: ='Year 3'!R24 -> 0 | S24: ='Year 3'!S24 -> 0 | T24: ='Year 3'!T24 -> 0 | U24: =J47 -> 0
A25: ='Year 3'!A25 -> 0 | B25: ='Year 3'!B25 -> 0 | C25: ='Year 3'!C25 -> 0 | D25: ='Year 3'!D25 -> 0 | E25: ='Year 3'!E25 -> 0 | F25: ='Year 3'!F25*(100+Living)/100 -> 0 | G25: 0 | H25: 0 | I25: 0 | J25: 0 | K25: 0 | M25: ='Year 3'!M25 -> 0 | N25: ='Year 3'!N25 -> 0 | O25: ='Year 3'!O25 -> 0 | P25: 0 | R25: ='Year 3'!R25 -> 0 | S25: ='Year 3'!S25 -> 0 | T25: ='Year 3'!T25 -> 0 | U25: =J49 -> 0
A26: ='Year 3'!A26 -> 0 | B26: ='Year 3'!B26 -> 0 | C26: ='Year 3'!C26 -> 0 | D26: ='Year 3'!D26 -> 0 | E26: ='Year 3'!E26 -> 0 | F26: ='Year 3'!F26*(100+Living)/100 -> 0 | G26: 0 | H26: 0 | I26: 0 | J26: 0 | K26: =ROUNDUP(H26+I26,0) -> 0 | M26: ='Year 3'!M26 -> 0 | N26: ='Year 3'!N26 -> 0 | O26: ='Year 3'!O26 -> 0 | P26: 0 | R26: ='Year 3'!R26 -> 0 | S26: ='Year 3'!S26 -> 0 | T26: ='Year 3'!T26 -> 0 | U26: =J49 -> 0
A27: ='Year 3'!A27 -> 0 | B27: ='Year 3'!B27 -> 0 | C27: ='Year 3'!C27 -> 0 | D27: ='Year 3'!D27 -> 0 | E27: ='Year 3'!E27 -> 0 | F27: ='Year 3'!F27*(100+Living)/100 -> 0 | G27: 0 | H27: 0 | I27: 0 | J27: 0 | K27: =ROUNDUP(H27+I27,0) -> 0 | M27: ='Year 3'!M27 -> 0 | N27: ='Year 3'!N27 -> 0 | O27: ='Year 3'!O27 -> 0 | P27: 0 | R27: ='Year 3'!R27 -> 0 | S27: ='Year 3'!S27 -> 0 | T27: ='Year 3'!T27 -> 0 | U27: =J50 -> 0
A28: ='Year 3'!A28 -> 0 | B28: ='Year 3'!B28 -> 0 | C28: ='Year 3'!C28 -> 0 | D28: ='Year 3'!D28 -> 0 | E28: ='Year 3'!E28 -> 0 | F28: ='Year 3'!F28*(100+Living)/100 -> 0 | G28: 0 | H28: 0 | I28: 0 | J28: 0 | K28: =ROUNDUP(H28+I28,0) -> 0 | M28: ='Year 3'!M28 -> 0 | N28: ='Year 3'!N28 -> 0 | O28: ='Year 3'!O28 -> 0 | P28: 0 | R28: ='Year 3'!R28 -> 0 | S28: ='Year 3'!S28 -> 0 | T28: ='Year 3'!T28 -> 0 | U28: =J51 -> 0
A29: ='Year 3'!A29 -> 0 | B29: ='Year 3'!B29 -> 0 | C29: ='Year 3'!C29 -> 0 | D29: ='Year 3'!D29 -> 0 | E29: ='Year 3'!E29 -> 0 | F29: ='Year 3'!F29*(100+Living)/100 -> 0 | G29: 0 | H29: 0 | I29: 0 | J29: 0 | K29: 0 | M29: ='Year 3'!M29 -> 0 | N29: ='Year 3'!N29 -> 0 | O29: ='Year 3'!O29 -> 0 | P29: 0 | R29: ='Year 3'!R29 -> 0 | S29: ='Year 3'!S29 -> 0 | T29: ='Year 3'!T29 -> 0 | U29: =J53 -> 0
A30: ='Year 3'!A30 -> 0 | B30: ='Year 3'!B30 -> 0 | C30: ='Year 3'!C30 -> 0 | D30: ='Year 3'!D30 -> 0 | E30: ='Year 3'!E30 -> 0 | F30: ='Year 3'!F30*(100+Living)/100 -> 0 | G30: 0 | H30: 0 | I30: 0 | J30: 0 | K30: =ROUNDUP(H30+I30,0) -> 0 | M30: ='Year 3'!M30 -> 0 | N30: ='Year 3'!N30 -> 0 | O30: ='Year 3'!O30 -> 0 | P30: 0 | R30: ='Year 3'!R30 -> 0 | S30: ='Year 3'!S30 -> 0 | T30: ='Year 3'!T30 -> 0 | U30: =J53 -> 0
A31: ='Year 3'!A31 -> 0 | B31: ='Year 3'!B31 -> 0 | C31: ='Year 3'!C31 -> 0 | D31: ='Year 3'!D31 -> 0 | E31: ='Year 3'!E31 -> 0 | F31: ='Year 3'!F31*(100+Living)/100 -> 0 | G31: 0 | H31: 0 | I31: 0 | J31: 0 | K31: =ROUNDUP(H31+I31,0) -> 0 | M31: ='Year 3'!M31 -> 0 | N31: ='Year 3'!N31 -> 0 | O31: ='Year 3'!O31 -> 0 | P31: 0 | R31: ='Year 3'!R31 -> 0 | S31: ='Year 3'!S31 -> 0 | T31: ='Year 3'!T31 -> 0 | U31: =J54 -> 0
A32: ='Year 3'!A32 -> 0 | B32: ='Year 3'!B32 -> 0 | C32: ='Year 3'!C32 -> 0 | D32: ='Year 3'!D32 -> 0 | E32: ='Year 3'!E32 -> 0 | F32: ='Year 3'!F32*(100+Living)/100 -> 0 | G32: 0 | H32: 0 | I32: 0 | J32: 0 | K32: 0 | M32: ='Year 3'!M32 -> 0 | N32: ='Year 3'!N32 -> 0 | O32: ='Year 3'!O32 -> 0 | P32: 0 | R32: ='Year 3'!R32 -> 0 | S32: ='Year 3'!S32 -> 0 | T32: ='Year 3'!T32 -> 0 | U32: =J56 -> 0
A33: 0 | B33: 0 | C33: 0 | D33: 0 | E33: 0 | F33: 0 | G33: 0 | H33: 0 | I33: 0 | J33: 0 | K33: 0 | M33: 0 | N33: 0 | O33: 0 | P33: 0 | R33: 0 | S33: 0 | T33: 0 | U33: =J57 -> 0
G34: Sum of Personnel | J34: =SUM(J19:J33) -> 0
A35: Fringe Benefits for Personnel
A36: Last Name | B36: First Name | C36: EMPL ID# | D36: Retirement | E36: Insurance Type | F36: Other Support | G36: Hire Date | H36: Fringe Rate | J36: Fringe Benefit Totals | K36: Fringe Rates before 9-1-95 | O36: Fringe Rates after 9-1-95 | S36: Insurance and Longevity Calculations
E38: None
E39: Employee
D40: Hourly | E40: Spouse
D41: ORP | E41: Children | F41: Yes
D42: TRS | E42: Family | F42: No | K42: Hourly | L42: ORP | M42: TRS | N42: F1 Sum | O42: Hourly | P42: ORP | Q42: TRS | R42: F2 Sum | S42: % I applied | T42: Employee | U42: Spouse | V42: Children | W42: Family | X42: Ins Sum
A43: ='Year 3'!A42 -> Jagadeeswaran | B43: ='Year 3'!B42 -> Pudur | C43: ='Year 3'!C42 -> 10523515 | D43: ='Year 3'!D42 -> ORP | E43: ='Year 3'!E42 -> Family | F43: ='Year 3'!F42 -> Yes | G43: ='Year 3'!G42 -> 2007-09-01 | H43: =IF(G43>Fringe1End,R43,N43) -> 15.2 | J43: =(J19*H43/100)+X43 -> 0 | K43: =IF(D43=$D$40,F1.Hourly,0) -> 0 | L43: =IF(D43=$D$41,F1.FS.ORP,0) -> 21.47 | M43: =IF(D43=$D$42,F1.FS.TRS,0) -> 0 | N43: =SUM(K43:M43) -> 21.47 | O43: =IF(D43=$D$40,F2.Hourly,0) -> 0 | P43: =IF(D43=$D$41,F2.FS.ORP,0) -> 15.2 | Q43: =IF(D43=$D$42,F2.FS.TRS,0) -> 0 | R43: =SUM(O43:Q43) -> 15.2 | S43: =IF(F43=$F$41,G19,100) -> 0 | T43: =IF($E43=$E$39,IF($D19=$D$14,Ins.PT.E*$K19*S43/100,IF($D19=$D$15,Ins.PT.E*$K19*S43/100,Ins.E*$K19*S43/100)),0) -> 0 | U43: =IF($E43=$E$40,IF($D19=$D$14,Ins.PT.S*$K19*S43/100,IF($D19=$D$15,Ins.PT.S*$K19*S43/100,Ins.S*$K19*S43/100)),0) -> 0 | V43: =IF($E43=$E$41,IF($D19=$D$14,Ins.PT.C*$K19*S43/100,IF($D19=$D$15,Ins.PT.C*$K19*S43/100,Ins.C*$K19*S43/100)),0) -> 0 | W43: =IF($E43=$E$42,IF($D19=$D$14,Ins.PT.F*$K19*S43/100,IF($D19=$D$15,Ins.PT.F*$K19*S43/100,Ins.F*$K19*S43/100)),0) -> 0 | X43: =IF(D19=$D$18,ROUNDDOWN(DAYS360(G43,$J$4)/(360*Long.Per),0)*20*K19*G19/100,0)+SUM(T43:W43) -> 0
A44: ='Year 3'!A43 -> Iyer | B44: ='Year 3'!B43 -> Neha | C44: ='Year 3'!C43 -> 0 | D44: ='Year 3'!D43 -> TRS | E44: ='Year 3'!E43 -> Employee | F44: ='Year 3'!F43 -> Yes | G44: ='Year 3'!G43 -> 2007-09-01 | H44: 15.15 | J44: 0 | K44: 0 | L44: 0 | M44: 20.7 | N44: 20.7 | O44: 0 | P44: 0 | Q44: 15.15 | R44: 15.15 | S44: 0 | T44: 0 | U44: 0 | V44: 0 | W44: 0 | X44: 0
A45: ='Year 3'!A44 -> Raman | B45: ='Year 3'!B44 -> Revathi | C45: ='Year 3'!C44 -> 0 | D45: ='Year 3'!D44 -> TRS | E45: ='Year 3'!E44 -> Employee | F45: ='Year 3'!F44 -> Yes | G45: ='Year 3'!G44 -> 2007-09-01 | H45: 15.15 | J45: 0 | K45: 0 | L45: 0 | M45: 20.7 | N45: 20.7 | O45: 0 | P45: 0 | Q45: 15.15 | R45: 15.15 | S45: 0 | T45: 0 | U45: 0 | V45: 0 | W45: 0 | X45: 0
A46: ='Year 3'!A45 -> Sun | B46: ='Year 3'!B45 -> Kelsey | C46: ='Year 3'!C45 -> 0 | D46: ='Year 3'!D45 -> TRS | E46: ='Year 3'!E45 -> Employee | F46: ='Year 3'!F45 -> Yes | G46: ='Year 3'!G45 -> 2007-09-01 | H46: 15.15 | J46: 0 | K46: 0 | L46: 0 | M46: 20.7 | N46: 20.7 | O46: 0 | P46: 0 | Q46: 15.15 | R46: 15.15 | S46: 0 | T46: 0 | U46: 0 | V46: 0 | W46: 0 | X46: 0
A47: ='Year 3'!A46 -> 0 | B47: ='Year 3'!B46 -> 0 | C47: ='Year 3'!C46 -> 0 | D47: ='Year 3'!D46 -> TRS | E47: ='Year 3'!E46 -> Employee | F47: ='Year 3'!F46 -> Yes | G47: ='Year 3'!G46 -> 2007-09-01 | H47: 15.15 | J47: 0 | K47: 0 | L47: 0 | M47: 20.7 | N47: 20.7 | O47: 0 | P47: 0 | Q47: 15.15 | R47: 15.15 | S47: 0 | T47: 0 | U47: 0 | V47: 0 | W47: 0 | X47: 0
A48: ='Year 3'!A47 -> 0 | B48: ='Year 3'!B47 -> 0 | C48: ='Year 3'!C47 -> 0 | D48: ='Year 3'!D47 -> TRS | E48: ='Year 3'!E47 -> Employee | F48: ='Year 3'!F47 -> Yes | G48: ='Year 3'!G47 -> 2007-09-01 | H48: 15.15 | J48: 0 | K48: 0 | L48: 0 | M48: 20.7 | N48: 20.7 | O48: 0 | P48: 0 | Q48: 15.15 | R48: 15.15 | S48: 0 | T48: 0 | U48: 0 | V48: 0 | W48: 0 | X48: 0
A49: ='Year 3'!A48 -> 0 | B49: ='Year 3'!B48 -> 0 | C49: ='Year 3'!C48 -> 0 | D49: ='Year 3'!D48 -> TRS | E49: ='Year 3'!E48 -> Employee | F49: ='Year 3'!F48 -> No | G49: ='Year 3'!G48 -> 2007-09-01 | H49: 15.15 | J49: 0 | K49: 0 | L49: 0 | M49: 20.7 | N49: 20.7 | O49: 0 | P49: 0 | Q49: 15.15 | R49: 15.15 | S49: 100 | T49: 0 | U49: 0 | V49: 0 | W49: 0 | X49: 0
A50: ='Year 3'!A49 -> 0 | B50: ='Year 3'!B49 -> 0 | C50: ='Year 3'!C49 -> 0 | D50: ='Year 3'!D49 -> TRS | E50: ='Year 3'!E49 -> Employee | F50: ='Year 3'!F49 -> No | G50: ='Year 3'!G49 -> 2007-09-01 | H50: 15.15 | J50: 0 | K50: 0 | L50: 0 | M50: 20.7 | N50: 20.7 | O50: 0 | P50: 0 | Q50: 15.15 | R50: 15.15 | S50: 100 | T50: 0 | U50: 0 | V50: 0 | W50: 0 | X50: 0
A51: ='Year 3'!A50 -> 0 | B51: ='Year 3'!B50 -> 0 | C51: ='Year 3'!C50 -> 0 | D51: ='Year 3'!D50 -> TRS | E51: ='Year 3'!E50 -> Employee | F51: ='Year 3'!F50 -> No | G51: ='Year 3'!G50 -> 2007-09-01 | H51: 15.15 | J51: 0 | K51: 0 | L51: 0 | M51: 20.7 | N51: 20.7 | O51: 0 | P51: 0 | Q51: 15.15 | R51: 15.15 | S51: 100 | T51: 0 | U51: 0 | V51: 0 | W51: 0 | X51: 0
A52: ='Year 3'!A51 -> 0 | B52: ='Year 3'!B51 -> 0 | C52: ='Year 3'!C51 -> 0 | D52: ='Year 3'!D51 -> TRS | E52: ='Year 3'!E51 -> Employee | F52: ='Year 3'!F51 -> No | G52: ='Year 3'!G51 -> 2007-09-01 | H52: 15.15 | J52: 0 | K52: 0 | L52: 0 | M52: 20.7 | N52: 20.7 | O52: 0 | P52: 0 | Q52: 15.15 | R52: 15.15 | S52: 100 | T52: 0 | U52: 0 | V52: 0 | W52: 0 | X52: 0
A53: ='Year 3'!A52 -> 0 | B53: ='Year 3'!B52 -> 0 | C53: ='Year 3'!C52 -> 0 | D53: ='Year 3'!D52 -> TRS | E53: ='Year 3'!E52 -> Employee | F53: ='Year 3'!F52 -> No | G53: ='Year 3'!G52 -> 2007-09-01 | H53: 15.15 | J53: 0 | K53: 0 | L53: 0 | M53: 20.7 | N53: 20.7 | O53: 0 | P53: 0 | Q53: 15.15 | R53: 15.15 | S53: 100 | T53: 0 | U53: 0 | V53: 0 | W53: 0 | X53: 0
A54: ='Year 3'!A53 -> 0 | B54: ='Year 3'!B53 -> 0 | C54: ='Year 3'!C53 -> 0 | D54: ='Year 3'!D53 -> TRS | E54: ='Year 3'!E53 -> Employee | F54: ='Year 3'!F53 -> No | G54: ='Year 3'!G53 -> 2007-09-01 | H54: 15.15 | J54: 0 | K54: 0 | L54: 0 | M54: 20.7 | N54: 20.7 | O54: 0 | P54: 0 | Q54: 15.15 | R54: 15.15 | S54: 100 | T54: 0 | U54: 0 | V54: 0 | W54: 0 | X54: 0
A55: ='Year 3'!A54 -> 0 | B55: ='Year 3'!B54 -> 0 | C55: ='Year 3'!C54 -> 0 | D55: ='Year 3'!D54 -> TRS | E55: ='Year 3'!E54 -> Employee | F55: ='Year 3'!F54 -> No | G55: ='Year 3'!G54 -> 2007-09-01 | H55: 15.15 | J55: 0 | K55: 0 | L55: 0 | M55: 20.7 | N55: 20.7 | O55: 0 | P55: 0 | Q55: 15.15 | R55: 15.15 | S55: 100 | T55: 0 | U55: 0 | V55: 0 | W55: 0 | X55: 0
A56: ='Year 3'!A55 -> 0 | B56: ='Year 3'!B55 -> 0 | C56: ='Year 3'!C55 -> 0 | D56: ='Year 3'!D55 -> TRS | E56: ='Year 3'!E55 -> Employee | F56: ='Year 3'!F55 -> No | G56: ='Year 3'!G55 -> 2007-09-01 | H56: 15.15 | J56: 0 | K56: 0 | L56: 0 | M56: 20.7 | N56: 20.7 | O56: 0 | P56: 0 | Q56: 15.15 | R56: 15.15 | S56: 100 | T56: 0 | U56: 0 | V56: 0 | W56: 0 | X56: 0
A57: =A33 -> 0 | B57: =B33 -> 0 | C57: =C33 -> 0 | D57: =IF($D33=$D$16,$D$40,$D$42) -> TRS | E57: =IF($D33=$D$16,$E$38,$E$39) -> Employee | F57: No | G57: =$J$4 -> 2007-09-01 | H57: 15.15 | J57: 0 | K57: 0 | L57: 0 | M57: 20.7 | N57: 20.7 | O57: 0 | P57: 0 | Q57: 15.15 | R57: 15.15 | S57: 100 | T57: 0 | U57: 0 | V57: 0 | W57: 0 | X57: 0
F58: Sum of Fringe Benefits for Personnel | J58: =SUM(J43:J57) -> 0 | K58: Hourly | L58: ORP | M58: TRS | N58: F1 Sum | O58: Hourly | P58: ORP | Q58: TRS | R58: F2 Sum | S58: % I applied | T58: Employee | U58: Spouse | V58: Children | W58: Family | X58: Ins Sum
F59: Sum of Personnel and Fringe Benefits | J59: =J34+J58 -> 0
A60: Students | H60: Number of Months (Academic) | I60: Number of Months (Summer) | M60: Students | R60: Fringe
A61: Last Name | B61: First Name | C61: EMPL ID# | D61: Student Type | E61: Responsibility | F61: Monthly Rate | G61: Percent Effort (%) | J61: Project Salary | K61: Rounded Number of Months | M61: Year 1 | N61: Year 2 | O61: Year 3 | P61: Year 4 | R61: Year 1 | S61: Year 2 | T61: Year 3 | U61: Year 4
D64: =FALSE() -> FALSE
D65: =TRUE() -> TRUE
E66: Clerical
D67: Graduate | E67: Programmer
D68: Undergrad | E68: Research Assistant
A69: ='Year 3'!A67 -> 0 | B69: ='Year 3'!B67 -> 0 | C69: ='Year 3'!C67 -> 0 | D69: ='Year 3'!D67 -> Graduate | E69: ='Year 3'!E67 -> 0 | F69: ='Year 3'!F67*(100+Living)/100 -> 0 | G69: 0 | H69: 0 | I69: 0 | J69: =F69*((G69*H69)/100+(G69*I69)/100) -> 0 | K69: =ROUNDUP(H69+I69,0) -> 0 | M69: ='Year 3'!M67 -> 0 | N69: ='Year 3'!N67 -> 0 | O69: ='Year 3'!O67 -> 0 | P69: =J69 -> 0 | R69: ='Year 3'!R67 -> 0 | S69: ='Year 3'!S67 -> 0 | T69: ='Year 3'!T67 -> 0 | U69: =J86 -> 0
A70: ='Year 3'!A68 -> 0 | B70: ='Year 3'!B68 -> 0 | C70: ='Year 3'!C68 -> 0 | D70: ='Year 3'!D68 -> Graduate | E70: ='Year 3'!E68 -> 0 | F70: ='Year 3'!F68*(100+Living)/100 -> 0 | G70: 0 | H70: 0 | I70: 0 | J70: 0 | K70: 0 | M70: ='Year 3'!M68 -> 0 | N70: ='Year 3'!N68 -> 0 | O70: ='Year 3'!O68 -> 0 | P70: 0 | R70: ='Year 3'!R68 -> 0 | S70: ='Year 3'!S68 -> 0 | T70: ='Year 3'!T68 -> 0 | U70: =J86 -> 0
A71: ='Year 3'!A69 -> 0 | B71: ='Year 3'!B69 -> 0 | C71: ='Year 3'!C69 -> 0 | D71: ='Year 3'!D69 -> Graduate | E71: ='Year 3'!E69 -> 0 | F71: ='Year 3'!F69*(100+Living)/100 -> 0 | G71: 0 | H71: 0 | I71: 0 | J71: =F71*((G71*H71)/100+(G71*I71)/100) -> 0 | K71: =ROUNDUP(H71+I71,0) -> 0 | M71: ='Year 3'!M69 -> 0 | N71: ='Year 3'!N69 -> 0 | O71: ='Year 3'!O69 -> 0 | P71: =J71 -> 0 | R71: ='Year 3'!R69 -> 0 | S71: ='Year 3'!S69 -> 0 | T71: ='Year 3'!T69 -> 0 | U71: =J87 -> 0
A72: ='Year 3'!A70 -> 0 | B72: ='Year 3'!B70 -> 0 | C72: ='Year 3'!C70 -> 0 | D72: ='Year 3'!D70 -> Graduate | E72: ='Year 3'!E70 -> 0 | F72: ='Year 3'!F70*(100+Living)/100 -> 0 | G72: 0 | H72: 0 | I72: 0 | J72: 0 | K72: 0 | M72: ='Year 3'!M70 -> 0 | N72: ='Year 3'!N70 -> 0 | O72: ='Year 3'!O70 -> 0 | P72: 0 | R72: ='Year 3'!R70 -> 0 | S72: ='Year 3'!S70 -> 0 | T72: ='Year 3'!T70 -> 0 | U72: =J89 -> 0
A73: ='Year 3'!A71 -> 0 | B73: ='Year 3'!B71 -> 0 | C73: ='Year 3'!C71 -> 0 | D73: ='Year 3'!D71 -> Graduate | E73: ='Year 3'!E71 -> 0 | F73: ='Year 3'!F71*(100+Living)/100 -> 0 | G73: 0 | H73: 0 | I73: 0 | J73: =F73*((G73*H73)/100+(G73*I73)/100) -> 0 | K73: =ROUNDUP(H73+I73,0) -> 0 | M73: ='Year 3'!M71 -> 0 | N73: ='Year 3'!N71 -> 0 | O73: ='Year 3'!O71 -> 0 | P73: =J73 -> 0 | R73: ='Year 3'!R71 -> 0 | S73: ='Year 3'!S71 -> 0 | T73: ='Year 3'!T71 -> 0 | U73: =J89 -> 0
A74: ='Year 3'!A72 -> 0 | B74: ='Year 3'!B72 -> 0 | C74: ='Year 3'!C72 -> 0 | D74: ='Year 3'!D72 -> Graduate | E74: ='Year 3'!E72 -> 0 | F74: ='Year 3'!F72*(100+Living)/100 -> 0 | G74: 0 | H74: 0 | I74: 0 | J74: 0 | K74: 0 | M74: ='Year 3'!M72 -> 0 | N74: ='Year 3'!N72 -> 0 | O74: ='Year 3'!O72 -> 0 | P74: 0 | R74: ='Year 3'!R72 -> 0 | S74: ='Year 3'!S72 -> 0 | T74: ='Year 3'!T72 -> 0 | U74: =J91 -> 0
A75: ='Year 3'!A73 -> 0 | B75: ='Year 3'!B73 -> 0 | C75: ='Year 3'!C73 -> 0 | D75: ='Year 3'!D73 -> Graduate | E75: ='Year 3'!E73 -> 0 | F75: ='Year 3'!F73*(100+Living)/100 -> 0 | G75: 0 | H75: 0 | I75: 0 | J75: 0 | K75: 0 | M75: ='Year 3'!M73 -> 0 | N75: ='Year 3'!N73 -> 0 | O75: ='Year 3'!O73 -> 0 | P75: 0 | R75: ='Year 3'!R73 -> 0 | S75: ='Year 3'!S73 -> 0 | T75: ='Year 3'!T73 -> 0 | U75: =J92 -> 0
A76: 0 | B76: 0 | C76: 0 | D76: Graduate | E76: 0 | F76: 0 | G76: 0 | H76: 0 | I76: 0 | J76: 0 | K76: 0 | M76: 0 | N76: 0 | O76: 0 | P76: 0 | R76: 0 | S76: 0 | T76: 0 | U76: =J93 -> 0
G77: Sum of Students | J77: =SUM(J69:J76) -> 0
A78: Fringe Benefits for Students
A79: Last Name | B79: First Name | C79: EMPL ID# | D79: Student Type | E79: Insurance Type | F79: Other Support | G79: Hire Date | H79: Fringe Rate | J79: Fringe Benefit Totals | K79: Fringe Rates before 9-1-95 | N79: Fringe Rates after 9-1-95 | Q79: Insurance and Longevity Calculations
E81: None
E82: Employee
D83: None | E83: Spouse
D84: ORP | E84: Children | F84: Yes
D85: TRS | E85: Family | F85: No | K85: Grad | L85: Under | M85: F1 Sum | N85: Grad | O85: Under | P85: F2 Sum | Q85: % I applied | R85: Employee | S85: Spouse | T85: Children | U85: Family | V85: Ins Sum
A86: ='Year 3'!A83 -> 0 | B86: ='Year 3'!B83 -> 0 | C86: ='Year 3'!C83 -> 0 | D86: ='Year 3'!D83 -> Graduate | E86: ='Year 3'!E83 -> Employee | F86: ='Year 3'!F83 -> No | G86: ='Year 3'!G83 -> 2007-09-01 | H86: =IF(G86>Fringe1End,P86,M86) -> 7.65 | J86: =(J69*H86/100)+V86 -> 0 | K86: =IF(D69=$D$67,F1.Grad,0) -> 6.85 | L86: =IF(D69=$D$68,F1.Under,0) -> 0 | M86: =SUM(K86:L86) -> 6.85 | N86: =IF(D69=$D$67,F2.Grad,0) -> 7.65 | O86: =IF(D69=$D$68,F2.Under,0) -> 0 | P86: =SUM(N86:O86) -> 7.65 | Q86: =IF(F86=$F$84,G69,100) -> 100 | R86: =IF($E86=$E$82,Ins.PT.E*$K69*Q86/100,0) -> 0 | S86: =IF($E86=$E$83,Ins.PT.S*$K69*Q86/100,0) -> 0 | T86: =IF($E86=$E$84,Ins.PT.C*$K69*Q86/100,0) -> 0 | U86: =IF($E86=$E$85,Ins.PT.F*$K69*Q86/100,0) -> 0 | V86: =SUM(R86:U86) -> 0
A87: ='Year 3'!A84 -> 0 | B87: ='Year 3'!B84 -> 0 | C87: ='Year 3'!C84 -> 0 | D87: ='Year 3'!D84 -> Graduate | E87: ='Year 3'!E84 -> Employee | F87: ='Year 3'!F84 -> No | G87: ='Year 3'!G84 -> 2007-09-01 | H87: 7.65 | J87: 0 | K87: 6.85 | L87: 0 | M87: 6.85 | N87: 7.65 | O87: 0 | P87: 7.65 | Q87: 100 | R87: 0 | S87: 0 | T87: 0 | U87: 0 | V87: 0
A88: ='Year 3'!A85 -> 0 | B88: ='Year 3'!B85 -> 0 | C88: ='Year 3'!C85 -> 0 | D88: ='Year 3'!D85 -> Graduate | E88: ='Year 3'!E85 -> Employee | F88: ='Year 3'!F85 -> No | G88: ='Year 3'!G85 -> 2007-09-01 | H88: =IF(G88>Fringe1End,P88,M88) -> 7.65 | J88: 0 | K88: 6.85 | L88: 0 | M88: =SUM(K88:L88) -> 6.85 | N88: 7.65 | O88: 0 | P88: =SUM(N88:O88) -> 7.65 | Q88: 100 | R88: 0 | S88: 0 | T88: 0 | U88: 0 | V88: =SUM(R88:U88) -> 0
A89: ='Year 3'!A86 -> 0 | B89: ='Year 3'!B86 -> 0 | C89: ='Year 3'!C86 -> 0 | D89: ='Year 3'!D86 -> Graduate | E89: ='Year 3'!E86 -> Employee | F89: ='Year 3'!F86 -> No | G89: ='Year 3'!G86 -> 2007-09-01 | H89: 7.65 | J89: 0 | K89: 6.85 | L89: 0 | M89: 6.85 | N89: 7.65 | O89: 0 | P89: 7.65 | Q89: 100 | R89: 0 | S89: 0 | T89: 0 | U89: 0 | V89: 0
A90: ='Year 3'!A87 -> 0 | B90: ='Year 3'!B87 -> 0 | C90: ='Year 3'!C87 -> 0 | D90: ='Year 3'!D87 -> Graduate | E90: ='Year 3'!E87 -> Employee | F90: ='Year 3'!F87 -> No | G90: ='Year 3'!G87 -> 2007-09-01 | H90: =IF(G90>Fringe1End,P90,M90) -> 7.65 | J90: 0 | K90: 6.85 | L90: 0 | M90: =SUM(K90:L90) -> 6.85 | N90: 7.65 | O90: 0 | P90: =SUM(N90:O90) -> 7.65 | Q90: 100 | R90: 0 | S90: 0 | T90: 0 | U90: 0 | V90: =SUM(R90:U90) -> 0
A91: ='Year 3'!A88 -> 0 | B91: ='Year 3'!B88 -> 0 | C91: ='Year 3'!C88 -> 0 | D91: ='Year 3'!D88 -> Graduate | E91: ='Year 3'!E88 -> Employee | F91: ='Year 3'!F88 -> No | G91: ='Year 3'!G88 -> 2007-09-01 | H91: 7.65 | J91: 0 | K91: 6.85 | L91: 0 | M91: 6.85 | N91: 7.65 | O91: 0 | P91: 7.65 | Q91: 100 | R91: 0 | S91: 0 | T91: 0 | U91: 0 | V91: 0
A92: ='Year 3'!A89 -> 0 | B92: ='Year 3'!B89 -> 0 | C92: ='Year 3'!C89 -> 0 | D92: ='Year 3'!D89 -> Graduate | E92: ='Year 3'!E89 -> Employee | F92: ='Year 3'!F89 -> No | G92: ='Year 3'!G89 -> 2007-09-01 | H92: 7.65 | J92: 0 | K92: 6.85 | L92: 0 | M92: 6.85 | N92: 7.65 | O92: 0 | P92: 7.65 | Q92: 100 | R92: 0 | S92: 0 | T92: 0 | U92: 0 | V92: 0
A93: =A76 -> 0 | B93: =B76 -> 0 | C93: =C76 -> 0 | D93: =D76 -> Graduate | E93: =IF($D76=$D$67,$E$82,$E$81) -> Employee | F93: No | G93: =$J$4 -> 2007-09-01 | H93: 7.65 | J93: 0 | K93: 6.85 | L93: 0 | M93: 6.85 | N93: 7.65 | O93: 0 | P93: 7.65 | Q93: 100 | R93: 0 | S93: 0 | T93: 0 | U93: 0 | V93: 0
F94: Sum of Fringe Benefits for Students | J94: =SUM(J86:J93) -> 0 | K94: Grad | L94: Under | M94: F1 Sum | N94: Grad | O94: Under | P94: F2 Sum | Q94: % I applied | R94: Employee | S94: Spouse | T94: Children | U94: Family | V94: Ins Sum
F95: Sum of Students and Fringe Benefits | J95: =J77+J94 -> 0
F96: Sum of Salary | J96: =J34+J77 -> 0
F97: Sum of Fringe Benefits | J97: =J58+J94 -> 0
F98: Sum of Personnel and Students | J98: =SUM(J96:J97) -> 0
A99: Travel
A100: Component | B100: Description | F100: Location | G100: Date | H100: Destination | J100: Cost
A102: Transportation | F102: In-State
A103: Meals | F103: Out-of-State
A104: Lodging | F104: Foreign
J105: 0
J106: 0
G107: Sum of Travel | J107: =SUM(J105:J106) -> 0
A108: Capital Expenditures/Equipment D | E108: These items individually are OVER $5,000.
A109: Item | C109: Description | G109: Amount | H109: Quantity | J109: Cost
G110: 0 | H110: 0 | J110: =G110*H110 -> 0
G111: 0 | H111: 0 | J111: =G111*H111 -> 0
G112: Sum of Equipment | J112: =SUM(J110:J111) -> 0
A113: Supplies | B113: These items individually are UNDER $5,000.
A114: Item | C114: Description | G114: Amount | H114: Quantity | J114: Cost
G115: 0 | H115: 0 | J115: =G115*H115 -> 0
G116: 0 | H116: 0 | J116: =G116*H116 -> 0
G117: Sum of Supplies | J117: =SUM(J115:J116) -> 0
A118: Publication Charges | D118: For the typical activities included in this category, hold mouse over the cell to the left.
A119: Item | C119: Description | G119: Price | H119: Quantity | J119: Cost
G120: 0 | H120: 0 | J120: =G120*H120 -> 0
G121: 0 | H121: 0 | J121: =G121*H121 -> 0
F122: Sum of Publication/Printing Charges | J122: =SUM(J120:J121) -> 0 | K122: This is the amount that can be charge IDC
A123: Sub-Contracts DÑ | C123: UNT employees can not be recipients of UNT sub-contracts and must be paid in personnel category.
A124: Item | C124: Description | J124: Amount | O124: Year 1 | P124: Year 2 | Q124: Year 3 | R124: Year 4
A125: ='Year 3'!A127:B127 -> 0 | C125: ='Year 3'!C127:H127 -> 0 | J125: 0 | K125: =IF(M125+J125>25000,IF(M125>=25000,0,25000-M125),J125) -> 0 | L125: 1 | M125: ='Year 3'!N127 -> 0 | N125: =SUM(M125,J125) -> 0 | O125: ='Year 3'!O127 -> 0 | P125: ='Year 3'!P127 -> 0 | Q125: ='Year 3'!Q127 -> 0 | R125: =J125 -> 0
A126: ='Year 3'!A128:B128 -> 0 | C126: ='Year 3'!C128:H128 -> 0 | J126: 0 | K126: =IF(M126+J126>25000,IF(M126>=25000,0,25000-M126),J126) -> 0 | L126: 1 | M126: ='Year 3'!N128 -> 0 | N126: =SUM(M126,J126) -> 0 | O126: ='Year 3'!O128 -> 0 | P126: ='Year 3'!P128 -> 0 | Q126: ='Year 3'!Q128 -> 0 | R126: =J126 -> 0
A127: ='Year 3'!A129:B129 -> 0 | C127: ='Year 3'!C129:H129 -> 0 | J127: 0 | K127: =IF(M127+J127>25000,IF(M127>=25000,0,25000-M127),J127) -> 0 | L127: 2 | M127: ='Year 3'!N129 -> 0 | N127: =SUM(M127,J127) -> 0 | O127: ='Year 3'!O129 -> 0 | P127: ='Year 3'!P129 -> 0 | Q127: ='Year 3'!Q129 -> 0 | R127: =J127 -> 0
A128: ='Year 3'!A130:B130 -> 0 | C128: ='Year 3'!C130:H130 -> 0 | J128: 0 | K128: =IF(M128+J128>25000,IF(M128>=25000,0,25000-M128),J128) -> 0 | L128: 3 | M128: ='Year 3'!N130 -> 0 | N128: =SUM(M128,J128) -> 0 | O128: ='Year 3'!O130 -> 0 | P128: ='Year 3'!P130 -> 0 | Q128: ='Year 3'!Q130 -> 0 | R128: =J128 -> 0
A129: 0 | J129: 0 | K129: =IF(M129+J129>25000,IF(M129>=25000,0,25000-M129),J129) -> 0 | L129: 4 | M129: 0 | N129: =SUM(M129,J128) -> 0 | O129: 0 | P129: 0 | Q129: 0 | R129: =J129 -> 0
F130: Sum of Sub-Contracts | J130: =SUM(J125:J129) -> 0 | K130: =SUM(K125:K129) -> 0 | L130: Year | M130: Previous | N130: Current
A131: Participant Support Costs D
A132: Item | C132: Description | G132: Amount | H132: Quantity | J132: Cost
A134: Scholarship
A135: Fellowship
A136: Travel
A137: Subsistence
A138: Other
G139: 0 | H139: 0 | J139: =G139*H139 -> 0
G140: 0 | H140: 0 | J140: =G140*H140 -> 0
H141: Sum of Participants Support Costs | J141: =SUM(J139:J140) -> 0
A142: Other-Graduate Student Tuition | E142: Calculate Grad Tuition in this Budget Category. IDC is not assessed on tuition.
A143: Item | C143: Description | G143: Amount | H143: Quantity | J143: Cost
G150: 0 | H150: 0 | J150: =G150*H150 -> 0
G151: 0 | H151: 0 | J151: =G151*H151 -> 0
H152: Sum of Other-Graduate Student Tuition | J152: =SUM(J150:J151) -> 0
A153: Other-All Other Costs except Graduate Tuition DÑ
A154: Item | C154: Description | G154: Price | H154: Quantity | J154: Cost
A156: Patient Care Charges | K156: This is the amount that can be charge IDC
A157: Off-site Facility Rental
A158: (User Defined)
G159: 0 | H159: 0 | J159: =G159*H159 -> 0 | K159: =IF(OR(A159=$A$156,A159=$A$157),0,J159) -> 0
G160: 0 | H160: 0 | J160: =G160*H160 -> 0 | K160: =IF(OR(A160=$A$156,A160=$A$157),0,J160) -> 0
H161: Sum of Other | J161: =SUM(J159:J160) -> 0 | K161: =SUM(K159:K160) -> 0
A162: Indirect Costs
A163: IDC Type | C163: IDC rate | D163: Documentation Location | F163: Modified Total Direct Costs (Base for F&A) | J163: =(J98+J107+J117+J122+K161+K130) -> 0
A164: ='Year 1'!A145:B145 -> Agency Restricted | C164: ='Year 1'!C145 -> 10 | D164: ='Year 1'!D145:F145 -> https://docs.gatesfoundation.org/documents/indirect_cost_policy.pdf | G164: IDC Amount on TDC | J164: =J165*C164/100 -> 0
F165: Total Direct Costs (Sponsor Direct) | J165: =SUM(J130,J161,J141,J122,J117,J112,J107,J98,J152) -> 0
E166: ="Total Amount Requested for "&J1&" Budget" -> Total Amount Requested for Year 4 Budget | J166: =SUM(J164:J165) -> 0
A168: University of North Texas, Office of Grants & Contracts Administration

Sheet Year 5
A1: File Number: | B1: ='Year 1'!B1 -> 20-0611 | C1: BB version: | E1: ='Year 1'!E1 -> FY 2020 | F1: This Budget is prepared for: | I1: ='Year 1'!I1 -> Gates Foundation | J1: Year 5
A2: Project Title: | B2: ='Year 1'!B2:J2 -> Genome-wide Knockdown Screens of Oocyte Maturation
A3: Budget Prepared by: | C3: ='Year 1'!C3:D3 -> Pudur Jagadeeswaran | E3: Phone Number: | F3: ='Year 1'!F3 -> 0 | G3: E-mail: | H3: ='Year 1'!H3:J3 -> 0
A4: Project Budget | F4: This Budget was drafted on: | I4: ='Year 1'!I4 -> 00:00:00 | J4: ='Year 1'!J4 -> 2007-09-01
A5: Personnel | H5: Number of Months (Academic) | I5: Number of Months (Summer) | M5: Personnel | R5: Fringe
A6: Last Name | B6: First Name | C6: EMPL ID# | D6: Employee Type | E6: Responsibility | F6: Monthly Rate | G6: Percent Effort (%) | J6: Project Salary | K6: Rounded Number of Months | M6: Year 1 | N6: Year 2 | O6: Year 3 | P6: Year 4 | Q6: Year 5 | R6: Year 1 | S6: Year 2 | T6: Year 3 | U6: Year 4 | V6: Year 5
E8: PI
E9: Co-PI
E10: Senior Personnel
E11: Research Assistant
E12: Teaching Assistant
C13: =FALSE() -> FALSE | E13: Investigator
C14: =TRUE() -> TRUE | D14: PT Staff | E14: Coordinator
D15: PT Faculty | E15: Technician
D16: Hourly | E16: Post Doc
D17: Faculty | E17: Clerical
D18: Staff | E18: Programmer
A19: ='Year 4'!A19 -> Jagadeeswaran | B19: ='Year 4'!B19 -> Pudur | C19: ='Year 4'!C19 -> 10523515 | D19: ='Year 4'!D19 -> Faculty | E19: ='Year 4'!E19 -> PI | F19: ='Year 4'!F19*(100+Living)/100 -> 21301.37974 | G19: 0 | H19: 0 | I19: 0 | J19: =F19*((G19*H19)/100+(G19*I19)/100) -> 0 | K19: =ROUNDUP(H19+I19,0) -> 0 | M19: ='Year 4'!M19 -> 53939.1 | N19: ='Year 4'!N19 -> 55557.273 | O19: ='Year 4'!O19 -> 57223.99119 | P19: ='Year 4'!P19 -> 0 | Q19: =J19 -> 0 | R19: ='Year 4'!R19 -> 11682.9252 | S19: ='Year 4'!S19 -> 11928.8875 | T19: ='Year 4'!T19 -> 12182.22866 | U19: ='Year 4'!U19 -> 0 | V19: =J44 -> 0
A20: ='Year 4'!A20 -> Iyer | B20: ='Year 4'!B20 -> Neha | C20: ='Year 4'!C20 -> 0 | D20: ='Year 4'!D20 -> Staff | E20: ='Year 4'!E20 -> Post Doc | F20: ='Year 4'!F20*(100+Living)/100 -> 4625.841209 | G20: 0 | H20: 0 | I20: 0 | J20: =F20*((G20*H20)/100+(G20*I20)/100) -> 0 | K20: =ROUNDUP(H20+I20,0) -> 0 | M20: ='Year 4'!M20 -> 49320 | N20: ='Year 4'!N20 -> 50799.6 | O20: ='Year 4'!O20 -> 52323.588 | P20: ='Year 4'!P20 -> 0 | Q20: 0 | R20: ='Year 4'!R20 -> 11682.9252 | S20: ='Year 4'!S20 -> 15193.9794 | T20: ='Year 4'!T20 -> 12182.22866 | U20: ='Year 4'!U20 -> 0 | V20: =J44 -> 0
A21: ='Year 4'!A21 -> Raman | B21: ='Year 4'!B21 -> Revathi | C21: ='Year 4'!C21 -> 0 | D21: ='Year 4'!D21 -> Staff | E21: ='Year 4'!E21 -> Post Doc | F21: ='Year 4'!F21*(100+Living)/100 -> 4625.841209 | G21: 0 | H21: 0 | I21: 0 | J21: 0 | K21: 0 | M21: ='Year 4'!M21 -> 49320 | N21: ='Year 4'!N21 -> 50799.6 | O21: ='Year 4'!O21 -> 52323.588 | P21: ='Year 4'!P21 -> 0 | Q21: 0 | R21: ='Year 4'!R21 -> 14969.82 | S21: ='Year 4'!S21 -> 15193.9794 | T21: ='Year 4'!T21 -> 15424.86358 | U21: ='Year 4'!U21 -> 0 | V21: =J45 -> 0
A22: ='Year 4'!A22 -> Sun | B22: ='Year 4'!B22 -> Kelsey | C22: ='Year 4'!C22 -> 0 | D22: ='Year 4'!D22 -> Staff | E22: ='Year 4'!E22 -> Research Technician | F22: ='Year 4'!F22*(100+Living)/100 -> 3657.903633 | G22: 0 | H22: 0 | I22: 0 | J22: =F22*((G22*H22)/100+(G22*I22)/100) -> 0 | K22: 0 | M22: ='Year 4'!M22 -> 39000 | N22: ='Year 4'!N22 -> 40170 | O22: ='Year 4'!O22 -> 41375.1 | P22: ='Year 4'!P22 -> 0 | Q22: 0 | R22: ='Year 4'!R22 -> 14969.82 | S22: ='Year 4'!S22 -> 13583.595 | T22: ='Year 4'!T22 -> 15424.86358 | U22: ='Year 4'!U22 -> 0 | V22: =J46 -> 0
A23: ='Year 4'!A23 -> 0 | B23: ='Year 4'!B23 -> 0 | C23: ='Year 4'!C23 -> 0 | D23: ='Year 4'!D23 -> 0 | E23: ='Year 4'!E23 -> 0 | F23: ='Year 4'!F23*(100+Living)/100 -> 0 | G23: 0 | H23: 0 | I23: 0 | J23: =F23*((G23*H23)/100+(G23*I23)/100) -> 0 | K23: =ROUNDUP(H23+I23,0) -> 0 | M23: ='Year 4'!M23 -> 0 | N23: ='Year 4'!N23 -> 0 | O23: ='Year 4'!O23 -> 0 | P23: ='Year 4'!P23 -> 0 | Q23: 0 | R23: ='Year 4'!R23 -> 13406.34 | S23: ='Year 4'!S23 -> 0 | T23: ='Year 4'!T23 -> 13766.16765 | U23: ='Year 4'!U23 -> 0 | V23: =J47 -> 0
A24: ='Year 4'!A24 -> 0 | B24: ='Year 4'!B24 -> 0 | C24: ='Year 4'!C24 -> 0 | D24: ='Year 4'!D24 -> 0 | E24: ='Year 4'!E24 -> 0 | F24: ='Year 4'!F24*(100+Living)/100 -> 0 | G24: 0 | H24: 0 | I24: 0 | J24: =F24*((G24*H24)/100+(G24*I24)/100) -> 0 | K24: =ROUNDUP(H24+I24,0) -> 0 | M24: ='Year 4'!M24 -> 0 | N24: ='Year 4'!N24 -> 0 | O24: ='Year 4'!O24 -> 0 | P24: ='Year 4'!P24 -> 0 | Q24: 0 | R24: ='Year 4'!R24 -> 0 | S24: ='Year 4'!S24 -> 0 | T24: ='Year 4'!T24 -> 0 | U24: ='Year 4'!U24 -> 0 | V24: =J48 -> 0
A25: ='Year 4'!A25 -> 0 | B25: ='Year 4'!B25 -> 0 | C25: ='Year 4'!C25 -> 0 | D25: ='Year 4'!D25 -> 0 | E25: ='Year 4'!E25 -> 0 | F25: ='Year 4'!F25*(100+Living)/100 -> 0 | G25: 0 | H25: 0 | I25: 0 | J25: 0 | K25: 0 | M25: ='Year 4'!M25 -> 0 | N25: ='Year 4'!N25 -> 0 | O25: ='Year 4'!O25 -> 0 | P25: ='Year 4'!P25 -> 0 | Q25: 0 | R25: ='Year 4'!R25 -> 0 | S25: ='Year 4'!S25 -> 0 | T25: ='Year 4'!T25 -> 0 | U25: ='Year 4'!U25 -> 0 | V25: =J50 -> 0
A26: ='Year 4'!A26 -> 0 | B26: ='Year 4'!B26 -> 0 | C26: ='Year 4'!C26 -> 0 | D26: ='Year 4'!D26 -> 0 | E26: ='Year 4'!E26 -> 0 | F26: ='Year 4'!F26*(100+Living)/100 -> 0 | G26: 0 | H26: 0 | I26: 0 | J26: =F26*((G26*H26)/100+(G26*I26)/100) -> 0 | K26: =ROUNDUP(H26+I26,0) -> 0 | M26: ='Year 4'!M26 -> 0 | N26: ='Year 4'!N26 -> 0 | O26: ='Year 4'!O26 -> 0 | P26: ='Year 4'!P26 -> 0 | Q26: 0 | R26: ='Year 4'!R26 -> 0 | S26: ='Year 4'!S26 -> 0 | T26: ='Year 4'!T26 -> 0 | U26: ='Year 4'!U26 -> 0 | V26: =J50 -> 0
A27: ='Year 4'!A27 -> 0 | B27: ='Year 4'!B27 -> 0 | C27: ='Year 4'!C27 -> 0 | D27: ='Year 4'!D27 -> 0 | E27: ='Year 4'!E27 -> 0 | F27: ='Year 4'!F27*(100+Living)/100 -> 0 | G27: 0 | H27: 0 | I27: 0 | J27: =F27*((G27*H27)/100+(G27*I27)/100) -> 0 | K27: =ROUNDUP(H27+I27,0) -> 0 | M27: ='Year 4'!M27 -> 0 | N27: ='Year 4'!N27 -> 0 | O27: ='Year 4'!O27 -> 0 | P27: ='Year 4'!P27 -> 0 | Q27: 0 | R27: ='Year 4'!R27 -> 0 | S27: ='Year 4'!S27 -> 0 | T27: ='Year 4'!T27 -> 0 | U27: ='Year 4'!U27 -> 0 | V27: =J51 -> 0
A28: ='Year 4'!A28 -> 0 | B28: ='Year 4'!B28 -> 0 | C28: ='Year 4'!C28 -> 0 | D28: ='Year 4'!D28 -> 0 | E28: ='Year 4'!E28 -> 0 | F28: ='Year 4'!F28*(100+Living)/100 -> 0 | G28: 0 | H28: 0 | I28: 0 | J28: =F28*((G28*H28)/100+(G28*I28)/100) -> 0 | K28: =ROUNDUP(H28+I28,0) -> 0 | M28: ='Year 4'!M28 -> 0 | N28: ='Year 4'!N28 -> 0 | O28: ='Year 4'!O28 -> 0 | P28: ='Year 4'!P28 -> 0 | Q28: =J28 -> 0 | R28: ='Year 4'!R28 -> 0 | S28: ='Year 4'!S28 -> 0 | T28: ='Year 4'!T28 -> 0 | U28: ='Year 4'!U28 -> 0 | V28: =J52 -> 0
A29: ='Year 4'!A29 -> 0 | B29: ='Year 4'!B29 -> 0 | C29: ='Year 4'!C29 -> 0 | D29: ='Year 4'!D29 -> 0 | E29: ='Year 4'!E29 -> 0 | F29: ='Year 4'!F29*(100+Living)/100 -> 0 | G29: 0 | H29: 0 | I29: 0 | J29: 0 | K29: 0 | M29: ='Year 4'!M29 -> 0 | N29: ='Year 4'!N29 -> 0 | O29: ='Year 4'!O29 -> 0 | P29: ='Year 4'!P29 -> 0 | Q29: 0 | R29: ='Year 4'!R29 -> 0 | S29: ='Year 4'!S29 -> 0 | T29: ='Year 4'!T29 -> 0 | U29: ='Year 4'!U29 -> 0 | V29: =J54 -> 0
A30: ='Year 4'!A30 -> 0 | B30: ='Year 4'!B30 -> 0 | C30: ='Year 4'!C30 -> 0 | D30: ='Year 4'!D30 -> 0 | E30: ='Year 4'!E30 -> 0 | F30: ='Year 4'!F30*(100+Living)/100 -> 0 | G30: 0 | H30: 0 | I30: 0 | J30: =F30*((G30*H30)/100+(G30*I30)/100) -> 0 | K30: =ROUNDUP(H30+I30,0) -> 0 | M30: ='Year 4'!M30 -> 0 | N30: ='Year 4'!N30 -> 0 | O30: ='Year 4'!O30 -> 0 | P30: ='Year 4'!P30 -> 0 | Q30: 0 | R30: ='Year 4'!R30 -> 0 | S30: ='Year 4'!S30 -> 0 | T30: ='Year 4'!T30 -> 0 | U30: ='Year 4'!U30 -> 0 | V30: =J54 -> 0
A31: ='Year 4'!A31 -> 0 | B31: ='Year 4'!B31 -> 0 | C31: ='Year 4'!C31 -> 0 | D31: ='Year 4'!D31 -> 0 | E31: ='Year 4'!E31 -> 0 | F31: ='Year 4'!F31*(100+Living)/100 -> 0 | G31: 0 | H31: 0 | I31: 0 | J31: =F31*((G31*H31)/100+(G31*I31)/100) -> 0 | K31: =ROUNDUP(H31+I31,0) -> 0 | M31: ='Year 4'!M31 -> 0 | N31: ='Year 4'!N31 -> 0 | O31: ='Year 4'!O31 -> 0 | P31: ='Year 4'!P31 -> 0 | Q31: =J31 -> 0 | R31: ='Year 4'!R31 -> 0 | S31: ='Year 4'!S31 -> 0 | T31: ='Year 4'!T31 -> 0 | U31: ='Year 4'!U31 -> 0 | V31: =J55 -> 0
A32: ='Year 4'!A32 -> 0 | B32: ='Year 4'!B32 -> 0 | C32: ='Year 4'!C32 -> 0 | D32: ='Year 4'!D32 -> 0 | E32: ='Year 4'!E32 -> 0 | F32: ='Year 4'!F32*(100+Living)/100 -> 0 | G32: 0 | H32: 0 | I32: 0 | J32: 0 | K32: 0 | M32: ='Year 4'!M32 -> 0 | N32: ='Year 4'!N32 -> 0 | O32: ='Year 4'!O32 -> 0 | P32: ='Year 4'!P32 -> 0 | Q32: 0 | R32: ='Year 4'!R32 -> 0 | S32: ='Year 4'!S32 -> 0 | T32: ='Year 4'!T32 -> 0 | U32: ='Year 4'!U32 -> 0 | V32: =J57 -> 0
A33: ='Year 4'!A33 -> 0 | B33: ='Year 4'!B33 -> 0 | C33: ='Year 4'!C33 -> 0 | D33: ='Year 4'!D33 -> 0 | E33: ='Year 4'!E33 -> 0 | F33: ='Year 4'!F33*(100+Living)/100 -> 0 | G33: 0 | H33: 0 | I33: 0 | J33: 0 | K33: 0 | M33: ='Year 4'!M33 -> 0 | N33: ='Year 4'!N33 -> 0 | O33: ='Year 4'!O33 -> 0 | P33: ='Year 4'!P33 -> 0 | Q33: 0 | R33: ='Year 4'!R33 -> 0 | S33: ='Year 4'!S33 -> 0 | T33: ='Year 4'!T33 -> 0 | U33: ='Year 4'!U33 -> 0 | V33: =J58 -> 0
A34: 0 | B34: 0 | C34: 0 | D34: 0 | E34: 0 | F34: 0 | G34: 0 | H34: 0 | I34: 0 | J34: 0 | K34: 0 | M34: 0 | N34: 0 | O34: 0 | P34: 0 | Q34: 0 | R34: 0 | S34: 0 | T34: 0 | U34: 0 | V34: =J59 -> 0
G35: Sum of Personnel | J35: =SUM(J19:J34) -> 0
A36: Fringe Benefits for Personnel
A37: Last Name | B37: First Name | C37: EMPL ID# | D37: Retirement | E37: Insurance Type | F37: Other Support | G37: Hire Date | H37: Fringe Rate | J37: Fringe Benefit Totals | K37: Fringe Rates before 9-1-95 | O37: Fringe Rates after 9-1-95 | S37: Insurance and Longevity Calculations
E39: None
E40: Employee
D41: Hourly | E41: Spouse
D42: ORP | E42: Children | F42: Yes
D43: TRS | E43: Family | F43: No | K43: Hourly | L43: ORP | M43: TRS | N43: F1 Sum | O43: Hourly | P43: ORP | Q43: TRS | R43: F2 Sum | S43: % I applied | T43: Employee | U43: Spouse | V43: Children | W43: Family | X43: Ins Sum
A44: ='Year 4'!A43 -> Jagadeeswaran | B44: ='Year 4'!B43 -> Pudur | C44: ='Year 4'!C43 -> 10523515 | D44: ='Year 4'!D43 -> ORP | E44: ='Year 4'!E43 -> Family | F44: ='Year 4'!F43 -> Yes | G44: ='Year 4'!G43 -> 2007-09-01 | H44: =IF(G44>Fringe1End,R44,N44) -> 15.2 | J44: =(J19*H44/100)+X44 -> 0 | K44: =IF(D44=$D$41,F1.Hourly,0) -> 0 | L44: =IF(D44=$D$42,F1.FS.ORP,0) -> 21.47 | M44: =IF(D44=$D$43,F1.FS.TRS,0) -> 0 | N44: =SUM(K44:M44) -> 21.47 | O44: =IF(D44=$D$41,F2.Hourly,0) -> 0 | P44: =IF(D44=$D$42,F2.FS.ORP,0) -> 15.2 | Q44: =IF(D44=$D$43,F2.FS.TRS,0) -> 0 | R44: =SUM(O44:Q44) -> 15.2 | S44: =IF(F44=$F$42,G19,100) -> 0 | T44: =IF($E44=$E$40,IF($D19=$D$14,Ins.PT.E*$K19*S44/100,IF($D19=$D$15,Ins.PT.E*$K19*S44/100,Ins.E*$K19*S44/100)),0) -> 0 | U44: =IF($E44=$E$41,IF($D19=$D$14,Ins.PT.S*$K19*S44/100,IF($D19=$D$15,Ins.PT.S*$K19*S44/100,Ins.S*$K19*S44/100)),0) -> 0 | V44: =IF($E44=$E$42,IF($D19=$D$14,Ins.PT.C*$K19*S44/100,IF($D19=$D$15,Ins.PT.C*$K19*S44/100,Ins.C*$K19*S44/100)),0) -> 0 | W44: =IF($E44=$E$43,IF($D19=$D$14,Ins.PT.F*$K19*S44/100,IF($D19=$D$15,Ins.PT.F*$K19*S44/100,Ins.F*$K19*S44/100)),0) -> 0 | X44: =IF(D19=$D$18,ROUNDDOWN(DAYS360(G44,$J$4)/(360*Long.Per),0)*20*K19*G19/100,0)+SUM(T44:W44) -> 0
A45: ='Year 4'!A44 -> Iyer | B45: ='Year 4'!B44 -> Neha | C45: ='Year 4'!C44 -> 0 | D45: ='Year 4'!D44 -> TRS | E45: ='Year 4'!E44 -> Employee | F45: ='Year 4'!F44 -> Yes | G45: ='Year 4'!G44 -> 2007-09-01 | H45: 15.15 | J45: 0 | K45: 0 | L45: 0 | M45: 20.7 | N45: 20.7 | O45: 0 | P45: 0 | Q45: 15.15 | R45: 15.15 | S45: 0 | T45: 0 | U45: 0 | V45: 0 | W45: 0 | X45: 0
A46: ='Year 4'!A45 -> Raman | B46: ='Year 4'!B45 -> Revathi | C46: ='Year 4'!C45 -> 0 | D46: ='Year 4'!D45 -> TRS | E46: ='Year 4'!E45 -> Employee | F46: ='Year 4'!F45 -> Yes | G46: ='Year 4'!G45 -> 2007-09-01 | H46: 15.15 | J46: 0 | K46: 0 | L46: 0 | M46: 20.7 | N46: 20.7 | O46: 0 | P46: 0 | Q46: 15.15 | R46: 15.15 | S46: 0 | T46: 0 | U46: 0 | V46: 0 | W46: 0 | X46: 0
A47: ='Year 4'!A46 -> Sun | B47: ='Year 4'!B46 -> Kelsey | C47: ='Year 4'!C46 -> 0 | D47: ='Year 4'!D46 -> TRS | E47: ='Year 4'!E46 -> Employee | F47: ='Year 4'!F46 -> Yes | G47: ='Year 4'!G46 -> 2007-09-01 | H47: 15.15 | J47: 0 | K47: 0 | L47: 0 | M47: 20.7 | N47: 20.7 | O47: 0 | P47: 0 | Q47: 15.15 | R47: 15.15 | S47: 0 | T47: 0 | U47: 0 | V47: 0 | W47: 0 | X47: 0
A48: ='Year 4'!A47 -> 0 | B48: ='Year 4'!B47 -> 0 | C48: ='Year 4'!C47 -> 0 | D48: ='Year 4'!D47 -> TRS | E48: ='Year 4'!E47 -> Employee | F48: ='Year 4'!F47 -> Yes | G48: ='Year 4'!G47 -> 2007-09-01 | H48: 15.15 | J48: 0 | K48: 0 | L48: 0 | M48: 20.7 | N48: 20.7 | O48: 0 | P48: 0 | Q48: 15.15 | R48: 15.15 | S48: 0 | T48: 0 | U48: 0 | V48: 0 | W48: 0 | X48: 0
A49: ='Year 4'!A48 -> 0 | B49: ='Year 4'!B48 -> 0 | C49: ='Year 4'!C48 -> 0 | D49: ='Year 4'!D48 -> TRS | E49: ='Year 4'!E48 -> Employee | F49: ='Year 4'!F48 -> Yes | G49: ='Year 4'!G48 -> 2007-09-01 | H49: 15.15 | J49: 0 | K49: 0 | L49: 0 | M49: 20.7 | N49: 20.7 | O49: 0 | P49: 0 | Q49: 15.15 | R49: 15.15 | S49: 0 | T49: 0 | U49: 0 | V49: 0 | W49: 0 | X49: 0
A50: ='Year 4'!A49 -> 0 | B50: ='Year 4'!B49 -> 0 | C50: ='Year 4'!C49 -> 0 | D50: ='Year 4'!D49 -> TRS | E50: ='Year 4'!E49 -> Employee | F50: ='Year 4'!F49 -> No | G50: ='Year 4'!G49 -> 2007-09-01 | H50: 15.15 | J50: 0 | K50: 0 | L50: 0 | M50: 20.7 | N50: 20.7 | O50: 0 | P50: 0 | Q50: 15.15 | R50: 15.15 | S50: 100 | T50: 0 | U50: 0 | V50: 0 | W50: 0 | X50: 0
A51: ='Year 4'!A50 -> 0 | B51: ='Year 4'!B50 -> 0 | C51: ='Year 4'!C50 -> 0 | D51: ='Year 4'!D50 -> TRS | E51: ='Year 4'!E50 -> Employee | F51: ='Year 4'!F50 -> No | G51: ='Year 4'!G50 -> 2007-09-01 | H51: 15.15 | J51: 0 | K51: 0 | L51: 0 | M51: 20.7 | N51: 20.7 | O51: 0 | P51: 0 | Q51: 15.15 | R51: 15.15 | S51: 100 | T51: 0 | U51: 0 | V51: 0 | W51: 0 | X51: 0
A52: ='Year 4'!A51 -> 0 | B52: ='Year 4'!B51 -> 0 | C52: ='Year 4'!C51 -> 0 | D52: ='Year 4'!D51 -> TRS | E52: ='Year 4'!E51 -> Employee | F52: ='Year 4'!F51 -> No | G52: ='Year 4'!G51 -> 2007-09-01 | H52: 15.15 | J52: 0 | K52: 0 | L52: 0 | M52: 20.7 | N52: 20.7 | O52: 0 | P52: 0 | Q52: 15.15 | R52: 15.15 | S52: 100 | T52: 0 | U52: 0 | V52: 0 | W52: 0 | X52: 0
A53: ='Year 4'!A52 -> 0 | B53: ='Year 4'!B52 -> 0 | C53: ='Year 4'!C52 -> 0 | D53: ='Year 4'!D52 -> TRS | E53: ='Year 4'!E52 -> Employee | F53: ='Year 4'!F52 -> No | G53: ='Year 4'!G52 -> 2007-09-01 | H53: =IF(G53>Fringe1End,R53,N53) -> 15.15 | J53: 0 | K53: =IF(D53=$D$41,F1.Hourly,0) -> 0 | L53: =IF(D53=$D$42,F1.FS.ORP,0) -> 0 | M53: =IF(D53=$D$43,F1.FS.TRS,0) -> 20.7 | N53: =SUM(K53:M53) -> 20.7 | O53: =IF(D53=$D$41,F2.Hourly,0) -> 0 | P53: =IF(D53=$D$42,F2.FS.ORP,0) -> 0 | Q53: =IF(D53=$D$43,F2.FS.TRS,0) -> 15.15 | R53: =SUM(O53:Q53) -> 15.15 | S53: 100 | T53: 0 | U53: 0 | V53: 0 | W53: 0 | X53: 0
A54: ='Year 4'!A53 -> 0 | B54: ='Year 4'!B53 -> 0 | C54: ='Year 4'!C53 -> 0 | D54: ='Year 4'!D53 -> TRS | E54: ='Year 4'!E53 -> Employee | F54: ='Year 4'!F53 -> No | G54: ='Year 4'!G53 -> 2007-09-01 | H54: 15.15 | J54: 0 | K54: 0 | L54: 0 | M54: 20.7 | N54: 20.7 | O54: 0 | P54: 0 | Q54: 15.15 | R54: 15.15 | S54: 100 | T54: 0 | U54: 0 | V54: 0 | W54: 0 | X54: 0
A55: ='Year 4'!A54 -> 0 | B55: ='Year 4'!B54 -> 0 | C55: ='Year 4'!C54 -> 0 | D55: ='Year 4'!D54 -> TRS | E55: ='Year 4'!E54 -> Employee | F55: ='Year 4'!F54 -> No | G55: ='Year 4'!G54 -> 2007-09-01 | H55: 15.15 | J55: 0 | K55: 0 | L55: 0 | M55: 20.7 | N55: 20.7 | O55: 0 | P55: 0 | Q55: 15.15 | R55: 15.15 | S55: 100 | T55: 0 | U55: 0 | V55: 0 | W55: 0 | X55: 0
A56: ='Year 4'!A55 -> 0 | B56: ='Year 4'!B55 -> 0 | C56: ='Year 4'!C55 -> 0 | D56: ='Year 4'!D55 -> TRS | E56: ='Year 4'!E55 -> Employee | F56: ='Year 4'!F55 -> No | G56: ='Year 4'!G55 -> 2007-09-01 | H56: =IF(G56>Fringe1End,R56,N56) -> 15.15 | J56: 0 | K56: =IF(D56=$D$41,F1.Hourly,0) -> 0 | L56: =IF(D56=$D$42,F1.FS.ORP,0) -> 0 | M56: =IF(D56=$D$43,F1.FS.TRS,0) -> 20.7 | N56: =SUM(K56:M56) -> 20.7 | O56: =IF(D56=$D$41,F2.Hourly,0) -> 0 | P56: =IF(D56=$D$42,F2.FS.ORP,0) -> 0 | Q56: =IF(D56=$D$43,F2.FS.TRS,0) -> 15.15 | R56: =SUM(O56:Q56) -> 15.15 | S56: 100 | T56: 0 | U56: 0 | V56: 0 | W56: 0 | X56: 0
A57: ='Year 4'!A56 -> 0 | B57: ='Year 4'!B56 -> 0 | C57: ='Year 4'!C56 -> 0 | D57: ='Year 4'!D56 -> TRS | E57: ='Year 4'!E56 -> Employee | F57: ='Year 4'!F56 -> No | G57: ='Year 4'!G56 -> 2007-09-01 | H57: 15.15 | J57: 0 | K57: 0 | L57: 0 | M57: 20.7 | N57: 20.7 | O57: 0 | P57: 0 | Q57: 15.15 | R57: 15.15 | S57: 100 | T57: 0 | U57: 0 | V57: 0 | W57: 0 | X57: 0
A58: ='Year 4'!A57 -> 0 | B58: ='Year 4'!B57 -> 0 | C58: ='Year 4'!C57 -> 0 | D58: ='Year 4'!D57 -> TRS | E58: ='Year 4'!E57 -> Employee | F58: ='Year 4'!F57 -> No | G58: ='Year 4'!G57 -> 2007-09-01 | H58: 15.15 | J58: 0 | K58: 0 | L58: 0 | M58: 20.7 | N58: 20.7 | O58: 0 | P58: 0 | Q58: 15.15 | R58: 15.15 | S58: 100 | T58: 0 | U58: 0 | V58: 0 | W58: 0 | X58: 0
A59: =A34 -> 0 | B59: =B34 -> 0 | C59: =C34 -> 0 | D59: =IF($D34=$D$16,$D$41,$D$43) -> TRS | E59: =IF($D34=$D$16,$E$39,$E$40) -> Employee | F59: No | G59: =$J$4 -> 2007-09-01 | H59: 15.15 | J59: 0 | K59: 0 | L59: 0 | M59: 20.7 | N59: 20.7 | O59: 0 | P59: 0 | Q59: 15.15 | R59: 15.15 | S59: 100 | T59: 0 | U59: 0 | V59: 0 | W59: 0 | X59: 0
F60: Sum of Fringe Benefits for Personnel | J60: =SUM(J44:J59) -> 0 | K60: Hourly | L60: ORP | M60: TRS | N60: F1 Sum | O60: Hourly | P60: ORP | Q60: TRS | R60: F2 Sum | S60: % I applied | T60: Employee | U60: Spouse | V60: Children | W60: Family | X60: Ins Sum
F61: Sum of Personnel and Fringe Benefits | J61: =J35+J60 -> 0
A62: Students | H62: Number of Months (Academic) | I62: Number of Months (Summer) | M62: Students | R62: Fringe
A63: Last Name | B63: First Name | C63: EMPL ID# | D63: Student Type | E63: Responsibility | F63: Monthly Rate | G63: Percent Effort (%) | J63: Project Salary | K63: Rounded Number of Months | M63: Year 1 | N63: Year 2 | O63: Year 3 | P63: Year 4 | Q63: Year 5 | R63: Year 1 | S63: Year 2 | T63: Year 3 | U63: Year 4 | V63: Year 5
D66: =FALSE() -> FALSE
D67: =TRUE() -> TRUE
E68: Clerical
D69: Graduate | E69: Programmer
D70: Undergrad | E70: Research Assistant
A71: ='Year 4'!A69 -> 0 | B71: ='Year 4'!B69 -> 0 | C71: ='Year 4'!C69 -> 0 | D71: ='Year 4'!D69 -> Graduate | E71: ='Year 4'!E69 -> 0 | F71: ='Year 4'!F69*(100+Living)/100 -> 0 | G71: 0 | H71: 0 | I71: 0 | J71: =F71*((G71*H71)/100+(G71*I71)/100) -> 0 | K71: =ROUNDUP(H71+I71,0) -> 0 | M71: ='Year 4'!M69 -> 0 | N71: ='Year 4'!N69 -> 0 | O71: ='Year 4'!O69 -> 0 | P71: ='Year 4'!P69 -> 0 | Q71: =J71 -> 0 | R71: ='Year 4'!R69 -> 0 | S71: ='Year 4'!S69 -> 0 | T71: ='Year 4'!T69 -> 0 | U71: ='Year 4'!U69 -> 0 | V71: =J89 -> 0
A72: ='Year 4'!A70 -> 0 | B72: ='Year 4'!B70 -> 0 | C72: ='Year 4'!C70 -> 0 | D72: ='Year 4'!D70 -> Graduate | E72: ='Year 4'!E70 -> 0 | F72: ='Year 4'!F70*(100+Living)/100 -> 0 | G72: 0 | H72: 0 | I72: 0 | J72: =F72*((G72*H72)/100+(G72*I72)/100) -> 0 | K72: =ROUNDUP(H72+I72,0) -> 0 | M72: ='Year 4'!M70 -> 0 | N72: ='Year 4'!N70 -> 0 | O72: ='Year 4'!O70 -> 0 | P72: ='Year 4'!P70 -> 0 | Q72: =J72 -> 0 | R72: ='Year 4'!R70 -> 0 | S72: ='Year 4'!S70 -> 0 | T72: ='Year 4'!T70 -> 0 | U72: ='Year 4'!U70 -> 0 | V72: =J89 -> 0
A73: ='Year 4'!A71 -> 0 | B73: ='Year 4'!B71 -> 0 | C73: ='Year 4'!C71 -> 0 | D73: ='Year 4'!D71 -> Graduate | E73: ='Year 4'!E71 -> 0 | F73: ='Year 4'!F71*(100+Living)/100 -> 0 | G73: 0 | H73: 0 | I73: 0 | J73: =F73*((G73*H73)/100+(G73*I73)/100) -> 0 | K73: =ROUNDUP(H73+I73,0) -> 0 | M73: ='Year 4'!M71 -> 0 | N73: ='Year 4'!N71 -> 0 | O73: ='Year 4'!O71 -> 0 | P73: ='Year 4'!P71 -> 0 | Q73: =J73 -> 0 | R73: ='Year 4'!R71 -> 0 | S73: ='Year 4'!S71 -> 0 | T73: ='Year 4'!T71 -> 0 | U73: ='Year 4'!U71 -> 0 | V73: =J90 -> 0
A74: ='Year 4'!A72 -> 0 | B74: ='Year 4'!B72 -> 0 | C74: ='Year 4'!C72 -> 0 | D74: ='Year 4'!D72 -> Graduate | E74: ='Year 4'!E72 -> 0 | F74: ='Year 4'!F72*(100+Living)/100 -> 0 | G74: 0 | H74: 0 | I74: 0 | J74: 0 | K74: 0 | M74: ='Year 4'!M72 -> 0 | N74: ='Year 4'!N72 -> 0 | O74: ='Year 4'!O72 -> 0 | P74: ='Year 4'!P72 -> 0 | Q74: 0 | R74: ='Year 4'!R72 -> 0 | S74: ='Year 4'!S72 -> 0 | T74: ='Year 4'!T72 -> 0 | U74: ='Year 4'!U72 -> 0 | V74: =J92 -> 0
A75: ='Year 4'!A73 -> 0 | B75: ='Year 4'!B73 -> 0 | C75: ='Year 4'!C73 -> 0 | D75: ='Year 4'!D73 -> Graduate | E75: ='Year 4'!E73 -> 0 | F75: ='Year 4'!F73*(100+Living)/100 -> 0 | G75: 0 | H75: 0 | I75: 0 | J75: =F75*((G75*H75)/100+(G75*I75)/100) -> 0 | K75: =ROUNDUP(H75+I75,0) -> 0 | M75: ='Year 4'!M73 -> 0 | N75: ='Year 4'!N73 -> 0 | O75: ='Year 4'!O73 -> 0 | P75: ='Year 4'!P73 -> 0 | Q75: =J75 -> 0 | R75: ='Year 4'!R73 -> 0 | S75: ='Year 4'!S73 -> 0 | T75: ='Year 4'!T73 -> 0 | U75: ='Year 4'!U73 -> 0 | V75: =J92 -> 0
A76: ='Year 4'!A74 -> 0 | B76: ='Year 4'!B74 -> 0 | C76: ='Year 4'!C74 -> 0 | D76: ='Year 4'!D74 -> Graduate | E76: ='Year 4'!E74 -> 0 | F76: ='Year 4'!F74*(100+Living)/100 -> 0 | G76: 0 | H76: 0 | I76: 0 | J76: 0 | K76: 0 | M76: ='Year 4'!M74 -> 0 | N76: ='Year 4'!N74 -> 0 | O76: ='Year 4'!O74 -> 0 | P76: ='Year 4'!P74 -> 0 | Q76: 0 | R76: ='Year 4'!R74 -> 0 | S76: ='Year 4'!S74 -> 0 | T76: ='Year 4'!T74 -> 0 | U76: ='Year 4'!U74 -> 0 | V76: =J94 -> 0
A77: ='Year 4'!A75 -> 0 | B77: ='Year 4'!B75 -> 0 | C77: ='Year 4'!C75 -> 0 | D77: ='Year 4'!D75 -> Graduate | E77: ='Year 4'!E75 -> 0 | F77: ='Year 4'!F75*(100+Living)/100 -> 0 | G77: 0 | H77: 0 | I77: 0 | J77: 0 | K77: 0 | M77: ='Year 4'!M75 -> 0 | N77: ='Year 4'!N75 -> 0 | O77: ='Year 4'!O75 -> 0 | P77: ='Year 4'!P75 -> 0 | Q77: 0 | R77: ='Year 4'!R75 -> 0 | S77: ='Year 4'!S75 -> 0 | T77: ='Year 4'!T75 -> 0 | U77: ='Year 4'!U75 -> 0 | V77: =J95 -> 0
A78: ='Year 4'!A76 -> 0 | B78: ='Year 4'!B76 -> 0 | C78: ='Year 4'!C76 -> 0 | D78: ='Year 4'!D76 -> Graduate | E78: ='Year 4'!E76 -> 0 | F78: ='Year 4'!F76*(100+Living)/100 -> 0 | G78: 0 | H78: 0 | I78: 0 | J78: 0 | K78: 0 | M78: ='Year 4'!M76 -> 0 | N78: ='Year 4'!N76 -> 0 | O78: ='Year 4'!O76 -> 0 | P78: ='Year 4'!P76 -> 0 | Q78: 0 | R78: ='Year 4'!R76 -> 0 | S78: ='Year 4'!S76 -> 0 | T78: ='Year 4'!T76 -> 0 | U78: ='Year 4'!U76 -> 0 | V78: =J96 -> 0
A79: 0 | B79: 0 | C79: 0 | D79: Graduate | E79: 0 | F79: 0 | G79: 0 | H79: 0 | I79: 0 | J79: 0 | K79: 0 | M79: 0 | N79: 0 | O79: 0 | P79: 0 | Q79: 0 | R79: 0 | S79: 0 | T79: 0 | U79: 0 | V79: =J97 -> 0
G80: Sum of Students | J80: =SUM(J71:J79) -> 0
A81: Fringe Benefits for Students
A82: Last Name | B82: First Name | C82: EMPL ID# | D82: Student Type | E82: Insurance Type | F82: Other Support | G82: Hire Date | H82: Fringe Rate | J82: Fringe Benefit Totals | K82: Fringe Rates before 9-1-95 | N82: Fringe Rates after 9-1-95 | Q82: Insurance and Longevity Calculations
E84: None
E85: Employee
D86: None | E86: Spouse
D87: ORP | E87: Children | F87: Yes
D88: TRS | E88: Family | F88: No | K88: Grad | L88: Under | M88: F1 Sum | N88: Grad | O88: Under | P88: F2 Sum | Q88: % I applied | R88: Employee | S88: Spouse | T88: Children | U88: Family | V88: Ins Sum
A89: ='Year 4'!A86 -> 0 | B89: ='Year 4'!B86 -> 0 | C89: ='Year 4'!C86 -> 0 | D89: ='Year 4'!D86 -> Graduate | E89: ='Year 4'!E86 -> Employee | F89: ='Year 4'!F86 -> No | G89: ='Year 4'!G86 -> 2007-09-01 | H89: =IF(G89>Fringe1End,P89,M89) -> 7.65 | J89: =(J71*H89/100)+V89 -> 0 | K89: =IF(D71=$D$69,F1.Grad,0) -> 6.85 | L89: =IF(D71=$D$70,F1.Under,0) -> 0 | M89: =SUM(K89:L89) -> 6.85 | N89: =IF(D71=$D$69,F2.Grad,0) -> 7.65 | O89: =IF(D71=$D$70,F2.Under,0) -> 0 | P89: =SUM(N89:O89) -> 7.65 | Q89: =IF(F89=$F$87,G71,100) -> 100 | R89: =IF($E89=$E$85,Ins.PT.E*$K71*Q89/100,0) -> 0 | S89: =IF($E89=$E$86,Ins.PT.S*$K71*Q89/100,0) -> 0 | T89: =IF($E89=$E$87,Ins.PT.C*$K71*Q89/100,0) -> 0 | U89: =IF($E89=$E$88,Ins.PT.F*$K71*Q89/100,0) -> 0 | V89: =SUM(R89:U89) -> 0
A90: ='Year 4'!A87 -> 0 | B90: ='Year 4'!B87 -> 0 | C90: ='Year 4'!C87 -> 0 | D90: ='Year 4'!D87 -> Graduate | E90: ='Year 4'!E87 -> Employee | F90: ='Year 4'!F87 -> No | G90: ='Year 4'!G87 -> 2007-09-01 | H90: =IF(G90>Fringe1End,P90,M90) -> 7.65 | J90: 0 | K90: 6.85 | L90: 0 | M90: =SUM(K90:L90) -> 6.85 | N90: 7.65 | O90: 0 | P90: =SUM(N90:O90) -> 7.65 | Q90: 100 | R90: 0 | S90: 0 | T90: 0 | U90: 0 | V90: =SUM(R90:U90) -> 0
A91: ='Year 4'!A88 -> 0 | B91: ='Year 4'!B88 -> 0 | C91: ='Year 4'!C88 -> 0 | D91: ='Year 4'!D88 -> Graduate | E91: ='Year 4'!E88 -> Employee | F91: ='Year 4'!F88 -> No | G91: ='Year 4'!G88 -> 2007-09-01 | H91: =IF(G91>Fringe1End,P91,M91) -> 7.65 | J91: 0 | K91: 6.85 | L91: 0 | M91: =SUM(K91:L91) -> 6.85 | N91: 7.65 | O91: 0 | P91: =SUM(N91:O91) -> 7.65 | Q91: 100 | R91: 0 | S91: 0 | T91: 0 | U91: 0 | V91: =SUM(R91:U91) -> 0
A92: ='Year 4'!A89 -> 0 | B92: ='Year 4'!B89 -> 0 | C92: ='Year 4'!C89 -> 0 | D92: ='Year 4'!D89 -> Graduate | E92: ='Year 4'!E89 -> Employee | F92: ='Year 4'!F89 -> No | G92: ='Year 4'!G89 -> 2007-09-01 | H92: 7.65 | J92: 0 | K92: 6.85 | L92: 0 | M92: 6.85 | N92: 7.65 | O92: 0 | P92: 7.65 | Q92: 100 | R92: 0 | S92: 0 | T92: 0 | U92: 0 | V92: 0
A93: ='Year 4'!A90 -> 0 | B93: ='Year 4'!B90 -> 0 | C93: ='Year 4'!C90 -> 0 | D93: ='Year 4'!D90 -> Graduate | E93: ='Year 4'!E90 -> Employee | F93: ='Year 4'!F90 -> No | G93: ='Year 4'!G90 -> 2007-09-01 | H93: =IF(G93>Fringe1End,P93,M93) -> 7.65 | J93: 0 | K93: 6.85 | L93: 0 | M93: =SUM(K93:L93) -> 6.85 | N93: 7.65 | O93: 0 | P93: =SUM(N93:O93) -> 7.65 | Q93: 100 | R93: 0 | S93: 0 | T93: 0 | U93: 0 | V93: =SUM(R93:U93) -> 0
A94: ='Year 4'!A91 -> 0 | B94: ='Year 4'!B91 -> 0 | C94: ='Year 4'!C91 -> 0 | D94: ='Year 4'!D91 -> Graduate | E94: ='Year 4'!E91 -> Employee | F94: ='Year 4'!F91 -> No | G94: ='Year 4'!G91 -> 2007-09-01 | H94: 7.65 | J94: 0 | K94: 6.85 | L94: 0 | M94: 6.85 | N94: 7.65 | O94: 0 | P94: 7.65 | Q94: 100 | R94: 0 | S94: 0 | T94: 0 | U94: 0 | V94: 0
A95: ='Year 4'!A92 -> 0 | B95: ='Year 4'!B92 -> 0 | C95: ='Year 4'!C92 -> 0 | D95: ='Year 4'!D92 -> Graduate | E95: ='Year 4'!E92 -> Employee | F95: ='Year 4'!F92 -> No | G95: ='Year 4'!G92 -> 2007-09-01 | H95: 7.65 | J95: 0 | K95: 6.85 | L95: 0 | M95: 6.85 | N95: 7.65 | O95: 0 | P95: 7.65 | Q95: 100 | R95: 0 | S95: 0 | T95: 0 | U95: 0 | V95: 0
A96: ='Year 4'!A93 -> 0 | B96: ='Year 4'!B93 -> 0 | C96: ='Year 4'!C93 -> 0 | D96: ='Year 4'!D93 -> Graduate | E96: ='Year 4'!E93 -> Employee | F96: ='Year 4'!F93 -> No | G96: ='Year 4'!G93 -> 2007-09-01 | H96: 7.65 | J96: 0 | K96: 6.85 | L96: 0 | M96: 6.85 | N96: 7.65 | O96: 0 | P96: 7.65 | Q96: 100 | R96: 0 | S96: 0 | T96: 0 | U96: 0 | V96: 0
A97: =A79 -> 0 | B97: =B79 -> 0 | C97: =C79 -> 0 | D97: =D79 -> Graduate | E97: =IF($D79=$D$69,$E$85,$E$84) -> Employee | F97: No | G97: =$J$4 -> 2007-09-01 | H97: 7.65 | J97: 0 | K97: 6.85 | L97: 0 | M97: 6.85 | N97: 7.65 | O97: 0 | P97: 7.65 | Q97: 100 | R97: 0 | S97: 0 | T97: 0 | U97: 0 | V97: 0
F98: Sum of Fringe Benefits for Students | J98: =SUM(J89:J97) -> 0 | K98: Grad | L98: Under | M98: F1 Sum | N98: Grad | O98: Under | P98: F2 Sum | Q98: % I applied | R98: Employee | S98: Spouse | T98: Children | U98: Family | V98: Ins Sum
F99: Sum of Students and Fringe Benefits | J99: =J80+J98 -> 0
F100: Sum of Salary | J100: =J35+J80 -> 0
F101: Sum of Fringe Benefits | J101: =J60+J98 -> 0
F102: Sum of Personnel and Students | J102: =SUM(J100:J101) -> 0
A103: Travel
A104: Component | B104: Description | F104: Location | G104: Date | H104: Destination | J104: Cost
A106: Transportation | F106: In-State
A107: Meals | F107: Out-of-State
A108: Lodging | F108: Foreign
J109: 0
J110: 0
G111: Sum of Travel | J111: =SUM(J109:J110) -> 0
A112: Capital Expenditures/Equipment D | E112: These items individually are OVER $5,000.
A113: Item | C113: Description | G113: Amount | H113: Quantity | J113: Cost
G114: 0 | H114: 0 | J114: =G114*H114 -> 0
G115: 0 | H115: 0 | J115: =G115*H115 -> 0
G116: Sum of Equipment | J116: =SUM(J114:J115) -> 0
A117: Supplies | B117: These items individually are UNDER $5,000.
A118: Item | C118: Description | G118: Amount | H118: Quantity | J118: Cost
G119: 0 | H119: 0 | J119: =G119*H119 -> 0
G120: 0 | H120: 0 | J120: =G120*H120 -> 0
G121: Sum of Supplies | J121: =SUM(J119:J120) -> 0
A122: Publication Charges | D122: For the typical activities included in this category, hold mouse over the cell to the left.
A123: Item | C123: Description | G123: Price | H123: Quantity | J123: Cost
G124: 0 | H124: 0 | J124: =G124*H124 -> 0
G125: 0 | H125: 0 | J125: =G125*H125 -> 0
F126: Sum of Publication/Printing Charges | J126: =SUM(J124:J125) -> 0 | K126: This is the amount that can be charge IDC
A127: Sub-Contracts DÑ | C127: UNT employees can not be recipients of UNT sub-contracts and must be paid in personnel category.
A128: Item | C128: Description | J128: Amount | O128: Year 1 | P128: Year 2 | Q128: Year 3 | R128: Year 4 | S128: Year 5
A129: ='Year 4'!A125:B125 -> 0 | C129: ='Year 4'!C125:H125 -> 0 | J129: 0 | K129: =IF(M129+J129>25000,IF(M129>=25000,0,25000-M129),J129) -> 0 | L129: 1 | M129: ='Year 4'!N125 -> 0 | N129: =SUM(M129,J129) -> 0 | O129: ='Year 4'!O125 -> 0 | P129: ='Year 4'!P125 -> 0 | Q129: ='Year 4'!Q125 -> 0 | R129: ='Year 4'!R125 -> 0 | S129: =J129 -> 0
A130: ='Year 4'!A126:B126 -> 0 | C130: ='Year 4'!C126:H126 -> 0 | J130: 0 | K130: 0 | L130: 1 | M130: ='Year 4'!N126 -> 0 | N130: =SUM(M130,J130) -> 0 | O130: ='Year 4'!O126 -> 0 | P130: ='Year 4'!P126 -> 0 | Q130: ='Year 4'!Q126 -> 0 | R130: ='Year 4'!R126 -> 0 | S130: 0
A131: ='Year 4'!A127:B127 -> 0 | C131: ='Year 4'!C127:H127 -> 0 | J131: 0 | K131: 0 | L131: 2 | M131: ='Year 4'!N127 -> 0 | N131: =SUM(M131,J131) -> 0 | O131: ='Year 4'!O127 -> 0 | P131: ='Year 4'!P127 -> 0 | Q131: ='Year 4'!Q127 -> 0 | R131: ='Year 4'!R127 -> 0 | S131: 0
A132: ='Year 4'!A128:B128 -> 0 | C132: ='Year 4'!C128:H128 -> 0 | J132: 0 | K132: 0 | L132: 3 | M132: ='Year 4'!N128 -> 0 | N132: =SUM(M132,J132) -> 0 | O132: ='Year 4'!O128 -> 0 | P132: ='Year 4'!P128 -> 0 | Q132: ='Year 4'!Q128 -> 0 | R132: ='Year 4'!R128 -> 0 | S132: 0
A133: ='Year 4'!A129:B129 -> 0 | C133: ='Year 4'!C129:H129 -> 0 | J133: 0 | K133: 0 | L133: 4 | M133: ='Year 4'!N129 -> 0 | N133: =SUM(M133,J132) -> 0 | O133: ='Year 4'!O129 -> 0 | P133: ='Year 4'!P129 -> 0 | Q133: ='Year 4'!Q129 -> 0 | R133: ='Year 4'!R129 -> 0 | S133: 0
A134: 0 | J134: 0 | K134: 0 | L134: 5 | M134: 0 | N134: =SUM(M134,J133) -> 0 | O134: 0 | P134: 0 | Q134: 0 | R134: 0 | S134: 0
F135: Sum of Sub-Contracts | J135: =SUM(J129:J134) -> 0 | K135: =SUM(K129:K134) -> 0 | L135: Year | M135: Previous | N135: Current
A136: Participant Support Costs D
A137: Item | C137: Description | G137: Amount | H137: Quantity | J137: Cost
A139: Scholarship
A140: Fellowship
A141: Travel
A142: Subsistence
A143: Other
G144: 0 | H144: 0 | J144: =G144*H144 -> 0
G145: 0 | H145: 0 | J145: =G145*H145 -> 0
H146: Sum of Participant Support Costs | J146: =SUM(J144:J145) -> 0
A147: Other-Graduate Student Tuition | E147: Calculate Grad Tuition in this Budget Category. IDC is not assessed on tuition.
A148: Item | C148: Description | G148: Amount | H148: Quantity | J148: Cost
G155: 0 | H155: 0 | J155: =G155*H155 -> 0
G156: 0 | H156: 0 | J156: =G156*H156 -> 0
H157: Sum of Other-Graduate Student Tuition | J157: =SUM(J155:J156) -> 0
A158: Other-All Other Costs except Graduate Tuition DÑ
A159: Item | C159: Description | G159: Price | H159: Quantity | J159: Cost
A161: Patient Care Charges | K161: This is the amount that can be charge IDC
A162: Off-site Facility Rental
A163: (User Defined)
G164: 0 | H164: 0 | J164: =G164*H164 -> 0 | K164: =IF(OR(A164=$A$161,A164=$A$162),0,J164) -> 0
G165: 0 | H165: 0 | J165: =G165*H165 -> 0 | K165: =IF(OR(A165=$A$161,A165=$A$162),0,J165) -> 0
H166: Sum of Other | J166: =SUM(J164:J165) -> 0 | K166: =SUM(K164:K165) -> 0
A167: Indirect Costs
A168: IDC Type | C168: IDC rate | D168: Documentation Location | F168: Modified Total Direct Costs (Base for F&A) | J168: =(J102+J111+J121+J126+K166+K135) -> 0
A169: ='Year 1'!A145:B145 -> Agency Restricted | C169: ='Year 1'!C145 -> 10 | D169: ='Year 1'!D145:F145 -> https://docs.gatesfoundation.org/documents/indirect_cost_policy.pdf | G169: IDC Amount on TDC | J169: =J170*C169/100 -> 0
F170: Total Direct Costs (Sponsor Direct) | J170: =SUM(J135,J166,J146,J126,J121,J116,J111,J102,J157) -> 0
E171: ="Total Amount Requested for "&J1&" Budget" -> Total Amount Requested for Year 5 Budget | J171: =SUM(J169:J170) -> 0
A173: University of North Texas, Office of Grants & Contracts Administration

Sheet Summary
A1: File Number: | C1: ='Year 1'!B1 -> 20-0611 | M1: This Budget was drafted on:
A2: Project Title: | B2: ='Year 1'!B2:J2 -> Genome-wide Knockdown Screens of Oocyte Maturation
A3: BB Version: | B3: ='Year 1'!E1 -> FY 2020
A5: Project Budget | H5: Year 1 | I5: Year 2 | J5: Year 3 | K5: Year 4 | L5: Year 5 | N5: Total
A7: Personnel
A8: ='Year 5'!A19 -> Jagadeeswaran | B8: ='Year 5'!B19 -> Pudur | C8: ='Year 5'!C19 -> 10523515 | H8: ='Year 1'!J19 -> 53939.1 | I8: ='Year 2'!J19 -> 55557.273 | J8: ='Year 3'!J19 -> 57223.99119 | K8: ='Year 4'!J19 -> 0 | L8: ='Year 5'!J19 -> 0 | N8: =SUM(H8:M8) -> 166720.3642
A9: ='Year 5'!A20 -> Iyer | B9: ='Year 5'!B20 -> Neha | C9: ='Year 5'!C20 -> 0 | H9: ='Year 1'!J20 -> 49320 | I9: ='Year 2'!J20 -> 50799.6 | J9: ='Year 3'!J20 -> 52323.588 | K9: ='Year 4'!J20 -> 0 | L9: ='Year 5'!J20 -> 0 | N9: 152443.188
A10: ='Year 5'!A21 -> Raman | B10: ='Year 5'!B21 -> Revathi | C10: ='Year 5'!C21 -> 0 | H10: ='Year 1'!J21 -> 49320 | I10: ='Year 2'!J21 -> 50799.6 | J10: ='Year 3'!J21 -> 52323.588 | K10: ='Year 4'!J21 -> 0 | L10: ='Year 5'!J21 -> 0 | N10: 152443.188
A11: ='Year 5'!A22 -> Sun | B11: ='Year 5'!B22 -> Kelsey | C11: ='Year 5'!C22 -> 0 | H11: ='Year 1'!J22 -> 39000 | I11: ='Year 2'!J22 -> 40170 | J11: ='Year 3'!J22 -> 41375.1 | K11: ='Year 4'!J22 -> 0 | L11: ='Year 5'!J22 -> 0 | N11: 120545.1
A12: ='Year 5'!A23 -> 0 | B12: ='Year 5'!B23 -> 0 | C12: ='Year 5'!C23 -> 0 | H12: ='Year 1'!J23 -> 0 | I12: ='Year 2'!J23 -> 0 | J12: ='Year 3'!J23 -> 0 | K12: ='Year 4'!J23 -> 0 | L12: ='Year 5'!J23 -> 0 | N12: 0
A13: ='Year 5'!A24 -> 0 | B13: ='Year 5'!B24 -> 0 | C13: ='Year 5'!C24 -> 0 | H13: ='Year 1'!J24 -> 0 | I13: ='Year 2'!J24 -> 0 | J13: ='Year 3'!J24 -> 0 | K13: ='Year 4'!J24 -> 0 | L13: ='Year 5'!J24 -> 0 | N13: 0
A14: ='Year 5'!A25 -> 0 | B14: ='Year 5'!B25 -> 0 | C14: ='Year 5'!C25 -> 0 | H14: ='Year 1'!J25 -> 0 | I14: ='Year 2'!J25 -> 0 | J14: ='Year 3'!J25 -> 0 | K14: ='Year 4'!J25 -> 0 | L14: ='Year 5'!J25 -> 0 | N14: 0
A15: ='Year 5'!A26 -> 0 | B15: ='Year 5'!B26 -> 0 | C15: ='Year 5'!C26 -> 0 | H15: 0 | I15: ='Year 2'!J26 -> 0 | J15: ='Year 3'!J26 -> 0 | K15: ='Year 4'!J26 -> 0 | L15: ='Year 5'!J26 -> 0 | N15: 0
A16: ='Year 5'!A27 -> 0 | B16: ='Year 5'!B27 -> 0 | C16: ='Year 5'!C27 -> 0 | H16: 0 | I16: ='Year 2'!J27 -> 0 | J16: ='Year 3'!J27 -> 0 | K16: ='Year 4'!J27 -> 0 | L16: ='Year 5'!J27 -> 0 | N16: 0
A17: ='Year 5'!A28 -> 0 | B17: ='Year 5'!B28 -> 0 | C17: ='Year 5'!C28 -> 0 | H17: 0 | I17: ='Year 2'!J28 -> 0 | J17: ='Year 3'!J28 -> 0 | K17: ='Year 4'!J28 -> 0 | L17: ='Year 5'!J28 -> 0 | N17: =SUM(H17:M17) -> 0
A18: ='Year 5'!A29 -> 0 | B18: ='Year 5'!B29 -> 0 | C18: ='Year 5'!C29 -> 0 | H18: 0 | I18: ='Year 2'!J29 -> 0 | J18: ='Year 3'!J29 -> 0 | K18: ='Year 4'!J29 -> 0 | L18: ='Year 5'!J29 -> 0 | N18: 0
A19: ='Year 5'!A30 -> 0 | B19: ='Year 5'!B30 -> 0 | C19: ='Year 5'!C30 -> 0 | H19: 0 | I19: 0 | J19: ='Year 3'!J30 -> 0 | K19: ='Year 4'!J30 -> 0 | L19: ='Year 5'!J30 -> 0 | N19: 0
A20: ='Year 5'!A31 -> 0 | B20: ='Year 5'!B31 -> 0 | C20: ='Year 5'!C31 -> 0 | H20: 0 | I20: 0 | J20: ='Year 3'!J31 -> 0 | K20: ='Year 4'!J31 -> 0 | L20: ='Year 5'!J31 -> 0 | N20: =SUM(H20:M20) -> 0
A21: ='Year 5'!A32 -> 0 | B21: ='Year 5'!B32 -> 0 | C21: ='Year 5'!C32 -> 0 | H21: 0 | I21: 0 | J21: ='Year 3'!J32 -> 0 | K21: ='Year 4'!J32 -> 0 | L21: ='Year 5'!J32 -> 0 | N21: 0
A22: ='Year 5'!A33 -> 0 | B22: ='Year 5'!B33 -> 0 | C22: ='Year 5'!C33 -> 0 | H22: 0 | I22: 0 | J22: 0 | K22: ='Year 4'!J33 -> 0 | L22: ='Year 5'!J33 -> 0 | N22: 0
A23: ='Year 5'!A34 -> 0 | B23: ='Year 5'!B34 -> 0 | C23: ='Year 5'!C34 -> 0 | H23: 0 | I23: 0 | J23: 0 | K23: 0 | L23: ='Year 5'!J34 -> 0 | N23: 0
A25: Subtotal of Personnel | H25: =SUM(H8:H24) -> 191579.1 | I25: =SUM(I8:I24) -> 197326.473 | J25: 203246.2672 | K25: 0 | L25: 0 | M25: 0 | N25: 592151.8402
A27: Fringe Benefits
A28: ='Year 5'!A44 -> Jagadeeswaran | B28: ='Year 5'!B44 -> Pudur | C28: ='Year 5'!C44 -> 10523515 | H28: ='Year 1'!J35 -> 11682.9252 | I28: ='Year 2'!J39 -> 11928.8875 | J28: ='Year 3'!J42 -> 12182.22866 | K28: ='Year 4'!J43 -> 0 | L28: ='Year 5'!J44 -> 0 | N28: =SUM(H28:M28) -> 35794.04136
A29: ='Year 5'!A45 -> Iyer | B29: ='Year 5'!B45 -> Neha | C29: ='Year 5'!C45 -> 0 | H29: ='Year 1'!J36 -> 14969.82 | I29: ='Year 2'!J40 -> 15193.9794 | J29: ='Year 3'!J43 -> 15424.86358 | K29: ='Year 4'!J44 -> 0 | L29: ='Year 5'!J45 -> 0 | N29: 45588.66298
A30: ='Year 5'!A46 -> Raman | B30: ='Year 5'!B46 -> Revathi | C30: ='Year 5'!C46 -> 0 | H30: ='Year 1'!J37 -> 14969.82 | I30: ='Year 2'!J41 -> 15193.9794 | J30: ='Year 3'!J44 -> 15424.86358 | K30: ='Year 4'!J45 -> 0 | L30: ='Year 5'!J46 -> 0 | N30: 45588.66298
A31: ='Year 5'!A47 -> Sun | B31: ='Year 5'!B47 -> Kelsey | C31: ='Year 5'!C47 -> 0 | H31: ='Year 1'!J38 -> 13406.34 | I31: ='Year 2'!J42 -> 13583.595 | J31: ='Year 3'!J45 -> 13766.16765 | K31: ='Year 4'!J46 -> 0 | L31: ='Year 5'!J47 -> 0 | N31: 40756.10265
A32: ='Year 5'!A48 -> 0 | B32: ='Year 5'!B48 -> 0 | C32: ='Year 5'!C48 -> 0 | H32: ='Year 1'!J39 -> 0 | I32: ='Year 2'!J43 -> 0 | J32: ='Year 3'!J46 -> 0 | K32: ='Year 4'!J47 -> 0 | L32: ='Year 5'!J48 -> 0 | N32: 0
A33: ='Year 5'!A49 -> 0 | B33: ='Year 5'!B49 -> 0 | C33: ='Year 5'!C49 -> 0 | H33: ='Year 1'!J40 -> 0 | I33: ='Year 2'!J44 -> 0 | J33: ='Year 3'!J47 -> 0 | K33: ='Year 4'!J48 -> 0 | L33: ='Year 5'!J49 -> 0 | N33: 0
A34: ='Year 5'!A50 -> 0 | B34: ='Year 5'!B50 -> 0 | C34: ='Year 5'!C50 -> 0 | H34: ='Year 1'!J41 -> 0 | I34: ='Year 2'!J45 -> 0 | J34: ='Year 3'!J48 -> 0 | K34: ='Year 4'!J49 -> 0 | L34: ='Year 5'!J50 -> 0 | N34: 0
A35: ='Year 5'!A51 -> 0 | B35: ='Year 5'!B51 -> 0 | C35: ='Year 5'!C51 -> 0 | H35: 0 | I35: ='Year 2'!J46 -> 0 | J35: ='Year 3'!J49 -> 0 | K35: ='Year 4'!J50 -> 0 | L35: ='Year 5'!J51 -> 0 | N35: 0
A36: ='Year 5'!A52 -> 0 | B36: ='Year 5'!B52 -> 0 | C36: ='Year 5'!C52 -> 0 | H36: 0 | I36: ='Year 2'!J47 -> 0 | J36: ='Year 3'!J50 -> 0 | K36: ='Year 4'!J51 -> 0 | L36: ='Year 5'!J52 -> 0 | N36: 0
A37: ='Year 5'!A53 -> 0 | B37: ='Year 5'!B53 -> 0 | C37: ='Year 5'!C53 -> 0 | H37: 0 | I37: ='Year 2'!J48 -> 0 | J37: ='Year 3'!J51 -> 0 | K37: ='Year 4'!J52 -> 0 | L37: ='Year 5'!J53 -> 0 | N37: =SUM(H37:M37) -> 0
A38: ='Year 5'!A54 -> 0 | B38: ='Year 5'!B54 -> 0 | C38: ='Year 5'!C54 -> 0 | H38: 0 | I38: ='Year 2'!J49 -> 0 | J38: ='Year 3'!J52 -> 0 | K38: ='Year 4'!J53 -> 0 | L38: ='Year 5'!J54 -> 0 | N38: 0
A39: ='Year 5'!A55 -> 0 | B39: ='Year 5'!B55 -> 0 | C39: ='Year 5'!C55 -> 0 | H39: 0 | I39: 0 | J39: ='Year 3'!J53 -> 0 | K39: ='Year 4'!J54 -> 0 | L39: ='Year 5'!J55 -> 0 | N39: 0
A40: ='Year 5'!A56 -> 0 | B40: ='Year 5'!B56 -> 0 | C40: ='Year 5'!C56 -> 0 | H40: 0 | I40: 0 | J40: ='Year 3'!J54 -> 0 | K40: ='Year 4'!J55 -> 0 | L40: ='Year 5'!J56 -> 0 | N40: =SUM(H40:M40) -> 0
A41: ='Year 5'!A57 -> 0 | B41: ='Year 5'!B57 -> 0 | C41: ='Year 5'!C57 -> 0 | H41: 0 | I41: 0 | J41: ='Year 3'!J55 -> 0 | K41: ='Year 4'!J56 -> 0 | L41: ='Year 5'!J57 -> 0 | N41: 0
A42: ='Year 5'!A58 -> 0 | B42: ='Year 5'!B58 -> 0 | C42: ='Year 5'!C58 -> 0 | H42: 0 | I42: 0 | J42: 0 | K42: ='Year 4'!J57 -> 0 | L42: ='Year 5'!J58 -> 0 | N42: 0
A43: ='Year 5'!A59 -> 0 | B43: ='Year 5'!B59 -> 0 | C43: ='Year 5'!C59 -> 0 | H43: 0 | I43: 0 | J43: 0 | K43: 0 | L43: ='Year 5'!J59 -> 0 | N43: 0
A45: Subtotal of Fringe Benefits for Personnel | H45: =SUM(H28:H44) -> 55028.9052 | I45: =SUM(I28:I44) -> 55900.4413 | J45: 56798.12347 | K45: 0 | L45: 0 | M45: 0 | N45: 167727.47
A47: Subtotal of Personnel and FB | H47: =H45+H25 -> 246608.0052 | I47: 253226.9143 | J47: 260044.3907 | K47: 0 | L47: 0 | M47: 0 | N47: 759879.3102
A49: Students
A50: ='Year 5'!A71 -> 0 | B50: ='Year 5'!B71 -> 0 | C50: ='Year 5'!C71 -> 0 | H50: ='Year 1'!J53 -> 0 | I50: ='Year 2'!J61 -> 0 | J50: ='Year 3'!J67 -> 0 | K50: ='Year 4'!J69 -> 0 | L50: ='Year 5'!J71 -> 0 | N50: =SUM(H50:M50) -> 0
A51: ='Year 5'!A72 -> 0 | B51: ='Year 5'!B72 -> 0 | C51: ='Year 5'!C72 -> 0 | H51: ='Year 1'!J54 -> 0 | I51: ='Year 2'!J62 -> 0 | J51: ='Year 3'!J68 -> 0 | K51: ='Year 4'!J70 -> 0 | L51: ='Year 5'!J72 -> 0 | N51: =SUM(H51:M51) -> 0
A52: ='Year 5'!A73 -> 0 | B52: ='Year 5'!B73 -> 0 | C52: ='Year 5'!C73 -> 0 | H52: ='Year 1'!J55 -> 0 | I52: ='Year 2'!J63 -> 0 | J52: ='Year 3'!J69 -> 0 | K52: ='Year 4'!J71 -> 0 | L52: ='Year 5'!J73 -> 0 | N52: =SUM(H52:M52) -> 0
A53: ='Year 5'!A74 -> 0 | B53: ='Year 5'!B74 -> 0 | C53: ='Year 5'!C74 -> 0 | H53: ='Year 1'!J56 -> 0 | I53: ='Year 2'!J64 -> 0 | J53: ='Year 3'!J70 -> 0 | K53: ='Year 4'!J72 -> 0 | L53: ='Year 5'!J74 -> 0 | N53: 0
A54: ='Year 5'!A75 -> 0 | B54: ='Year 5'!B75 -> 0 | C54: ='Year 5'!C75 -> 0 | H54: 0 | I54: ='Year 2'!J65 -> 0 | J54: ='Year 3'!J71 -> 0 | K54: ='Year 4'!J73 -> 0 | L54: ='Year 5'!J75 -> 0 | N54: =SUM(H54:M54) -> 0
A55: ='Year 5'!A76 -> 0 | B55: ='Year 5'!B76 -> 0 | C55: ='Year 5'!C76 -> 0 | H55: 0 | I55: ='Year 2'!J66 -> 0 | J55: ='Year 3'!J72 -> 0 | K55: ='Year 4'!J74 -> 0 | L55: ='Year 5'!J76 -> 0 | N55: 0
A56: ='Year 5'!A77 -> 0 | B56: ='Year 5'!B77 -> 0 | C56: ='Year 5'!C77 -> 0 | H56: 0 | I56: 0 | J56: ='Year 3'!J73 -> 0 | K56: ='Year 4'!J75 -> 0 | L56: ='Year 5'!J77 -> 0 | N56: 0
A57: ='Year 5'!A78 -> 0 | B57: ='Year 5'!B78 -> 0 | C57: ='Year 5'!C78 -> 0 | H57: 0 | I57: 0 | J57: 0 | K57: ='Year 4'!J76 -> 0 | L57: ='Year 5'!J78 -> 0 | N57: 0
A58: ='Year 5'!A79 -> 0 | B58: ='Year 5'!B79 -> 0 | C58: ='Year 5'!C79 -> 0 | H58: 0 | I58: 0 | J58: 0 | K58: 0 | L58: ='Year 5'!J79 -> 0 | N58: 0
A60: Subtotal of Students | H60: =SUM(H50:H59) -> 0 | I60: 0 | J60: 0 | K60: 0 | L60: 0 | M60: 0 | N60: 0
A62: Fringe Benefits for Students
A63: ='Year 5'!A89 -> 0 | B63: ='Year 5'!B89 -> 0 | C63: ='Year 5'!C89 -> 0 | H63: ='Year 1'!J66 -> 0 | I63: ='Year 2'!J76 -> 0 | J63: ='Year 3'!J83 -> 0 | K63: ='Year 4'!J86 -> 0 | L63: ='Year 5'!J89 -> 0 | N63: =SUM(H63:M63) -> 0
A64: ='Year 5'!A90 -> 0 | B64: ='Year 5'!B90 -> 0 | C64: ='Year 5'!C90 -> 0 | H64: ='Year 1'!J67 -> 0 | I64: ='Year 2'!J77 -> 0 | J64: ='Year 3'!J84 -> 0 | K64: ='Year 4'!J87 -> 0 | L64: ='Year 5'!J90 -> 0 | N64: =SUM(H64:M64) -> 0
A65: ='Year 5'!A91 -> 0 | B65: ='Year 5'!B91 -> 0 | C65: ='Year 5'!C91 -> 0 | H65: ='Year 1'!J68 -> 0 | I65: ='Year 2'!J78 -> 0 | J65: ='Year 3'!J85 -> 0 | K65: ='Year 4'!J88 -> 0 | L65: ='Year 5'!J91 -> 0 | N65: =SUM(H65:M65) -> 0
A66: ='Year 5'!A92 -> 0 | B66: ='Year 5'!B92 -> 0 | C66: ='Year 5'!C92 -> 0 | H66: ='Year 1'!J69 -> 0 | I66: ='Year 2'!J79 -> 0 | J66: ='Year 3'!J86 -> 0 | K66: ='Year 4'!J89 -> 0 | L66: ='Year 5'!J92 -> 0 | N66: 0
A67: ='Year 5'!A93 -> 0 | B67: ='Year 5'!B93 -> 0 | C67: ='Year 5'!C93 -> 0 | H67: 0 | I67: ='Year 2'!J80 -> 0 | J67: ='Year 3'!J87 -> 0 | K67: ='Year 4'!J90 -> 0 | L67: ='Year 5'!J93 -> 0 | N67: =SUM(H67:M67) -> 0
A68: ='Year 5'!A94 -> 0 | B68: ='Year 5'!B94 -> 0 | C68: ='Year 5'!C94 -> 0 | H68: 0 | I68: ='Year 2'!J81 -> 0 | J68: ='Year 3'!J88 -> 0 | K68: ='Year 4'!J91 -> 0 | L68: ='Year 5'!J94 -> 0 | N68: 0
A69: ='Year 5'!A95 -> 0 | B69: ='Year 5'!B95 -> 0 | C69: ='Year 5'!C95 -> 0 | H69: 0 | I69: 0 | J69: ='Year 3'!J89 -> 0 | K69: ='Year 4'!J92 -> 0 | L69: ='Year 5'!J95 -> 0 | N69: 0
A70: ='Year 5'!A96 -> 0 | B70: ='Year 5'!B96 -> 0 | C70: ='Year 5'!C96 -> 0 | H70: 0 | I70: 0 | J70: 0 | K70: ='Year 4'!J93 -> 0 | L70: ='Year 5'!J96 -> 0 | N70: 0
A71: ='Year 5'!A97 -> 0 | B71: ='Year 5'!B97 -> 0 | C71: ='Year 5'!C97 -> 0 | H71: 0 | I71: 0 | J71: 0 | K71: 0 | L71: ='Year 5'!J97 -> 0 | N71: 0
A73: Subtotal of Fringe Benefits for Students | H73: =SUM(H63:H72) -> 0 | I73: 0 | J73: 0 | K73: 0 | L73: 0 | M73: 0 | N73: 0
A75: Subtotal of Students and FBS | H75: =H73+H60 -> 0 | I75: 0 | J75: 0 | K75: 0 | L75: 0 | M75: 0 | N75: =SUM(H75:M75) -> 0
A77: Subtotal of Salary | H77: =H25+H60 -> 191579.1 | I77: =I25+I60 -> 197326.473 | J77: =J25+J60 -> 203246.2672 | K77: =K25+K60 -> 0 | L77: =L25+L60 -> 0 | N77: =SUM(H77:M77) -> 592151.8402
A78: Subtotal of Fringe Benefits | H78: =H45+H73 -> 55028.9052 | I78: =I45+I73 -> 55900.4413 | J78: =J45+J73 -> 56798.12347 | K78: =K45+K73 -> 0 | L78: =L45+L73 -> 0 | N78: =SUM(H78:M78) -> 167727.47
A80: Subtotal of Personnel and Students | H80: =H75+H47 -> 246608.0052 | I80: =I75+I47 -> 253226.9143 | J80: =J75+J47 -> 260044.3907 | K80: =K75+K47 -> 0 | L80: =L75+L47 -> 0 | M80: =M75+M62 -> 0 | N80: =SUM(H80:M80) -> 759879.3102
A81: Travel | H81: ='Year 1'!J83 -> 3000 | I81: ='Year 2'!J95 -> 3000 | J81: ='Year 3'!J103 -> 3000 | K81: ='Year 4'!J107 -> 0 | L81: ='Year 5'!J111 -> 0 | N81: =SUM(H81:M81) -> 9000
A82: Capital Expenditures/Equipment D | H82: ='Year 1'!J88 -> 0 | I82: ='Year 2'!J100 -> 0 | J82: ='Year 3'!J108 -> 0 | K82: ='Year 4'!J112 -> 0 | L82: ='Year 5'!J116 -> 0 | N82: 0
A83: Supplies | H83: ='Year 1'!J96 -> 69250 | I83: ='Year 2'!J109 -> 69250 | J83: ='Year 3'!J119 -> 60984 | K83: ='Year 4'!J117 -> 0 | L83: ='Year 5'!J121 -> 0 | N83: 199484
A84: Publication/Printing Charges | H84: ='Year 1'!J101 -> 0 | I84: ='Year 2'!J114 -> 0 | J84: ='Year 3'!J124 -> 9000 | K84: ='Year 4'!J122 -> 0 | L84: ='Year 5'!J126 -> 0 | N84: 9000
A86: Sub-Contracts DÑ
A87: ='Year 5'!A129:B129 -> 0 | B87: ='Year 5'!B129:C129 -> 0 | H87: ='Year 5'!O129 -> 0 | I87: ='Year 5'!P129 -> 0 | J87: ='Year 5'!Q129 -> 0 | K87: ='Year 5'!R129 -> 0 | L87: ='Year 5'!S129 -> 0 | N87: 0
A88: ='Year 5'!A130:B130 -> 0 | B88: ='Year 5'!B130:C130 -> 0 | H88: ='Year 5'!O130 -> 0 | I88: ='Year 5'!P130 -> 0 | J88: ='Year 5'!Q130 -> 0 | K88: ='Year 5'!R130 -> 0 | L88: ='Year 5'!S130 -> 0 | N88: 0
A89: ='Year 5'!A131:B131 -> 0 | B89: ='Year 5'!B131:C131 -> 0 | H89: ='Year 5'!O131 -> 0 | I89: ='Year 5'!P131 -> 0 | J89: ='Year 5'!Q131 -> 0 | K89: ='Year 5'!R131 -> 0 | L89: ='Year 5'!S131 -> 0 | N89: 0
A90: ='Year 5'!A132:B132 -> 0 | B90: ='Year 5'!B132:C132 -> 0 | H90: ='Year 5'!O132 -> 0 | I90: ='Year 5'!P132 -> 0 | J90: ='Year 5'!Q132 -> 0 | K90: ='Year 5'!R132 -> 0 | L90: ='Year 5'!S132 -> 0 | N90: 0
A91: ='Year 5'!A133:B133 -> 0 | B91: ='Year 5'!B133:C133 -> 0 | H91: ='Year 5'!O133 -> 0 | I91: ='Year 5'!P133 -> 0 | J91: ='Year 5'!Q133 -> 0 | K91: ='Year 5'!R133 -> 0 | L91: ='Year 5'!S133 -> 0 | N91: 0
A92: ='Year 5'!A134:B134 -> 0 | B92: ='Year 5'!B134:C134 -> 0 | H92: ='Year 5'!O134 -> 0 | I92: ='Year 5'!P134 -> 0 | J92: ='Year 5'!Q134 -> 0 | K92: ='Year 5'!R134 -> 0 | L92: ='Year 5'!S134 -> 0 | N92: 0
A94: Subtotal of Sub-Contracts | H94: =SUM(H87:H93) -> 0 | I94: =SUM(I87:I93) -> 0 | J94: =SUM(J87:J93) -> 0 | K94: =SUM(K87:K93) -> 0 | L94: =SUM(L87:L93) -> 0 | N94: =SUM(N87:N93) -> 0
A96: Participant Support Costs D | H96: ='Year 1'!J117 -> 0 | I96: ='Year 2'!J131 -> 0 | J96: ='Year 3'!J142 -> 0 | K96: ='Year 4'!J141 -> 0 | L96: ='Year 5'!J146 -> 0 | N96: 0
A97: Other-Graduate Student Tuition (IDC is not assessed on tuition) | H97: ='Year 1'!J127 -> 0 | I97: ='Year 2'!J144 -> 0 | J97: ='Year 3'!J153 -> 0 | K97: ='Year 4'!J152 -> 0 | L97: ='Year 5'!J157 -> 0 | N97: =SUM(H97:M97) -> 0
A98: Other-All Other Costs except Graduate Tuition DÑ | H98: ='Year 1'!J136 -> 0 | I98: ='Year 2'!J153 -> 0 | J98: ='Year 3'!J162 -> 0 | K98: ='Year 4'!J161 -> 0 | L98: ='Year 5'!J166 -> 0 | N98: 0
A99: Subtotal of all non-personnel items | N99: =SUM(N81:N84) + SUM(N94:N98) -> 217484
A100: Total Direct Costs | H100: =SUM(H80:H84,H94,H96:H98) -> 318858.0052 | I100: =SUM(I80:I84,I94,I96:I98) -> 325476.9143 | J100: 333028.3907 | K100: 0 | L100: 0 | M100: =SUM(M47:M98) -> 0 | N100: 977363.3102
A102: Modified Total Direct Costs (Base for F&A) | H102: ='Year 1'!J138 -> 318858.0052 | I102: ='Year 2'!J155 -> 325476.9143 | J102: ='Year 3'!J164 -> 333028.3907 | K102: ='Year 4'!J163 -> 0 | L102: ='Year 5'!J168 -> 0 | N102: =SUM(H102:M102) -> 977363.3102
A103: Indirect Costs | H103: ='Year 1'!J145 -> 31885.80052 | I103: ='Year 2'!J156 -> 32547.69143 | J103: ='Year 3'!J165 -> 33302.83907 | K103: ='Year 4'!J164 -> 0 | L103: ='Year 5'!J169 -> 0 | N103: 97736.33102
A105: Total Direct Costs (Sponsor Direct) | H105: ='Year 1'!J146 -> 318858.0052 | I105: ='Year 2'!J157 -> 325476.9143 | J105: ='Year 3'!J166 -> 333028.3907 | K105: ='Year 4'!J165 -> 0 | L105: ='Year 5'!J170 -> 0 | N105: =SUM(H105:M105) -> 977363.3102
A106: Indirect Costs | H106: ='Year 1'!J145 -> 31885.80052 | I106: ='Year 2'!J156 -> 32547.69143 | J106: ='Year 3'!J165 -> 33302.83907 | K106: ='Year 4'!J164 -> 0 | L106: ='Year 5'!J169 -> 0 | N106: =SUM(H106:M106) -> 97736.33102
A107: Requested Amount | H107: =SUM(H105:H106) -> 350743.8057 | I107: =SUM(I105:I106) -> 358024.6057 | J107: =SUM(J105:J106) -> 366331.2297 | K107: =SUM(K105:K106) -> 0 | L107: =SUM(L105:L106) -> 0 | N107: =SUM(N105:N106) -> 1075099.641
A109: Requested Amount | H109: ='Year 1'!J147 -> 350743.8057 | I109: ='Year 2'!J158 -> 358024.6057 | J109: ='Year 3'!J167 -> 366331.2297 | K109: ='Year 4'!J166 -> 0 | L109: ='Year 5'!J171 -> 0 | N109: =SUM(H109:M109) -> 1075099.641
H111: ='Year 1'!H3:J3 -> 0
A112: ='Year 1'!A3:B3 -> Budget Prepared by: | C112: ='Year 1'!C3:D3 -> Pudur Jagadeeswaran
A113: Phone Number: | C113: ='Year 1'!F3 -> 0
A114: E-mail: | C114: =H111 -> 0
A117: University of North Texas, Office of Grants & Contracts Administration
